Workbook

Sheet Introduction
A3: . . . . . . . . . . . . . . . . . . . . . . . . . . . . . . . . . . . . . . . . . . . . . . . . .
A5: Guidelines For Estimating
A6: Beef Cow-Calf Production Costs
A7: ="Based on a "&Input!E13&" Head Cow Herd - "&IF('Winter Feed Rations'!E9>0,'Winter Feed Rations'!E10,IF('Winter Feed Rations'!F9>0,'Winter Feed Rations'!F10,IF('Winter Feed Rations'!G9>0,'Winter Feed Rations'!G10,IF('Winter Feed Rations'!H9>0,'Winter Feed Rations'!H10,IF('Winter Feed Rations'!I9>0,'Winter Feed Rations'!I10,IF('Winter Feed Rations'!J9>0,'Winter Feed Rations'!J10,IF('Winter Feed Rations'!K9>0,'Winter Feed Rations'!K10,IF('Winter Feed Rations'!L9>0,'Winter Feed Rations'!L10,"Custom"))))))))&" Ration" -> Based on a 150 Head Cow Herd - Hay Ration
G10: Date: | I10: September, 2024
B16: This guide is designed to provide you with planning information and a format for calculating costs of production of a cow calf enterprise in Manitoba. General Manitoba Agriculture recommendations are assumed in using feed and veterinary inputs. These figures provide an economic evaluation of the livestock and estimated prices required to cover all costs. Costs include labour, investment and depreciation, but do not include management costs, nor do they necessarily represent the average cost of production in Manitoba.
B25: These budgets may be adjusted by putting in your own figures. As a producer you are encouraged to calculate your own costs of production. Good management is assumed in that a balanced ration is being fed, livestock are on a herd health program and handling facilities are included.
B31: This tool is available as an Excel worksheet at:
H39: is also available to
B40: help determine machinery costs.
B47: Note: This budget is only a guide and is not intended as an in-depth study of the cost of production of this industry. Interpretation and use of this information is the responsibility of the user. If you need help with a budget, contact a Farm Management Specialist.

Sheet Summary
B1: ="Cow-Calf Production Costs - "&Introduction!I10&"" -> Cow-Calf Production Costs - September, 2024
B2: ="Based on a "&Input!E13&" Cow Herd" -> Based on a 150 Cow Herd
A4: A. Operating Costs | F4: Cost/Cow | H4: Total Cost | J4: Your Cost
B5: 1. Feed Costs
B6: Grain and Concentrates | F6: =SUM('Winter Feed Rations'!O40:O43)+SUM('Winter Feed Rations'!O19:O22) -> 27.12053571 | H6: =ROUND(F6*Input!$E$13,0) -> 4068
B7: Forages | F7: =SUM('Winter Feed Rations'!O33:O39)+SUM('Winter Feed Rations'!O12:O18) -> 408.3629464 | H7: =ROUND(F7*Input!$E$13,0) -> 61254
B8: Salt & Minerals | F8: =SUM('Winter Feed Rations'!O44:O47)+SUM('Winter Feed Rations'!O23:O26)+SUM((((Pasture!G3+Pasture!G4)*0.07)/'Winter Feed Rations'!C26)*'Winter Feed Rations'!B26)+SUM((((Pasture!G3+Pasture!G4)*0.12)/'Winter Feed Rations'!C23)*'Winter Feed Rations'!B23) -> 47.08668831 | H8: =ROUND(F8*Input!$E$13,0) -> 7063
B9: Extended Grazing Forages | F9: =IF('Extended Grazing'!G49="ERROR","ERROR",'Extended Grazing'!G53) -> 41.65468833 | H9: =ROUND(F9*Input!$E$13,0) -> 6248
B10: Total Feed Cost | F10: =IF('Winter Feed Rations'!H54=Pasture!G5,F6+F7+F8+F9,"ERROR") -> 524.2248588 | H10: =SUM(H6:H9) -> 78633
B12: 2. Other Operating Costs
B13: Straw | F13: ='Operating '!D26*'Operating '!D25 -> 70 | H13: =ROUND(F13*Input!$E$13,0) -> 10500
B14: Veterinary Medicine & Supplies | F14: ='Operating '!G21 -> 30.67666667 | H14: =ROUND(F14*Input!$E$13,0) -> 4602
B15: Breeding Costs | F15: =Input!G91 -> 46.42 | H15: =ROUND(F15*Input!$E$13,0) -> 6963
B16: Fuel, Maintenance & Repairs | F16: ='Operating '!G48 -> 42.7173 | H16: =ROUND(F16*Input!$E$13,0) -> 6408
B17: Utilities | F17: ='Operating '!G59 -> 11.688774 | H17: =ROUND(F17*Input!$E$13,0) -> 1753
B18: Marketing & Transportation | F18: ='Operating '!G93 -> 39.59833333 | H18: =ROUND(F18*Input!$E$13,0) -> 5940
B19: Death Loss | F19: ='Operating '!G97 -> 32.5 | H19: =ROUND(F19*Input!$E$13,0) -> 4875
B20: Manure Removal | F20: ='Operating '!G108 -> 10.83963562 | H20: =ROUND(F20*Input!$E$13,0) -> 1626
B21: Insurance | F21: ='Operating '!G122 -> 18.83 | H21: =ROUND(F21*Input!$E$13,0) -> 2825
B22: Herd Replacement | F22: =Input!E38 -> 148.5 | H22: =ROUND(F22*Input!$E$13,0) -> 22275
B23: Pasture Rental | F23: =Pasture!J122 -> 59.375 | H23: =ROUND(F23*Input!$E$13,0) -> 8906
B24: Pasture Operating | F24: =Pasture!J121 -> 34.76510638 | H24: =ROUND(F24*Input!$E$13,0) -> 5215
B25: Labour - Hired | F25: ='Operating '!G136 -> 0 | H25: =ROUND(F25*Input!$E$13,0) -> 0
B26: Miscellaneous | F26: ='Operating '!G126 -> 6.67 | H26: =ROUND(F26*Input!$E$13,0) -> 1001
B27: Subtotal Operating Costs | F27: =SUM(F10:F26) -> 1076.805675 | H27: =SUM(H10:H26) -> 161522
B28: Operating Interest | F28: ='Operating '!G132 -> 40.3802 | H28: =ROUND(F28*Input!$E$13,0) -> 6057
B29: Total Operating Costs | F29: =F27+F28 -> 1117.185875 | H29: =SUM(H27:H28) -> 167579
A31: B. Fixed Costs
B32: Livestock | F32: =Fixed!D12 -> 72.36575566 | H32: =ROUND(F32*Input!$E$13,0) -> 10855
B33: Buildings | F33: =Fixed!I29 -> 35.06965218 | H33: =ROUND(F33*Input!$E$13,0) -> 5260
B34: Machinery & Equipment | F34: =Fixed!I15 -> 138.5418918 | H34: =ROUND(F34*Input!$E$13,0) -> 20781
B35: Pasture Land & Fencing | F35: =IF(Pasture!J114=Input!E13,Pasture!J123,"ERROR") -> 64.40300255 | H35: =ROUND(F35*Input!$E$13,0) -> 9660
B36: Total Fixed Costs | F36: =SUM(F32:F35) -> 310.3803021 | H36: =SUM(H32:H35) -> 46556
A38: C. Owners - Labour & Living | F38: ='Operating '!G137 -> 216 | H38: =ROUND(F38*Input!$E$13,0) -> 32400
A40: Total Cost of Production | F40: =F38+F36+F29 -> 1643.566177 | H40: =H38+H36+H29 -> 246535
D42: Profitability and Breakeven Analysis
A43: Estimated Farmgate | F43: Per Cow | H43: Total | J43: Per Acre
B44: Price ($ per cwt) | F44: =Input!E24 -> 365.65
B45: Calf weight (lbs) | F45: =Input!E23 -> 575
B46: Gross Revenue / cow | F46: =SUM((Input!E24/100)*Input!E23)*(Input!E17/100) -> 1997.363125 | H46: =ROUND(F46*Input!$E$13,0) -> 299604 | J46: =H46/(((Details!$J$40-'Extended Grazing'!$D$50-'Extended Grazing'!$F$50)/Input!$E$13)*Input!$E$13) -> 342.8931295
B48: Operating Expense Ratio | F48: =SUM(F29/F46) -> 0.5593303795
A50: Marginal Returns
B51: Over Feed Costs | F51: =SUM(F46-F10) -> 1473.138266 | H51: =ROUND(F51*Input!$E$13,0) -> 220971 | J51: =H51/(((Details!$J$40-'Extended Grazing'!$D$50-'Extended Grazing'!$F$50)/Input!$E$13)*Input!$E$13) -> 252.8986185
B52: Over Operating Costs | F52: =SUM(F46-F29) -> 880.1772502 | H52: =ROUND(F52*Input!$E$13,0) -> 132027 | J52: =H52/(((Details!$J$40-'Extended Grazing'!$D$50-'Extended Grazing'!$F$50)/Input!$E$13)*Input!$E$13) -> 151.1032937
B53: Over Operating & Fixed Costs | F53: =SUM(F46-F29-F36) -> 569.7969481 | H53: =ROUND(F53*Input!$E$13,0) -> 85470 | J53: =H53/(((Details!$J$40-'Extended Grazing'!$D$50-'Extended Grazing'!$F$50)/Input!$E$13)*Input!$E$13) -> 97.81937416
B54: Over Total Costs (Net Profit) | F54: =SUM(F46-F40) -> 353.7969481 | H54: =ROUND(F54*Input!$E$13,0) -> 53070 | J54: =H54/(((Details!$J$40-'Extended Grazing'!$D$50-'Extended Grazing'!$F$50)/Input!$E$13)*Input!$E$13) -> 60.73796872
F56: Price
A57: Breakeven (Lb. weaned calf) | F57: ($/cwt)
B58: Over Feed & Operating Costs | F58: =($F$29/(Input!$E$17/100)/(Input!$E$23/100)) -> 204.5191533
B59: Over Feed, Operating & Fixed Costs | F59: =(($F$29+$F$36)/(Input!$E$17/100)/(Input!$E$23/100)) -> 261.3393459
B60: Over Total Costs | F60: =(($F$40)/(Input!$E$17/100)/(Input!$E$23/100)) -> 300.88168
B62: Over Feed Costs | F62: =($F$10/(Input!$E$17/100)/(Input!$E$23/100)) -> 95.96793754 | H62: =($F$10/(Input!$E$24/100)) -> 143.3679362 | L62: **Ben - Do you like this 'Darren' version of B/E?? Or the revised old version above?
B63: Over Operating Costs | F63: =(($F$29-$F$10)/(Input!$E$17/100)/(Input!$E$23/100)) -> 108.5512157 | H63: =(($F$29-$F$10)/(Input!$E$24/100)) -> 162.1662836
B64: Over Livestock (Fixed) Costs | F64: =(($F$32)/(Input!$E$17/100)/(Input!$E$23/100)) -> 13.24773559 | H64: =(($F$32)/(Input!$E$24/100)) -> 19.7909902
B65: Over Building (Fixed) Costs | F65: =(($F$33)/(Input!$E$17/100)/(Input!$E$23/100)) -> 6.420073626 | H65: =(($F$33)/(Input!$E$24/100)) -> 9.591043944
B66: Over Machinery (Fixed) Costs | F66: =(($F$34)/(Input!$E$17/100)/(Input!$E$23/100)) -> 25.36236005 | H66: =(($F$34)/(Input!$E$24/100)) -> 37.88920874
B67: Over Pasture (Fixed) Costs | F67: =(($F$35)/(Input!$E$17/100)/(Input!$E$23/100)) -> 11.79002335 | H67: =(($F$35)/(Input!$E$24/100)) -> 17.6132921
B68: Over Labour - Owner Living | F68: =(($F$38)/(Input!$E$17/100)/(Input!$E$23/100)) -> 39.5423341 | H68: =($F$38/(Input!$E$24/100)) -> 59.07288391
B69: Over Total Costs | F69: =(($F$40)/(Input!$E$17/100)/(Input!$E$23/100)) -> 300.88168 | H69: =($F$40/(Input!$E$24/100)) -> 449.4916387
A71: Estimated Return on Investment (ROI) | F71: =(F46-F40)/F40 -> 0.2152617601
A72: Estimated Return on Asset (ROA) | F72: =((F46-F29)-F38-Fixed!I27-Fixed!I13-Fixed!I41)/(SUM(Details!E12:E17)/Input!E13) -> 0.07833132415
A74: Cost Summary Per Cow Per Day
B76: ="Summer grazing (based on "&Pasture!G3&" days)" -> Summer grazing (based on 135 days) | F76: =SUM((F35+F23+F24)/Pasture!G3) -> 1.174393399
B77: ="Extended grazing (based on "&Pasture!G4&" days)" -> Extended grazing (based on 35 days) | F77: =IF('Extended Grazing'!G54="",0,'Extended Grazing'!G54) -> 1.190133952
B78: ="Winter feed (based on "&Pasture!G5&" days)" -> Winter feed (based on 195 days) | F78: ='Winter Feed Rations'!K54+((Input!G46+Input!G53)/Pasture!G5) -> 2.460620921
B79: ="Yardage (based on "&Pasture!G5+Pasture!G4&" days)" -> Yardage (based on 230 days) | F79: =((H13+(Input!G59*Input!E13)+('Operating '!G118*Input!E13)+((H27-H14-H15-H18-H19-H22-H23-H24)/2*('Operating '!E131/100))+(H26*((Pasture!G4+Pasture!G5)/365))+H16+H17+(H20)+H33+H34+((H25+H38)*0.625))/(Input!E13))/(Pasture!G5+Pasture!G4) -> 2.099456293
B80: ="Total Overwinter Costs (based on "&Pasture!G5+Pasture!G4&" days)" -> Total Overwinter Costs (based on 230 days) | F80: =SUM(((F78*Pasture!G5)+(F79*(Pasture!G5+Pasture!G4))+(F77*Pasture!G4))/(Pasture!G4+Pasture!G5)) -> 4.366742241
B82: Note: This budget is only a guide and is not intended to be an in-depth study of the cost of production of this industry. Interpretation and utilization of this information is the responsibility of the user. No liability for decisions based on this publication is assumed.

Sheet Summary (2)
B1: ="Cow-Calf Standardized Operating Statement - "&Introduction!I10&"" -> Cow-Calf Standardized Operating Statement - September, 2024
B2: ="Based on a "&Input!E13&" Cow Herd" -> Based on a 150 Cow Herd
F4: Per Cow | I4: Total | K4: Your Farm
A5: = | B5: Revenue | F5: =Summary!F46 -> 1997.363125 | I5: =Summary!H46 -> 299604
A6: =" -" -> - | B6: Cost of Goods Sold (CoGS)
D7: Grain and Concentrates | F7: =SUM('Winter Feed Rations'!O40:O43)+SUM('Winter Feed Rations'!O19:O22) -> 27.12053571 | G7: =SUM(F7/$F$5) -> 0.01357816983 | I7: =ROUND(F7*Input!$E$13,0) -> 4068
D8: Forages | F8: =SUM('Winter Feed Rations'!O33:O39)+SUM('Winter Feed Rations'!O12:O18) -> 408.3629464 | G8: 0.2044510291 | I8: =ROUND(F8*Input!$E$13,0) -> 61254
D9: Salt & Minerals | F9: =SUM('Winter Feed Rations'!O44:O47)+SUM('Winter Feed Rations'!O23:O26)+SUM((((Pasture!G3+Pasture!G4)*0.07)/'Winter Feed Rations'!C26)*'Winter Feed Rations'!B26)+SUM((((Pasture!G3+Pasture!G4)*0.12)/'Winter Feed Rations'!C23)*'Winter Feed Rations'!B23) -> 47.08668831 | G9: 0.02357442556 | I9: =ROUND(F9*Input!$E$13,0) -> 7063
D10: Extended Grazing Forages | F10: =IF('Extended Grazing'!G49="ERROR","ERROR",'Extended Grazing'!G53) -> 41.65468833 | G10: 0.02085483997 | I10: =ROUND(F10*Input!$E$13,0) -> 6248
D11: Pasture Operating | F11: =Pasture!J121 -> 34.76510638 | G11: 0.01740550126 | I11: =ROUND(F11*Input!$E$13,0) -> 5215
D12: Straw | F12: ='Operating '!D26*'Operating '!D25 -> 70 | G12: 0.03504620623 | I12: =ROUND(F12*Input!$E$13,0) -> 10500
D13: Veterinary Medicine & Supplies | F13: ='Operating '!G21 -> 30.67666667 | G13: 0.01535858266 | I13: =ROUND(F13*Input!$E$13,0) -> 4602
D14: Death Loss | F14: ='Operating '!G97 -> 32.5 | G14: =SUM(F14/$F$5) -> 0.01627145289 | I14: =ROUND(F14*Input!$E$13,0) -> 4875
D15: Herd Replacement | F15: =Input!E38 -> 148.5 | G15: =SUM(F15/$F$5) -> 0.07434802322 | I15: =ROUND(F15*Input!$E$13,0) -> 22275
D16: Breeding Costs | F16: =Input!G91 -> 46.42 | G16: 0.02324064133 | I16: =ROUND(F16*Input!$E$13,0) -> 6963
D17: Manure Removal | F17: ='Operating '!G108 -> 10.83963562 | G17: 0.005426972937 | I17: =ROUND(F17*Input!$E$13,0) -> 1626
F18: =SUM(F7:F17) -> 897.9262675 | G18: 0.449555845 | I18: =SUM(I7:I17) -> 134689
A20: = | B20: Gross Margin (GM) | F20: =SUM(F5-F18) -> 1099.436858 | G20: =SUM(F20/$F$5) -> 0.550444155 | I20: =SUM(I5-I18) -> 164915
A22: =" -" -> - | B22: Direct Operating Expenses (DOE)
D23: Labour - Hired | F23: ='Operating '!G136 -> 0 | G23: =SUM(F23/$F$5) -> 0 | I23: =ROUND(F23*Input!$E$13,0) -> 0
D24: Owners - Labour & Living | F24: ='Operating '!G137 -> 216 | G24: 0.1081425792 | I24: =ROUND(F24*Input!$E$13,0) -> 32400
D25: Fuel, Maintenance & Repairs | F25: ='Operating '!G48 -> 42.7173 | G25: 0.02138684722 | I25: =ROUND(F25*Input!$E$13,0) -> 6408
D26: Utilities | F26: ='Operating '!G59 -> 11.688774 | G26: 0.005852102632 | I26: =ROUND(F26*Input!$E$13,0) -> 1753
D27: Marketing & Transportation | F27: ='Operating '!G93 -> 39.59833333 | G27: 0.01982530509 | I27: =ROUND(F27*Input!$E$13,0) -> 5940
F28: =SUM(F23:F27) -> 310.0044073 | G28: 0.1552068342 | I28: =SUM(I23:I27) -> 46501
A30: = | B30: Contribution Margin (CM) | F30: =SUM(F20-F28) -> 789.4324502 | G30: 0.3952373208 | I30: =SUM(I20-I28) -> 118414
A32: =" -" -> - | B32: Operating Overheads (OH)
D33: Insurance | F33: ='Operating '!G122 -> 18.83 | G33: 0.009427429477 | I33: =ROUND(F33*Input!$E$13,0) -> 2825
D34: Miscellaneous | F34: ='Operating '!G126 -> 6.67 | G34: 0.003339402794 | I34: =ROUND(F34*Input!$E$13,0) -> 1001
F35: =SUM(F33:F34) -> 25.5 | G35: 0.01276683227 | I35: =SUM(I33:I34) -> 3826
A37: = | B37: Earnings Before Interest Taxes Depreciation Amortization Rent (EBITDAR) or Operating Income
B38: EBITDAR | F38: =SUM(F30-F35) -> 763.9324502 | G38: =SUM(F38/$F$5) -> 0.3824704885 | I38: =SUM(I30-I35) -> 114588
A40: =" -" -> - | B40: Cost of Capital (CoC) or Depreciation/Amortization/Lease/Rent
D41: Owned Cows Amortization Costs | F41: =-CUMPRINC(Fixed!C9,Fixed!D9,Fixed!D4*Fixed!D6,1,Fixed!D9,0)/Fixed!D9 -> 55.71428571 | G41: =SUM(F41/$F$5) -> 0.02789391925 | I41: =ROUND(F41*Input!$E$13,0) -> 8357
D42: Owned Cows Opportunity Cost | F42: =Fixed!D11 -> 0 | G42: 0 | I42: =ROUND(F42*Input!$E$13,0) -> 0
D43: Pasture & Fencing Depreciation Costs | F43: =Pasture!J135 -> 9.38106383 | G43: 0.004696724252 | I43: =ROUND(F43*Input!$E$13,0) -> 1407
D44: Pasture & Fencing Amortization Costs | F44: =Pasture!J132 -> 29.57294833 | G44: 0.01480599494 | I44: =ROUND(F44*Input!$E$13,0) -> 4436
D45: Pasture & Fencing Opportunity Costs | F45: =Pasture!J145 -> 0 | G45: 0 | I45: =ROUND(F45*Input!$E$13,0) -> 0
D46: Pasture Rental | F46: =Pasture!J122 -> 59.375 | G46: =SUM(F46/$F$5) -> 0.02972669279 | I46: =ROUND(F46*Input!$E$13,0) -> 8906
D47: Building Depreciation Cost | F47: =Fixed!I27 -> 20.68 | G47: 0.01035365064 | I47: =ROUND(F47*Input!$E$13,0) -> 3102
D48: Building Amortization Costs | F48: =-CUMPRINC(Fixed!H25,Fixed!I25,Fixed!I18*Fixed!I22,1,Fixed!I25,0)/Fixed!I25 -> 11.07857143 | G48: 0.005546598558 | I48: =ROUND(F48*Input!$E$13,0) -> 1662
D49: Building Opportunity Costs | F49: =Fixed!I28 -> 0 | G49: 0 | I49: =ROUND(F49*Input!$E$13,0) -> 0
D50: Machinery & Eq. Depreciation Costs | F50: =Fixed!I13 -> 94.64 | G50: 0.04738247083 | I50: =ROUND(F50*Input!$E$13,0) -> 14196
D51: Machinery & Eq. Amortization Costs | F51: =-CUMPRINC(Fixed!H11,Fixed!I11,Fixed!I4*Fixed!I8,1,Fixed!I11,0)/Fixed!I11 -> 33.8 | G51: 0.01692231101 | I51: =ROUND(F51*Input!$E$13,0) -> 5070
D52: Machinery & Eq. Opportunity Costs | F52: =Fixed!I14 -> 0 | G52: 0 | I52: =ROUND(F52*Input!$E$13,0) -> 0
F53: =SUM(F41:F51) -> 314.2418693 | G53: 0.1573283623 | I53: =SUM(I41:I51) -> 47136
A55: = | B55: Earnings Before Interest Taxes (EBIT) | F55: =SUM(F38-F53) -> 449.6905809 | G55: 0.2251421263 | I55: =SUM(I38-I53) -> 67452
A57: =" -" -> - | B57: Interest Expenses
D58: Operating Interest | F58: ='Operating '!G132 -> 40.3802 | G58: =SUM(F58/$F$5) -> 0.02021675453 | I58: =ROUND(F58*Input!$E$13,0) -> 6057
D59: Owned Cows Interest Cost | F59: =-CUMIPMT(Fixed!C9,Fixed!D9,Fixed!D4*Fixed!D6,1,Fixed!D9,0)/Fixed!D9 -> 16.65146994 | G59: 0.008336726424 | I59: =ROUND(F59*Input!$E$13,0) -> 2498
D60: Pasture & Fencing Interest Costs | F60: =Pasture!J140 -> 25.44899039 | G60: 0.01274129379 | I60: =ROUND(F60*Input!$E$13,0) -> 3817
D61: Building Interest Cost | F61: =-CUMIPMT(Fixed!H25,Fixed!I25,Fixed!I18*Fixed!I22,1,Fixed!I25,0)/Fixed!I25 -> 3.311080754 | G61: 0.001657725985 | I61: =ROUND(F61*Input!$E$13,0) -> 497
D62: Machinery & Equipment Interest Costs | F62: =-CUMIPMT(Fixed!H11,Fixed!I11,Fixed!I4*Fixed!I8,1,Fixed!I11,0)/Fixed!I11 -> 10.10189176 | G62: 0.00505761403 | I62: =ROUND(F62*Input!$E$13,0) -> 1515
F63: =SUM(F58:F62) -> 95.89363285 | G63: 0.04801011476 | I63: =SUM(I58:I62) -> 14384
A65: = | B65: Earnings Before Taxes (EBT) | F65: =SUM(F55-F63) -> 353.7969481 | G65: 0.1771320115 | I65: =SUM(I55-I63) -> 53068
B68: Note: This budget is only a guide and is not intended to be an in-depth study of the cost of production of this industry. Interpretation and utilization of this information is the responsibility of the user. No liability for decisions based on this publication is assumed.

Sheet Charts

Sheet Charts (2)

Sheet Risk Analysis
A1: Risk & Sensitivity Analysis (Stress Test)
A2: A. Operating Costs | E2: ***Hide***
B3: Feed cost | C3: =Summary!F10 -> 524.2248588
B4: Other Operating Costs | C4: =Summary!F29-Summary!F10 -> 592.961016
B5: Subtotal | C5: =SUM(C3:C4) -> 1117.185875
A6: B. Fixed Costs | C6: =Summary!F36 -> 310.3803021
A7: C. Labour | C7: =Summary!F38 -> 216
A8: Total Costs | C8: =SUM(C5:C7) -> 1643.566177
B10: Calf Crop % | C10: =Input!E17 -> 95
B11: Calf weight (lbs) | C11: =Summary!F45 -> 575
A13: Estimated Farmgate
B14: Price ($ per cwt) | C14: =Input!E24 -> 365.65
B17: Percent Operating Cost Change | F17: Percent Sale Price Change
B18: Percent Weaning Weight Change | F18: Percent Calf Crop Change | H18: ?? Any point in this included??
C21: Percent | F21: Change from | H21: Change in | J21: Change in
C22: Change | D22: Per Head | F22: Baseline Value | H22: Profit/Cow | J22: Total Profit
B24: Operating Costs | C24: -0.05 | D24: =SUM(C5*(1+C24)) -> 1061.326581 | F24: =SUM(D24-C5) -> -55.85929374 | H24: =-SUM(D24-C5) -> 55.85929374 | J24: =SUM(H24*Input!$E$13) -> 8378.894061
B25: Sale Price ($ per cwt) | C25: 0.05 | D25: =SUM(C14*(1+C25)) -> 383.9325 | F25: =SUM(D25-C14) -> 18.2825 | H25: =SUM((D25-C14)/100)*C11 -> 105.124375 | J25: =SUM(H25*Input!$E$13) -> 15768.65625
B26: Calf Weaning Weight (lbs) | C26: 0.05 | D26: =SUM(C11+(C11*C26)) -> 603.75 | F26: =SUM(D26-C11) -> 28.75 | H26: =SUM(D26-C11)*(C14/100) -> 105.124375 | J26: =SUM(H26*Input!$E$13) -> 15768.65625
B27: Calf Crop % | C27: 0.01 | D27: =SUM(C10+(C27*100)) -> 96 | F27: =SUM(D27-C10) -> 1 | H27: =(($C$11/100)*$C$14*(($D$27-C10)/100)) -> 21.024875 | J27: =SUM(H27*Input!$E$13) -> 3153.73125
H28: =SUM(H24:H27) -> 287.1329187 | J28: =SUM(J24:J27) -> 43069.93781
B30: Gross Revenue / Cow | C30: =(($D$26/100)*$D$25*($D$27/100)) -> 2225.27277 | E30: =SUM(C34-Summary!F46) -> 227.909645 | H30: **if we add these two lines here, we can delete the rest below??
B31: Over Total Costs (Net Profit) | C31: =SUM($C$34-$D$24-$C$6-$C$7) -> 637.5658868 | E31: =SUM(C38-Summary!F54) -> 283.7689387 | H31: **or do we even need these line or the stuff below??
A33: ="Stress Test Scenario = Market Price "&IF(C25<0,"Down","Up")&" "&ABS(C25*100)&"%, Calf Crop "&IF(C27<0,"Down","Up")&" "&ABS(C27*100)&"% and Calf Weight "&IF(C26<0,"Down","Up")&" "&ABS(C26*100)&"%" -> Stress Test Scenario = Market Price Up 5%, Calf Crop Up 1% and Calf Weight Up 5%
B34: Gross Revenue / Cow | C34: =(($D$26/100)*$D$25*($D$27/100)) -> 2225.27277 | E34: =SUM(C34-Summary!F46) -> 227.909645
B35: Marginal Returns
B36: Over Operating Costs | C36: =SUM(C34-D24) -> 1163.946189 | E36: =SUM(C36-Summary!F52) -> 283.7689387
B37: Over Operating & Fixed Costs | C37: =SUM(C34-C6-D24) -> 853.5658868 | E37: =SUM(C37-Summary!F53) -> 283.7689387
B38: Over Total Costs (Net Profit) | C38: =SUM($C$34-$D$24-$C$6-$C$7) -> 637.5658868 | E38: =SUM(C38-Summary!F54) -> 283.7689387
A68: Estimated Breakeven Canadian Dollar Analysis | M68: hide???
D70: ="Est. Market Price ($/cwt Cdn) @ "&TEXT(Input!E22,"0.0000")&" Cdn per USD" -> Est. Market Price ($/cwt Cdn) @ 0.8200 Cdn per USD
D71: =SUM($F$71-10) -> 355.65 | E71: =SUM($F$71-5) -> 360.65 | F71: =Input!E24 -> 365.65 | G71: =SUM($F$71+5) -> 370.65 | H71: =SUM($F$71+10) -> 375.65
A72: Breakeven CDN Dollar ($1 Cdn = $ USD)
B73: Operating Costs | D73: =SUM((D71/100)*Input!$E$23*Input!$E$22)/Summary!$F$29 -> 1.500994407 | E73: =SUM((E71/100)*Input!$E$23*Input!$E$22)/Summary!$F$29 -> 1.522096536 | F73: =SUM((F71/100)*Input!$E$23*Input!$E$22)/Summary!$F$29 -> 1.543198665 | G73: =SUM((G71/100)*Input!$E$23*Input!$E$22)/Summary!$F$29 -> 1.564300793 | H73: =SUM((H71/100)*Input!$E$23*Input!$E$22)/Summary!$F$29 -> 1.585402922
B74: Operating & Labour Costs | D74: =SUM((D71/100)*Input!$E$23*Input!$E$22)/(Summary!$F$29+Summary!$F$38) -> 1.257806418 | E74: =SUM((E71/100)*Input!$E$23*Input!$E$22)/(Summary!$F$29+Summary!$F$38) -> 1.275489624 | F74: =SUM((F71/100)*Input!$E$23*Input!$E$22)/(Summary!$F$29+Summary!$F$38) -> 1.29317283 | G74: =SUM((G71/100)*Input!$E$23*Input!$E$22)/(Summary!$F$29+Summary!$F$38) -> 1.310856035 | H74: =SUM((H71/100)*Input!$E$23*Input!$E$22)/(Summary!$F$29+Summary!$F$38) -> 1.328539241
B75: Operating, Fixed & Labour Costs | D75: =SUM((D71/100)*Input!$E$23*Input!$E$22)/(Summary!$F$40) -> 1.020275164 | E75: =SUM((E71/100)*Input!$E$23*Input!$E$22)/(Summary!$F$40) -> 1.034618973 | F75: =SUM((F71/100)*Input!$E$23*Input!$E$22)/(Summary!$F$40) -> 1.048962782 | G75: =SUM((G71/100)*Input!$E$23*Input!$E$22)/(Summary!$F$40) -> 1.063306592 | H75: =SUM((H71/100)*Input!$E$23*Input!$E$22)/(Summary!$F$40) -> 1.077650401
A77: ="Breakeven Canadian Dollar = (Est. Market Price ($/lb) x Calf Wt. (lbs) x $ Cdn per USD) / Cost (eg. ($"&TEXT(F71/100,"0.0000")&" x "&ROUND(Input!E23,0)&" lbs x $"&TEXT(Input!E22,"0.0000")&") / $"&TEXT(Summary!F40,"0.00")&") = $"&TEXT(F75,"0.0000")&")" -> Breakeven Canadian Dollar = (Est. Market Price ($/lb) x Calf Wt. (lbs) x $ Cdn per USD) / Cost (eg. ($3.6565 x 575 lbs x $0.8200) / $1643.57) = $1.0490)
B79: Risk Management Analysis
A109: Note: This budget is only a guide and is not intended as an in-depth study of the cost of production of this industry. Interpretation and utilization of this information is the responsibility of the user.

Sheet Input
A1: Cow-Calf Production Costs - Herd Input
A3: Assumptions
A4: 1. This budget outlines the cost of production for a cow-calf operation.
A5: 2. Buildings and equipment are valued at new cost.
A6: 3. All feed is purchased.
A7: 4. Manure removal is contracted out.
A8: 5. Replacement heifers are valued at fair market value
A9: ="6. This budget assumes an average weaning weight of "&Input!E23&" lbs. (steer calves "&E18&" lbs and heifer calves "&E20&" lbs.)" -> 6. This budget assumes an average weaning weight of 575 lbs. (steer calves 600 lbs and heifer calves 550 lbs.)
A11: Cow-Calf Production Costs - Herd Profile
E12: Total
A13: Number of Cows | E13: 150 | F13: head
A14: Average Cow Weight | E14: 1350 | F14: lbs
A15: Number of Bulls | E15: =IF(E13<151,E13/30,IF(E13<241,(E13/30)+1,(E13/30)+2)) -> 5 | F15: bulls
A17: Calf Crop | E17: 95 | F17: %
A18: Steer Calf Weight | E18: 600 | F18: lbs
A19: Steer Calf Market Price | E19: 380 | F19: /cwt
A20: Heifer Calf Weight | E20: 550 | F20: lbs
A21: Heifer Calf Market Price | E21: 350 | F21: /cwt
A22: $1 Canadian Dollar | D22: ="($"&TEXT(1/E22,"#.####")&" CDN )" -> ($1.2195 CDN ) | E22: 0.82 | F22: / $1 USD
A23: Average Calf Weight | E23: =AVERAGE(E18,E20) -> 575 | F23: lbs
A24: Weighted Average Calf Market Price | E24: =ROUND((((E19*(E18/100))+(E21*(E20/100)))/2)/(E23/100),2) -> 365.65 | F24: /cwt
A26: Cow-Calf Production Costs - Herd Replacement
A27: Herd Replacement (Cows)
A28: Average Value/Cow | E28: 2600 | F28: ="(bred cow to steer calf price ratio = "&TEXT((E28/(E18*(E19/100))),"#.##")&")" -> (bred cow to steer calf price ratio = 1.14)
I29: =" (bred cow to steer calf price ratio range is often 1.1 to 1.5 = estimated cow value range of $"&TEXT(1.1*(($E$18*($E$19/100))),"#,###")&" to $"&TEXT(1.5*(($E$18*($E$19/100))),"#,###")&")" -> (bred cow to steer calf price ratio range is often 1.1 to 1.5 = estimated cow value range of $2,508 to $3,420)
A30: Cull Cow Market Price | E30: 175 | F30: /cwt
A31: Cow Mortality Rate | E31: 1.25 | F31: %
A33: Herd Replacement (Cows)
B34: Replacement Cost/Heifer | E34: 3600
B35: Cull Cow Market Value | D35: - | E35: =SUM(E14/100)*E30 -> 2362.5
E36: ="("&E14&"lb cow / 100 x $"&E30&"/cwt cull price = $"&TEXT(E35,"0.00")&")" -> (1350lb cow / 100 x $175/cwt cull price = $2362.50)
B37: Cow replacement rate (%) | D37: x | E37: 12
D38: = | E38: =ROUND((E34-E35)*(E37),2)/100 -> 148.5 | F38: /cow
A40: Cow-Calf Production Costs - Breeding
A41: Breeding Costs | G41: Cost Per Cow
A42: Feed for Bulls
A43: Hay | B43: Good Quality (tons/yr) | E43: 4
B44: Hay Price ($/ton) | D44: x | E44: ='Winter Feed Rations'!B13 -> 115
B45: Number of Bulls | D45: x | E45: =Input!E15 -> 5
D46: ÷ | E46: =Input!E13 -> 150 | F46: cows = | G46: =ROUND(((E43*E44)*E45)/E46,2) -> 15.33
A48: Barley | B48: Per Bull (lbs/day) | E48: 7
B49: Days/Year on Barley | D49: x | E49: 120
B50: Pounds per bushel | D50: ÷ | E50: 48
B51: Barley Price ($/bu) | D51: x | E51: ='Winter Feed Rations'!B19 -> 4.5
B52: Number of Bulls | D52: x | E52: =Input!E15 -> 5
D53: ÷ | E53: =Input!E13 -> 150 | F53: cows = | G53: =ROUND(((E48*E49/E50)*(E51)*E52)/E53,2) -> 2.63
F54: = Total | G54: =ROUND(G46+G53,2) -> 17.96
A55: Straw for Bulls
B56: Number of Tons/Bull/Year | E56: 1 | F56: tons/bull/year
B57: Hay Price ($/ton) | D57: x | E57: ='Operating '!D25 -> 70 | F57: /ton
B58: Number of Bulls | D58: x | E58: =Input!E15 -> 5 | F58: bulls
D59: ÷ | E59: =Input!E13 -> 150 | F59: cows = | G59: =ROUND((Input!E56*'Operating '!D25*Input!E15)/Input!E13,2) -> 2.33
A60: Vet & Medicine for Bulls
B61: Semen Test | E61: 60
B62: Health Management Costs | D62: + | E62: 10
B63: Number of Bulls | D63: x | E63: =Input!E15 -> 5 | F63: bulls
D64: ÷ | E64: =Input!E13 -> 150 | F64: cows = | G64: =ROUND(((E61+E62)*E63)/E64,2) -> 2.33
A65: Herd Replacement (Bulls)
B66: Original Cost/Bull | E66: 5000
B67: Price Received/Cull Bull | D67: - | E67: 3500
B68: Bull Replacement Rate (%) | D68: x | E68: 25
B69: Number of Bulls | D69: x | E69: =Input!E15 -> 5 | F69: bulls
D70: ÷ | E70: =Input!E13 -> 150 | F70: cows = | G70: =ROUND(((E66-E67)*E68)*E69/E70,2)/100 -> 12.5
A71: Investment in Bulls
B72: Original Cost/Bull | E72: =Input!E66 -> 5000
B73: Price Received/Cull Bull | D73: + | E73: =Input!E67 -> 3500
B74: Average - charged on 1/2 | D74: ÷ | E74: 2
B75: Investment Rate | D75: x | E75: 4
B76: Number of Bulls | D76: x | E76: =Input!E15 -> 5
D77: ÷ | E77: =Input!E13 -> 150 | F77: cows = | G77: =ROUND((((E72+E73)/E74)*E75)*E76/E77,2)/100 -> 5.6667
A78: Pasture Costs for Bulls
B79: Pasture Cost ($/season) | E79: =Pasture!E92 -> 168.7770429 | F79: /bull pasture cost
B80: Number of Bulls | D80: x | E80: =Input!E15 -> 5 | F80: bulls
D81: ÷ | E81: =Input!E13 -> 150 | F81: cows = | G81: =ROUND((E79*E80)/E81,2) -> 5.63
A82: Other Breeding Alternatives
A83: Artificial Insemination
B84: Cost/Cow or Heifer Exposed | E84: 0
B85: Number Inseminated | D85: x | E85: 0
D86: ÷ | E86: =Input!E13 -> 150 | F86: cows = | G86: =ROUND((E84*E85)/E86,2) -> 0
A87: Community Pasture
B88: Cost/Cow or Heifer Exposed | E88: 0
B89: Number of Cows placed in Pasture | E89: 0
D90: ÷ | E90: =Input!E13 -> 150 | F90: cows = | G90: =ROUND((E88*E89)/E90,2) -> 0
F91: = Total | G91: =ROUND(G54+G59+G64+G70+G77+G81+G86+G90,2) -> 46.42
A93: Cow-Calf Production Costs - Facilities
A95: Waterers | C95: Cows per waterer | E95: 100
C96: Cost per waterer | E96: 2000 | F96: = Total | G96: =ROUNDUP((E13+E15)/E95,0)*E96 -> 4000
A98: Windbreak Fence | C98: Feet per Cow | E98: 1.5
C99: Cost per Foot | E99: 25 | F99: = Total | G99: =ROUNDUP(($E$13+$E$15)*E98,1)*E99 -> 5812.5
A101: Feedlot Fence/Bunk | C101: Feet per Cow | E101: 2
C102: Cost per Foot | E102: 15 | F102: = Total | G102: =ROUNDUP(($E$13+$E$15)*E101,1)*E102 -> 4650
A104: Calf Shelters | C104: Calves per shelter | E104: 50
C105: Cost per shelter | E105: 3000 | F105: = Total | G105: =ROUNDUP(($E$13+$E$15)/E104,1)*E105 -> 9300

Sheet Operating
A1: Cow-Calf Production Costs - Operating
A3: Veterinary Medicine & Supplies
A4: Calf Medication | G4: Cost Per Cow
A5: Blackleg (8 way vaccine) | D5: 1 | E5: ="/head x "&Input!E17&"% calf crop = " -> /head x 95% calf crop = | G5: =SUM(D5*(Input!E17/100)) -> 0.95
A6: Tags (CCIA & ID) | D6: 4.8 | E6: ="/head x "&Input!E17&"% calf crop = " -> /head x 95% calf crop = | G6: =SUM(D6*(Input!E17/100)) -> 4.56
A7: Cow Medication
A8: 5-Way fetal protection | G8: 5
A9: Scourguard | G9: 5
A10: Internal/external parasite control, antibiotics, etc. | G10: 4
A11: Vitamin A & D | G11: 0.5
A12: Herd Health Program
A13: Professional Services | D13: 8 | E13: hours @
A14: Rate | C14: x | D14: 180 | E14: /hour
C15: ÷ | D15: =Input!E13 -> 150 | E15: cows = | G15: =SUM(D13*D14)/Input!E13 -> 9.6
A16: Transportation
A17: Total Kilometers (round trip) | D17: 80 | E17: km
A18: Rate | C18: x | D18: 1 | E18: /km
A19: Number of yearly visits | D19: 2
C20: ÷ | D20: =Input!E13 -> 150 | E20: cows = | G20: =SUM(D17*D18*D19)/Input!E13 -> 1.066666667
F21: = Total | G21: =SUM(G20+G15+G11+G10+G9+G8+G6+G5) -> 30.67666667
A23: Other Operating Costs
A24: Straw
A25: Cost ($/Ton) | D25: 70
A26: Number of Tons/Cow/Year | D26: 1
A28: Fuel, Oil, Repairs & Maintenance
A29: Machinery Fuel Cost | G29: Cost Per Cow
A30: Tractor with Loader PTO hp | E30: 120
A31: Average HP required | D31: ÷ | E31: 2.5
A32: Litres fuel / Hour / HP | D32: x | E32: 0.1665576
A33: Tractor Hours Per Day (avg) | D33: x | E33: 1.5
A34: Diesel Fuel Cost / litre | D34: x | E34: 1.1
A35: Days on feed | D35: x | E35: =IF(Pasture!G10=365,Pasture!G5-Pasture!G7,"ERROR") -> 195
A36: Annual fuel cost | E36: =IF(E35="ERROR","ERROR",ROUND(((E30/E31)*E32*E33*E34*E35),2)) -> 2572.32
D37: ÷ | E37: =Input!E13 -> 150 | F37: cows = | G37: =IF(E35="ERROR","ERROR",SUM(E36/E37)) -> 17.1488
A38: Machinery repair & maintenance
A39: Machinery capital cost | E39: =SUM(Fixed!J48:J63) -> 177500
A40: Machinery Repair (% of investment cost) | D40: x | E40: 1.2 | F40: %
A41: Oil, repairs & maintenance | D41: = | E41: =SUM(E39*(E40/100)) -> 2130
D42: ÷ | E42: =Input!E13 -> 150 | F42: cows = | G42: =SUM(E41/E42) -> 14.2
A43: Building repair & maintenance
A44: Building capital cost | E44: =SUM(Fixed!E48:E63) -> 77512.5
A45: Building maintenance (% of inv.cost) | D45: x | E45: 2.2
A46: Repairs & maintenance | D46: = | E46: =SUM(E44*(E45/100)) -> 1705.275
D47: ÷ | E47: =Input!E13 -> 150 | F47: cows = | G47: =SUM(E46/E47) -> 11.3685
F48: = Total | G48: =IF(G37="ERROR","ERROR",SUM(G47+G42+G37)) -> 42.7173
A50: Other Operating Costs
A51: Utilities | G51: Cost Per Cow
A52: Hydro | C52: Rate ($/kWh) | E52: 0.09587
B53: 25 | C53: kWh per cow | D53: = | E53: =SUM(B53*Input!E13*E52) -> 359.5125
B54: =ROUNDUP((Input!E13+Input!E15)/Input!E95,0) -> 2 | C54: 1000 watt waterer | E54: =SUM(B54*18)*(Pasture!G4+Pasture!G5)*E52 -> 793.8036
D55: Total Hydro = | E55: =SUM(E53:E54) -> 1153.3161
D56: ÷ | E56: =Input!E13 -> 150 | F56: cows = | G56: =IF(E54="ERROR","ERROR",SUM(E55/E56)) -> 7.688774
A57: Telephone | E57: 600
D58: ÷ | E58: =Input!E13 -> 150 | F58: cows = | G58: =IF(E56="ERROR","ERROR",SUM(E57/E58)) -> 4
F59: = Total | G59: =SUM(G58+G56) -> 11.688774
A61: Marketing & Transportation | G61: Cost Per Cow
A62: Trucking
A63: Calves: | B63: Number marketed per year | E63: =ROUND(Input!E13*Input!E17/100,0) -> 143
B64: Truck Capacity (lbs/load) | E64: 54000
B65: Number of head per load - calves | E65: =E64/Input!E23 -> 93.91304348
B66: Loads | D66: = | E66: =ROUNDUP(('Operating '!E63)/'Operating '!E65,0) -> 2
B67: Distance (miles) | D67: x | E67: 75
B68: Rate / Loaded Mile | D68: x | E68: 7
D69: ÷ | E69: =Input!E13 -> 150 | F69: cows = | G69: =SUM(E67*E68*E66)/E69 -> 7
A71: Cull cows: | B71: Number per year | E71: =ROUND(Input!E13*Input!E37/100,0) -> 18
B72: Number cows died | D72: - | E72: =ROUND(Input!E13*Input!E31/100,0) -> 2
B73: Number of head per load - cull cows | E73: =E64/Input!E14 -> 40
B74: Loads | D74: = | E74: =ROUNDUP(('Operating '!E71-'Operating '!E72)/'Operating '!E73,0) -> 1
B75: Distance (miles) | D75: x | E75: =E67 -> 75
B76: Rate / Loaded Mile | D76: x | E76: =E68 -> 7
D77: ÷ | E77: =Input!E13 -> 150 | F77: cows = | G77: =SUM(E75*E76*E74)/E77 -> 3.5
A78: MBP Levy, selling commission & insurance
A79: Calves | B79: MBP/NCO Levy ($/Head) | D79: + | E79: 5.5
B80: WLPIP Insurance Premium ($/cwt) | E80: 0
B81: Average Calf Weight (cwt) | D81: x | E81: =Input!E23/100 -> 5.75
A82: + | B82: WLPIP Insurance Premium | D82: = | E82: ='Operating '!E80*E81 -> 0
B83: Insurance per Head | D83: + | E83: 1.75
B84: Commission on Calves | E84: 20
B85: Number marketed per year | D85: x | E85: =ROUND(Input!E13*Input!E17/100,0) -> 143
D86: ÷ | E86: =Input!E13 -> 150 | F86: cows = | G86: =((E79+E82+E83+E84)*E85)/E86 -> 25.97833333
A88: Cull Cows | B88: MBP/NCO Levy ($/Head) | E88: =E79 -> 5.5
B89: Insurance per Head | D89: + | E89: =E83 -> 1.75
B90: Commission on Cows | E90: 22
B91: Number marketed per year | D91: x | E91: =ROUND(((Input!E13*Input!E37)/100)-((Input!E13*Input!E31)/100),0) -> 16
D92: ÷ | E92: =Input!E13 -> 150 | F92: cows = | G92: =(((E88+E89+E90)*E91)/E92) -> 3.12
F93: = Total | G93: =G69+G77+G86+G92 -> 39.59833333
A95: Death Loss | G95: Cost Per Cow
B96: Cow investment ($/Head) | D96: x | E96: =Input!E28 -> 2600
B97: Cow Mortality Rate (%) | D97: x | E97: =Input!E31 -> 1.25 | F97: = | G97: =ROUND(E96*E97,2)/100 -> 32.5
A99: Manure Removal | G99: Cost Per Cow
A100: Number winter feeding days | E100: =Pasture!G5 -> 195
A101: Non-confined winter feeding - feed delivered | D101: - | E101: =Pasture!G6 -> 130
A102: Non-confined winter feeding - bale grazing | D102: - | E102: =Pasture!G7 -> 0
A103: Days confined winter feeding | D103: = | E103: =IF(Pasture!G10=365,SUM(E100-E101-E102),"ERROR") -> 65
A104: Manure volume produced (m3/cow/day) | D104: x | E104: 0.034
A105: Manure volume (m3) | D105: = | E105: =IF(E103="ERROR","ERROR",SUM(E103*E104)) -> 2.21
A106: Manure volume shrinkage (%) | D106: x | E106: 75
A107: Conversion - yd3 per m3 | D107: x | E107: 1.30795
A108: Manure removal & application ($/yd3) | D108: x | E108: 15 | F108: = | G108: =IF(E103="ERROR","ERROR",SUM(E105*(1-(E106/100))*E107*E108)) -> 10.83963562
A110: Insurance | G110: Cost Per Cow
A111: Cow Investment ($/Head) | E111: =Input!E28 -> 2600
A112: Cost per $100 Livestock | D112: x | E112: 0.45
D113: ÷ | E113: 100 | F113: = | G113: =(E111*E112)/E113 -> 11.7
A115: Buildings & Equipment Investment | E115: =SUM(Fixed!E48:E63)+SUM(Fixed!J48:J63) -> 255012.5
A116: Cost per $100 Buildings | D116: x | E116: 0.4
D117: ÷ | E117: 100
D118: ÷ | E118: =Input!E13 -> 150 | F118: cows = | G118: =ROUND(E115*(E116/E117)/E118,2) -> 6.8
A120: Additional coverage for liability | E120: 49
D121: ÷ | E121: =Input!E13 -> 150 | F121: cows = | G121: =ROUND(E120/E121,2) -> 0.33
F122: = Total | G122: =ROUND(G113+G118+G121,2) -> 18.83
A124: Miscellaneous | G124: Cost Per Cow
B125: Total office expenses | E125: 1000
D126: ÷ | E126: =Input!E13 -> 150 | F126: cows = | G126: =ROUND(E125/E126,2) -> 6.67
A128: Operating Interest
B129: Subtotal operating costs | E129: =Summary!F27 -> 1076.805675
B130: Average - charged on 1/2 | D130: ÷ | E130: 2
B131: Operating Interest Rate | D131: x | E131: 7.5
F132: = Total | G132: =ROUND((E129/E130)*(E131),2)/100 -> 40.3802
A134: Labour Costs | G134: Cost Per Cow
B135: Labour Rate ($/hour) | E135: 27
B136: Hired - Labour Hours/Cow/Year | E136: 0 | F136: = | G136: =ROUND(E136*E135,2) -> 0
B137: Owner - Labour Hours/Cow/Year | E137: 8 | F137: = | G137: =ROUND(E137*E135,2) -> 216
F138: = Total | G138: =SUM(G136:G137) -> 216

Sheet Pasture
A1: Annual Days on Pasture and Winter Feeding
A2: Total Days Per Year | G2: 365
A3: Pasture Grazing | C3: =IF(G3>365,"ERROR - More Than 365 Days",IF(G3<0,"ERROR, less than 0","")) ->  | F3: minus | G3: 135 | H3: days | I3: =ROUND(G3/30,2) -> 4.5 | J3: months
A4: Extended Grazing | C4: =IF(G4>(365-G3),"ERROR - Too Many Days",IF(G4<0,"ERROR, less than 0","")) ->  | F4: minus | G4: 35 | H4: days
A5: Total Winter Feeding | C5: (see Ration Worksheet for more detail) | F5: = | G5: =IF(SUM(G2-(G3+G4))<0,"ERROR",SUM(G2-(G3+G4))) -> 195 | H5: days
A6: Non-confined winter feeding (feed delivered to pasture) | F6: minus | G6: 130 | H6: days
A7: Non-confined winter feeding (bale grazing) | F7: minus | G7: 0 | H7: days
A8: Confined winter feeding - feed delivered | F8: = | G8: =IF(G5="ERROR","ERROR",IF(SUM(G5-(G6+G7))<0,0,SUM(G5-(G6+G7)))) -> 65 | H8: days
F10: =IF(G10="ERROR","",IF(G10>365,"ERROR - More Than 365 Days",IF(G10<365,"ERROR - Less Than 365 Days",""))) ->  | G10: =IF(G5="ERROR","ERROR",SUM(G4+G3+G6+G7+G8)) -> 365 | H10: Total Days
A12: Pasture Options - Input
A13: Land Base | E13: Marginal Pasture | F13: Improved Pasture | G13: Crown Lands | H13: Community Pasture | I13: Rented Pasture
A14: Number of cows pastured/season | E14: =Input!E13 -> 150 | F14: =Input!E13 -> 150 | G14: =Input!E13 -> 150 | H14: =Input!E13 -> 150 | I14: =Input!E13 -> 150
A15: Number of cows/quarter | E15: 32 | F15: 94 | G15: 12 | H15: - | I15: 32
A16: Number of pasture acres/head | E16: =SUM(160/E15) -> 5 | F16: =SUM(160/F15) -> 1.70212766 | G16: =SUM(160/G15) -> 13.33333333 | H16: - | I16: =SUM(160/I15) -> 5
A17: Total Acres Required | E17: =ROUND(E16*E14,0) -> 750 | F17: =ROUND(F16*F14,0) -> 255 | G17: =ROUND(G16*G14,0) -> 2000 | H17: - | I17: =ROUND(I16*I14,0) -> 750
A19: Rental Rate ($/quarter) | E19: - | F19: - | G19: 662 | H19: - | I19: 4750
A20: Rate ($/cow/day) | E20: - | F20: - | G20: - | H20: 0.9 | I20: -
A21: Rate ($/calf/season) | E21: - | F21: - | G21: - | H21: 55 | I21: -
A23: Pasture Land Value
B24: ($/acre, excl. fence, water, facilities) | E24: 800 | F24: 1800 | G24: - | H24: - | I24: -
B25: Owned Land Equity | D25: 0.75
B26: Land Financed | D26: =SUM(1-D25) -> 0.25
B27: Land Opportunity Cost (Investment Rate) | D27: 0
B28: Land cost ($/acre)
B29: Finance Rate & Term | C29: 0.065 | D29: 25 | E29: years
B30: Principle & Interest Cost | E30: =-PMT(C29,D29,E24*D26,0) -> 16.39629622 | F30: =-PMT(C29,D29,F24*D26,0) -> 36.89166649 | G30: - | H30: - | I30: -
B31: Owned Land Opportunity Cost | E31: =SUM(E24*D25)*(D27) -> 0 | F31: =SUM(F24*D25)*(D27) -> 0 | G31: - | H31: - | I31: -
B32: Total Cost ($/acre) | E32: =SUM(E30:E31) -> 16.39629622 | F32: =SUM(F30:F31) -> 36.89166649 | G32: - | H32: - | I32: -
A34: Pasture Fencing - Input
E35: Fence Cost Per Mile
E36: Materials | F36: Labour | G36: Equipment | H36: Total
B37: Barbed Wire (4 strand) | E37: 4812 | F37: 1118 | G37: 1514 | H37: =SUM(E37:G37) -> 7444
B38: Electric Wire (4 strand) | E38: 2389 | F38: 500 | G38: 635 | H38: =SUM(E38:G38) -> 3524
B39: Electric Wire (2 strand) | E39: 2042 | F39: 412 | G39: 561 | H39: =SUM(E39:G39) -> 3015
B40: Electric Wire (1 strand) | E40: 1730 | F40: 370 | G40: 523 | H40: =SUM(E40:G40) -> 2623
B41: Page Wire (w/optional top wire) | E41: 9139 | F41: 1974 | G41: 2527 | H41: =SUM(E41:G41) -> 13640
E43: Marginal Pasture | F43: Improved Pasture | G43: Crown Lands
E44: Fence Miles per Quarter (160 ac)
B45: Barbed Wire (4 strand) | E45: 2 | F45: 0 | G45: 1
B46: Electric Wire (4 strand) | E46: 0 | F46: 0 | G46: 0
B47: Electric Wire (2 strand) | E47: 0 | F47: 0 | G47: 0
B48: Electric Wire (1 strand) | E48: 0 | F48: 4 | G48: 0
B49: Page Wire (w/optional top wire) | E49: 0 | F49: 0 | G49: 0
E51: Cost Per Quarter (160 acres)
B52: Barbed Wire (4 strand) | E52: =SUM(E37:G37)*E45 -> 14888 | F52: =SUM(E37:G37)*F45 -> 0 | G52: =SUM(E37:G37)*G45 -> 7444
B53: Electric Wire (4 strand) | E53: =SUM(E38:G38)*E46 -> 0 | F53: =SUM(E38:G38)*F46 -> 0 | G53: =SUM(E38:G38)*G46 -> 0
B54: Electric Wire (2 strand) | E54: =SUM(E39:G39)*E47 -> 0 | F54: =SUM(E39:G39)*F47 -> 0 | G54: =SUM(E39:G39)*G47 -> 0
B55: Electric Wire (1 strand) | E55: =SUM(E40:G40)*E48 -> 0 | F55: =SUM(E40:G40)*F48 -> 10492 | G55: =SUM(E40:G40)*G48 -> 0
B56: Page Wire (w/optional top wire) | E56: =SUM(E41:G41)*E49 -> 0 | F56: =SUM(E41:G41)*F49 -> 0 | G56: =SUM(E41:G41)*G49 -> 0
E57: =SUM(E52:E56) -> 14888 | F57: =SUM(F52:F56) -> 10492 | G57: =SUM(G52:G56) -> 7444
B59: Total Fence Cost | E59: =ROUND((E17/160)*E57,0) -> 69788 | F59: =ROUND((F17/160)*F57,0) -> 16722 | G59: =ROUND((G17/160)*G57,0) -> 93050
B60: Total Fence Investment ($/acre) | E60: =ROUND(E59/E17,0) -> 93 | F60: =ROUND(F59/F17,0) -> 66 | G60: =ROUND(G59/G17,0) -> 47
B61: Residual Value (End of Useful Life) | E61: 0.1 | F61: 0.1 | G61: 0.1
B62: Useful Life (years) | D62: 20
B63: Owned Fence Equity | D63: 0.75
B64: Fence Financed | D64: =SUM(1-D63) -> 0.25
B65: Fencing Cost ($/acre)
B66: Finance Rate & Term | C66: 0.07 | D66: 7 | E66: years
B67: Principle & Interest Cost | E67: =-PMT($C$66,$D$66,E60*$D$64,0) -> 4.314112356 | F67: =-PMT($C$66,$D$66,F60*$D$64,0) -> 3.061628124 | G67: =-PMT($C$66,$D$66,G60*$D$64,0) -> 2.180250331
B68: Fencing Depreciation Cost | E68: =(E60-(E60*$E$61))/$D$62 -> 4.185 | F68: =(F60-(F60*$F$61))/$D$62 -> 2.97 | G68: =(G60-(G60*$G$61))/$D$62 -> 2.115
B69: Owned Fence Opportunity Cost | E69: =SUM(E60*D63)*(D27) -> 0 | F69: =SUM(F60*D63)*(D27) -> 0 | G69: =SUM(G60*D63)*(D27) -> 0
B70: Total Cost | E70: =SUM(E67:E69) -> 8.499112356 | F70: =SUM(F67:F69) -> 6.031628124 | G70: =SUM(G67:G69) -> 4.295250331
A72: Fence Maintenance (% of investment cost) | E72: 0.02
A74: Pasture Options - Cost Summary
A75: A. Operating Costs | E75: Marginal Pasture | F75: Improved Pasture | G75: Crown Lands | H75: Community Pasture | I75: Rented Pasture
B76: Land Development ($/acre) | E76: 0 | F76: 17.75 | G76: - | H76: - | I76: -
B77: Fertilizer - Annual ($/acre) | E77: 0 | F77: 20 | G77: - | H77: - | I77: -
B78: Herbicide ($/acre) | E78: 1 | F78: 1 | G78: 0 | H78: - | I78: 0
B79: Fence Maintenance ($/acre) | E79: =SUM(E60*$E$72) -> 1.86 | F79: =SUM(F60*$E$72) -> 1.32 | G79: =SUM(G60*$E$72) -> 0.94 | H79: - | I79: 0
B80: Pasture Rental | E80: - | F80: - | G80: =SUM(G19/160) -> 4.1375 | H80: - | I80: =SUM(I19/160) -> 29.6875
B81: Taxes ($/acre) | E81: 6 | F81: 10 | G81: - | H81: - | I81: -
B82: Miscellaneous ($/acre) | E82: 0 | F82: 0 | G82: 0 | H82: - | I82: 0
B83: Total Operating Costs ($/acre) | E83: =SUM(E76:E82) -> 8.86 | F83: =SUM(F76:F82) -> 50.07 | G83: =SUM(G76:G82) -> 5.0775 | H83: - | I83: =SUM(I76:I82) -> 29.6875
A84: B. Fixed Costs
B85: Land ($/acre) | E85: =E32 -> 16.39629622 | F85: =F32 -> 36.89166649 | G85: - | H85: - | I85: -
B86: Fencing ($/acre) | E86: =E70 -> 8.499112356 | F86: =F70 -> 6.031628124 | G86: =G70 -> 4.295250331 | H86: - | I86: -
B87: Total Fixed Costs ($/acre) | E87: =SUM(E85:E86) -> 24.89540857 | F87: =SUM(F85:F86) -> 42.92329461 | G87: =SUM(G85:G86) -> 4.295250331 | H87: - | I87: =SUM(I85:I86) -> 0
A89: Total Operating and Fixed ($/acre) | E89: =SUM(E87+E83) -> 33.75540857 | F89: =SUM(F87+F83) -> 92.99329461 | G89: =SUM(G87+G83) -> 9.372750331 | H89: - | I89: =SUM(I87+I83) -> 29.6875
A90: Total Operating and Fixed ($/year) | E90: =SUM(E89*E17) -> 25316.55643 | F90: =SUM(F89*F17) -> 23713.29013 | G90: =SUM(G89*G17) -> 18745.50066 | H90: =SUM(H92*Input!E13) -> 26090 | I90: =SUM(I89*I17) -> 22265.625
A92: ="Cost per cow ("&Pasture!G3&" days pasture)" -> Cost per cow (135 days pasture) | E92: =E89*E16 -> 168.7770429 | F92: =F89*F16 -> 158.2864589 | G92: =G89*G16 -> 124.9700044 | H92: =SUM(H20*G3)+((H21*ROUND(Input!E13*Input!E17/100,0))/Input!E13) -> 173.9333333 | I92: =I89*I16 -> 148.4375
A93: ="Cost per cow per day ("&Pasture!G3&" days pasture)" -> Cost per cow per day (135 days pasture) | E93: =SUM(E92/$G$3) -> 1.250200318 | F93: =SUM(F92/$G$3) -> 1.172492288 | G93: =SUM(G92/$G$3) -> 0.9257037364 | H93: =SUM(H92/$G$3) -> 1.288395062 | I93: =SUM(I92/$G$3) -> 1.099537037
A95: Pasture Options - Carrying Capacity and AUM Analysis
A96: Carrying Capacity
A97: Number of head pastured/acre | E97: =ROUND(E14/E17,3) -> 0.2 | F97: =ROUND(F14/F17,3) -> 0.588 | G97: =ROUND(G14/G17,2) -> 0.08 | H97: - | I97: =ROUND(I14/I17,2) -> 0.2
A98: Metabolic Animal Unit Value | E98: =ROUND((Input!$E$14^0.75/1000^0.75),2) -> 1.25 | F98: =ROUND((Input!$E$14^0.75/1000^0.75),2) -> 1.25 | G98: =ROUND((Input!$E$14^0.75/1000^0.75),2) -> 1.25 | H98: =ROUND((Input!$E$14^0.75/1000^0.75),2) -> 1.25 | I98: =ROUND((Input!$E$14^0.75/1000^0.75),2) -> 1.25
A100: AUM Analysis
A101: Total Animal Unit Months (AUM's) | E101: =ROUND(E14*(E98)*$I$3,0) -> 844 | F101: =ROUND(F14*(F98)*$I$3,0) -> 844 | G101: =ROUND(G14*(G98)*$I$3,0) -> 844 | H101: =ROUND(H14*(H98)*$I$3,0) -> 844 | I101: =ROUND(I14*(I98)*$I$3,0) -> 844
A102: Total AUM's - Available Per Acre | E102: =ROUND(E101/E17,2) -> 1.13 | F102: =ROUND(F101/F17,2) -> 3.31 | G102: =ROUND(G101/G17,2) -> 0.42 | I102: =ROUND(I101/I17,2) -> 1.13
A103: Pasture Investment per AUM | E103: =(E24*E17)/E101 -> 710.9004739 | F103: =(F24*F17)/F101 -> 543.8388626 | G103: - | H103: - | I103: -
A104: Total Pasture Cost Per AUM | E104: =ROUND(E90/E101,2) -> 30 | F104: =ROUND(F90/F101,2) -> 28.1 | G104: =ROUND(G90/G101,2) -> 22.21 | H104: =ROUND(H90/H101,2) -> 30.91 | I104: =ROUND(I90/I101,2) -> 26.38
A106: Pasture Efficiency Analysis
A107: Pounds liveweight per acre | E107: =Input!$E$14*E97 -> 270 | F107: =Input!$E$14*F97 -> 793.8 | G107: =Input!$E$14*G97 -> 108 | H107: - | I107: =Input!$E$14*I97 -> 270
A109: Pasture Investment per Cow on Pasture | E109: =SUM((E24*E17)/E14) -> 4000 | F109: =SUM((F24*F17)/F14) -> 3060 | G109: - | H109: - | I109: -
A111: Pasture Options - Usage Planner
E112: Marginal Pasture | F112: Improved Pasture | G112: Crown Lands | H112: Community Pasture | I112: Rented Pasture | J112: Total
A114: Planned number of cows | E114: 60 | F114: 30 | G114: 0 | H114: 0 | I114: 60 | J114: =IF(SUM(E114:I114)<Input!E13,"ERROR",IF(SUM(E114:I114)>Input!E13,"ERROR",SUM(Pasture!E114:I114))) -> 150
J115: =IF(J114="ERROR","(total must = "&Input!E13&" cows)","") -> 
A116: Acres Required | E116: =SUM(E119*E17) -> 300 | F116: =SUM(F119*F17) -> 51 | G116: =SUM(G119*G17) -> 0 | H116: - | I116: =SUM(I119*I17) -> 300
A119: percentage of total cost | E119: =SUM(E114/E14) -> 0.4 | F119: =SUM(F114/F14) -> 0.2 | G119: =SUM(G114/G14) -> 0 | H119: =SUM(H114/H14) -> 0 | I119: =SUM(I114/I14) -> 0.4 | L119: ***HIDE**
A120: Cost per Cow | L120: ***HIDE**
B121: Pasture op Costs | E121: =E83*E16*E119 -> 17.72 | F121: =F83*F16*F119 -> 17.04510638 | G121: =G83*G16*G119 -> 0 | I121: =(I83-I80)*I119*I16 -> 0 | J121: =SUM(E121:I121) -> 34.76510638 | L121: ***HIDE**
B122: Pasture Rental | E122: - | F122: - | G122: - | H122: =H92*H119 -> 0 | I122: =I92*I119 -> 59.375 | J122: =SUM(E122:I122) -> 59.375 | L122: ***HIDE**
B123: 3 Pasture Land & Fencing | E123: =SUM(E87*$E$16*$E$119) -> 49.79081715 | F123: =SUM(F87*$F$16*$F$119) -> 14.6121854 | G123: =SUM(G87*$G$16*$G$119) -> 0 | H123: - | I123: - | J123: =SUM(E123:I123) -> 64.40300255 | L123: ***HIDE**
J124: =SUM(J121:J123) -> 158.5431089 | L124: ***HIDE**
L125: ***HIDE**
L126: ***HIDE**
J127: =SUM(J145,J140,J135,J132) -> 64.40300255 | L127: ***HIDE**
L128: ***HIDE**
B129: Fencing Principle Cost | E129: =-CUMPRINC($C$66,$D$66,E60*$D$64,1,$D$66,0)/$D$66 -> 3.321428571 | F129: =-CUMPRINC($C$66,$D$66,F60*$D$64,1,$D$66,0)/$D$66 -> 2.357142857 | G129: =-CUMPRINC($C$66,$D$66,G60*$D$64,1,$D$66,0)/$D$66 -> 1.678571429 | L129: ***HIDE**
B130: Land Principle Cost | E130: =-CUMPRINC($C$29,$D$29,E24*$D$26,1,$D$29,0)/$D$29 -> 8 | F130: =-CUMPRINC($C$29,$D$29,F24*$D$26,1,$D$29,0)/$D$29 -> 18 | L130: ***HIDE**
E131: =SUM(E129:E130) -> 11.32142857 | F131: =SUM(F129:F130) -> 20.35714286 | G131: =SUM(G129:G130) -> 1.678571429 | L131: ***HIDE**
E132: =SUM(E131*$E$16*$E$119) -> 22.64285714 | F132: =SUM(F131*$F$16*$F$119) -> 6.930091185 | G132: =SUM(G131*$G$16*$G$119) -> 0 | J132: =SUM(E132:I132) -> 29.57294833 | L132: ***HIDE**
L133: ***HIDE**
B134: Fencing Depreciation Cost | E134: =(E60-(E60*$E$61))/$D$62 -> 4.185 | F134: =(F60-(F60*$F$61))/$D$62 -> 2.97 | G134: =(G60-(G60*$G$61))/$D$62 -> 2.115 | L134: ***HIDE**
E135: =SUM(E134*$E$16*$E$119) -> 8.37 | F135: =SUM(F134*$F$16*$F$119) -> 1.01106383 | G135: =SUM(G134*$G$16*$G$119) -> 0 | J135: =SUM(E135:I135) -> 9.38106383 | L135: ***HIDE**
L136: ***HIDE**
B137: Land Interest Cost | E137: =-CUMIPMT($C$29,$D$29,E24*$D$26,1,$D$29,0)/$D$29 -> 8.396296217 | F137: =-CUMIPMT($C$29,$D$29,F24*$D$26,1,$D$29,0)/$D$29 -> 18.89166649 | L137: ***HIDE**
B138: Fencing Interest Cost | E138: =-CUMIPMT($C$66,$D$66,E60*$D$64,1,$D$66,0)/$D$66 -> 0.992683785 | F138: =-CUMIPMT($C$66,$D$66,F60*$D$64,1,$D$66,0)/$D$66 -> 0.7044852668 | G138: =-CUMIPMT($C$66,$D$66,G60*$D$64,1,$D$66,0)/$D$66 -> 0.5016789021 | L138: ***HIDE**
E139: =SUM(E137:E138) -> 9.388980002 | F139: =SUM(F137:F138) -> 19.59615175 | G139: =SUM(G137:G138) -> 0.5016789021 | L139: ***HIDE**
E140: =SUM(E139*$E$16*$E$119) -> 18.77796 | F140: =SUM(F139*$F$16*$F$119) -> 6.671030385 | G140: =SUM(G139*$G$16*$G$119) -> 0 | J140: =SUM(E140:I140) -> 25.44899039 | L140: ***HIDE**
L141: ***HIDE**
B142: Owned Land Opportunity Cost | E142: =SUM(E24*D25)*(D27) -> 0 | F142: =SUM(F24*D25)*(D27) -> 0 | G142: - | H142: - | I142: - | L142: ***HIDE**
B143: Owned Fence Opportunity Cost | E143: =SUM(E60*D63)*(D27) -> 0 | F143: =SUM(F60*D63)*(D27) -> 0 | G143: =SUM(G60*D63)*(D27) -> 0 | L143: ***HIDE**
E144: =SUM(E142:E143) -> 0 | F144: =SUM(F142:F143) -> 0 | G144: =SUM(G142:G143) -> 0 | L144: ***HIDE**
E145: =SUM(E144*$E$16*$E$119) -> 0 | F145: =SUM(F144*$F$16*$F$119) -> 0 | G145: =SUM(G144*$G$16*$G$119) -> 0 | J145: =SUM(E145:I145) -> 0 | L145: ***HIDE**

Sheet Winter Feed Rations
A1: Winter Feed Costs & Requirements Worksheet
A3: ="Total Winter Feeding = "&Pasture!G5&" days" -> Total Winter Feeding = 195 days
A5: Enter your days on feed for each selected ration number in the "blue" numbers in the "gray" shaded area
A7: Pre Calving - Cows
B8: Ration Number | E8: #1 | F8: #2 | G8: #3 | H8: #4 | I8: #5 | J8: #6 | K8: #7 | L8: #8 | M8: #9 | N8: Total lbs /cow | O8: Total Cost /cow2
A9: =IF(H54=Pasture!G5,"","ERROR") ->  | B9: Days on Feed | E9: 135 | F9: 0 | G9: 0 | H9: 0 | I9: 0 | J9: 0 | K9: 0 | L9: 0 | M9: 0
E10: Hay | F10: Barley Silage | G10: Corn Silage | H10: Straw & Grain | I10: Greenfeed & Hay | J10: Straw, Grain & Suppl. | K10: Corn Silage & Hay | L10: Straw & Pellets
A11: Feed Type | B11: $/unit | C11: lbs/Unit | D11: $/lb | J11: Ration - Feed Per Day (lbs based on | K11: 1400 | L11: lb cow)
A12: Alfalfa Hay | B12: 155 | C12: 2000 | D12: =SUM(B12/C12) -> 0.0775 | E12: 0 | F12: 0 | G12: 0 | H12: 0 | I12: 0 | J12: 0 | K12: 0 | L12: 0 | M12: 0 | N12: =SUM((E9*E12)+(F12*F9)+(G12*G9)+(H12*H9)+(I12*I9)+(J12*J9)+(K12*K9)+(L12*L9)+(M12*M9))*(Input!E14/K11) -> 0 | O12: =SUM(N12*D12) -> 0
A13: Alfalfa Grass Hay | B13: 115 | C13: 2000 | D13: =SUM(B13/C13) -> 0.0575 | E13: 35 | F13: 0 | G13: 0 | H13: 0 | I13: 16 | J13: 0 | K13: 10 | L13: 0 | M13: 0 | N13: =SUM((E13*E9)+(F13*F9)+(G13*G9)+(H13*H9)+(I13*I9)+(J13*J9)+(K13*K9)+(L13*L9)+(M13*M9))*(Input!E14/K11) -> 4556.25 | O13: 261.984375
A14: Grass Hay | B14: 95 | C14: 2000 | D14: =SUM(B14/C14) -> 0.0475 | E14: 0 | F14: 0 | G14: 0 | H14: 0 | I14: 0 | J14: 0 | K14: 0 | L14: 0 | M14: 0 | N14: =SUM((E14*E9)+(F14*F9)+(G14*G9)+(H14*H9)+(I14*I9)+(J14*J9)+(K14*K9)+(L14*L9)+(M14*M9))*(Input!E14/K11) -> 0 | O14: 0
A15: Barley Straw | B15: 70 | C15: 2000 | D15: 0.035 | E15: 0 | F15: 17 | G15: 19 | H15: 23 | I15: 0 | J15: 23 | K15: 15 | L15: 23 | M15: 0 | N15: =SUM((E15*E9)+(F15*F9)+(G15*G9)+(H15*H9)+(I15*I9)+(J15*J9)+(K15*K9)+(L15*L9)+(M15*M9))*(Input!E14/K11) -> 0 | O15: 0
A16: Barley Greenfeed | B16: 115 | C16: 2000 | D16: 0.0575 | E16: 0 | F16: 0 | G16: 0 | H16: 0 | I16: 19 | J16: 0 | K16: 0 | L16: 0 | M16: 0 | N16: =SUM((E16*E9)+(F16*F9)+(G16*G9)+(H16*H9)+(I16*I9)+(J16*J9)+(K16*K9)+(L16*L9)+(M16*M9))*(Input!E14/K11) -> 0 | O16: 0
A17: Corn Silage | B17: 40 | C17: 2000 | D17: 0.02 | E17: 0 | F17: 0 | G17: 47 | H17: 0 | I17: 0 | J17: 0 | K17: 32 | L17: 0 | M17: 0 | N17: =SUM((E17*E9)+(F17*F9)+(G17*G9)+(H17*H9)+(I17*I9)+(J17*J9)+(K17*K9)+(L17*L9)+(M17*M9))*(Input!E14/K11) -> 0 | O17: 0
A18: Barley Silage | B18: 50 | C18: 2000 | D18: 0.025 | E18: 0 | F18: 48 | G18: 0 | H18: 0 | I18: 0 | J18: 0 | K18: 0 | L18: 0 | M18: 0 | N18: =SUM((E18*E9)+(F18*F9)+(G18*G9)+(H18*H9)+(I18*I9)+(J18*J9)+(K18*K9)+(L18*L9)+(M18*M9))*(Input!E14/K11) -> 0 | O18: 0
A19: Barley Grain | B19: 4.5 | C19: 48 | D19: 0.09375 | E19: 0 | F19: 0 | G19: 0 | H19: 11 | I19: 0 | J19: 10 | K19: 0 | L19: 0 | M19: 0 | N19: =SUM((E19*E9)+(F19*F9)+(G19*G9)+(H19*H9)+(I19*I9)+(J19*J9)+(K19*K9)+(L19*L9)+(M19*M9))*(Input!E14/K11) -> 0 | O19: 0
A20: 32% Feedlot Suppl. | B20: 550 | C20: 2205 | D20: 0.2494331066 | E20: 0 | F20: 0.5 | G20: 0.5 | H20: 1 | I20: 0 | J20: 0 | K20: 0 | L20: 0 | M20: 0 | N20: =SUM((E20*E9)+(F20*F9)+(G20*G9)+(H20*H9)+(I20*I9)+(J20*J9)+(K20*K9)+(L20*L9)+(M20*M9))*(Input!E14/K11) -> 0 | O20: 0
A21: 32% Liquid Suppl. | B21: 500 | C21: 2205 | D21: 0.2267573696 | E21: 0 | F21: 0 | G21: 0 | H21: 0 | I21: 0 | J21: 2.9 | K21: 0 | L21: 0 | M21: 0 | N21: =SUM((E21*E9)+(F21*F9)+(G21*G9)+(H21*H9)+(I21*I9)+(J21*J9)+(K21*K9)+(L21*L9)+(M21*M9))*(Input!E14/K11) -> 0 | O21: 0
A22: 20% Grain Pellets | B22: 300 | C22: 2205 | D22: 0.1360544218 | E22: 0 | F22: 0 | G22: 0 | H22: 0 | I22: 0 | J22: 0 | K22: 0 | L22: 14 | M22: 0 | N22: =SUM((E22*E9)+(F22*F9)+(G22*G9)+(H22*H9)+(I22*I9)+(J22*J9)+(K22*K9)+(L22*L9)+(M22*M9))*(Input!E14/K11) -> 0 | O22: 0
A23: 1:1 Mineral | B23: 50 | C23: 55 | D23: 0.9090909091 | E23: 0.12 | F23: 0 | G23: 0 | H23: 0 | I23: 0 | J23: 0 | K23: 0 | L23: 0 | M23: 0 | N23: =SUM((E23*E9)+(F23*F9)+(G23*G9)+(H23*H9)+(I23*I9)+(J23*J9)+(K23*K9)+(L23*L9)+(M23*M9))*(Input!E14/K11) -> 15.62142857 | O23: 14.2012987
A24: 2:1 Mineral | B24: 50 | C24: 55 | D24: 0.9090909091 | E24: 0 | F24: 0.06 | G24: 0.06 | H24: 0.06 | I24: 0.12 | J24: 0.2 | K24: 0.2 | L24: 0.06 | M24: 0 | N24: =SUM((E24*E9)+(F24*F9)+(G24*G9)+(H24*H9)+(I24*I9)+(J24*J9)+(K24*K9)+(L24*L9)+(M24*M9))*(Input!E14/K11) -> 0 | O24: 0
A25: Limestone | B25: 20 | C25: 55 | D25: 0.3636363636 | E25: 0 | F25: 0 | G25: 0 | H25: 0 | I25: 0 | J25: 0.2 | K25: 0 | L25: 0.2 | M25: 0 | N25: =SUM((E25*E9)+(F25*F9)+(G25*G9)+(H25*H9)+(I25*I9)+(J25*J9)+(K25*K9)+(L25*L9)+(M25*M9))*(Input!E14/K11) -> 0 | O25: 0
A26: Blue Salt | B26: 10 | C26: 55 | D26: 0.1818181818 | E26: 0.07 | F26: 0.07 | G26: 0.07 | H26: 0.07 | I26: 0.07 | J26: 0.07 | K26: 0.07 | L26: 0.07 | M26: 0 | N26: =SUM((E26*E9)+(F26*F9)+(G26*G9)+(H26*H9)+(I26*I9)+(J26*J9)+(K26*K9)+(L26*L9)+(M26*M9))*(Input!E14/K11) -> 9.1125 | O26: 1.656818182
B27: $/head/day | E27: =SUM((E12*$D$12)+(E13*$D$13)+(E14*$D$14)+(E15*$D$15)+(E16*$D$16)+(E17*$D$17)+(E18*$D$18)+(E19*$D$19)+(E20*$D$20)+(E21*$D$21)+(E22*$D$22)+(E23*$D$23)+(E24*$D$24)+(E25*$D$25+(E26*$D$26))) -> 2.134318182 | F27: =SUM((F12*$D$12)+(F13*$D$13)+(F14*$D$14)+(F15*$D$15)+(F16*$D$16)+(F17*$D$17)+(F18*$D$18)+(F19*$D$19)+(F20*$D$20)+(F21*$D$21)+(F22*$D$22)+(F23*$D$23)+(F24*$D$24)+(F25*$D$25+(F26*$D$26))) -> 1.986989281 | G27: 1.796989281 | H27: 2.152955834 | I27: 2.134318182 | J27: 2.667369099 | K27: 1.934545455 | L27: 2.849761905 | M27: 0 | O27: =SUM(O12:O26) -> 277.8424919
A29: Post Calving - Cows
B30: Ration Number | E30: #1 | F30: #2 | G30: #3 | H30: #4 | I30: #5 | J30: #6 | K30: #7 | L30: #8 | M30: #9 | N30: Total lbs /cow | O30: Total Cost /cow2
A31: =IF(H54=Pasture!G5,"","ERROR") ->  | B31: Days on Feed | E31: 60 | F31: 0 | G31: 0 | H31: 0 | I31: 0 | J31: 0 | K31: 0 | L31: 0 | M31: 0
A32: Feed Type | B32: $/unit | C32: lbs/Unit | D32: $/lb | J32: Ration - Feed Per Day (lbs based on | K32: 1400 | L32: lb cow)
A33: =A12 -> Alfalfa Hay | B33: 155 | C33: 2000 | D33: =SUM(B33/C33) -> 0.0775 | E33: 0 | F33: 0 | G33: 0 | H33: 0 | I33: 0 | J33: 0 | K33: 0 | L33: 0 | M33: 0 | N33: =SUM((E31*E33)+(F33*F31)+(G33*G31)+(H33*H31)+(I33*I31)+(J33*J31)+(K33*K31)+(L33*L31)+(M33*M31))*(Input!E14/K32) -> 0 | O33: =SUM(N33*D33) -> 0
A34: Alfalfa Grass Hay | B34: 115 | C34: 2000 | D34: =SUM(B34/C34) -> 0.0575 | E34: 44 | F34: 0 | G34: 0 | H34: 0 | I34: 20 | J34: 0 | K34: 20 | L34: 15 | M34: 0 | N34: =SUM((E34*E31)+(F34*F31)+(G34*G31)+(H34*H31)+(I34*I31)+(J34*J31)+(K34*K31)+(L34*L31)+(M34*M31))*(Input!E14/K32) -> 2545.714286 | O34: 146.3785714
A35: Grass Hay | B35: 95 | C35: 2000 | D35: =SUM(B35/C35) -> 0.0475 | E35: 0 | F35: 0 | G35: 0 | H35: 0 | I35: 0 | J35: 0 | K35: 0 | L35: 0 | M35: 0 | N35: =SUM((E35*E31)+(F35*F31)+(G35*G31)+(H35*H31)+(I35*I31)+(J35*J31)+(K35*K31)+(L35*L31)+(M35*M31))*(Input!E14/K32) -> 0 | O35: 0
A36: Barley Straw | B36: 70 | C36: 2000 | D36: 0.035 | E36: 0 | F36: 12 | G36: 12 | H36: 24 | I36: 0 | J36: 23 | K36: 8 | L36: 11 | M36: 0 | N36: =SUM((E36*E31)+(F36*F31)+(G36*G31)+(H36*H31)+(I36*I31)+(J36*J31)+(K36*K31)+(L36*L31)+(M36*M31))*(Input!E14/K32) -> 0 | O36: 0
A37: Barley Greenfeed | B37: 115 | C37: 2000 | D37: 0.0575 | E37: 0 | F37: 0 | G37: 0 | H37: 0 | I37: 16 | J37: 0 | K37: 0 | L37: 0 | M37: 0 | N37: =SUM((E37*E31)+(F37*F31)+(G37*G31)+(H37*H31)+(I37*I31)+(J37*J31)+(K37*K31)+(L37*L31)+(M37*M31))*(Input!E14/K32) -> 0 | O37: 0
A38: Corn Silage | B38: 40 | C38: 2000 | D38: 0.02 | E38: 0 | F38: 0 | G38: 48 | H38: 0 | I38: 0 | J38: 0 | K38: 40 | L38: 0 | M38: 0 | N38: =SUM((E38*E31)+(F38*F31)+(G38*G31)+(H38*H31)+(I38*I31)+(J38*J31)+(K38*K31)+(L38*L31)+(M38*M31))*(Input!E14/K32) -> 0 | O38: 0
A39: Barley Silage | B39: 50 | C39: 2000 | D39: 0.025 | E39: 0 | F39: 45 | G39: 0 | H39: 0 | I39: 0 | J39: 0 | K39: 0 | L39: 0 | M39: 0 | N39: =SUM((E39*E31)+(F39*F31)+(G39*G31)+(H39*H31)+(I39*I31)+(J39*J31)+(K39*K31)+(L39*L31)+(M39*M31))*(Input!E14/K32) -> 0 | O39: 0
A40: Barley Grain | B40: 4.5 | C40: 48 | D40: 0.09375 | E40: 5 | F40: 12 | G40: 7 | H40: 15 | I40: 5 | J40: 15 | K40: 0 | L40: 0 | M40: 0 | N40: =SUM((E40*E31)+(F40*F31)+(G40*G31)+(H40*H31)+(I40*I31)+(J40*J31)+(K40*K31)+(L40*L31)+(M40*M31))*(Input!E14/K32) -> 289.2857143 | O40: 27.12053571
A41: 32% Feedlot Suppl. | B41: 550 | C41: 2205 | D41: 0.2494331066 | E41: 0 | F41: 0 | G41: 2 | H41: 2.5 | I41: 0 | J41: 0 | K41: 0 | L41: 0 | M41: 0 | N41: =SUM((E41*E31)+(F41*F31)+(G41*G31)+(H41*H31)+(I41*I31)+(J41*J31)+(K41*K31)+(L41*L31)+(M41*M31))*(Input!E14/K32) -> 0 | O41: 0
A42: 32% Liquid Suppl. | B42: 500 | C42: 2205 | D42: 0.2267573696 | E42: 0 | F42: 0 | G42: 0 | H42: 0 | I42: 0 | J42: 3.5 | K42: 0 | L42: 0 | M42: 0 | N42: =SUM((E42*E31)+(F42*F31)+(G42*G31)+(H42*H31)+(I42*I31)+(J42*J31)+(K42*K31)+(L42*L31)+(M42*M31))*(Input!E14/K32) -> 0 | O42: 0
A43: 20% Grain Pellets | B43: 300 | C43: 2205 | D43: 0.1360544218 | E43: 0 | F43: 0 | G43: 0 | H43: 0 | I43: 0 | J43: 0 | K43: 0 | L43: 15 | M43: 0 | N43: =SUM((E43*E31)+(F43*F31)+(G43*G31)+(H43*H31)+(I43*I31)+(J43*J31)+(K43*K31)+(L43*L31)+(M43*M31))*(Input!E14/K32) -> 0 | O43: 0
A44: 1:1 Mineral | B44: 50 | C44: 55 | D44: 0.9090909091 | E44: 0.18 | F44: 0 | G44: 0 | H44: 0 | I44: 0 | J44: 0 | K44: 0 | L44: 0 | M44: 0 | N44: =SUM((E44*E31)+(F44*F31)+(G44*G31)+(H44*H31)+(I44*I31)+(J44*J31)+(K44*K31)+(L44*L31)+(M44*M31))*(Input!E14/K32) -> 10.41428571 | O44: 9.467532468
A45: 2:1 Mineral | B45: 50 | C45: =C24 -> 55 | D45: 0.9090909091 | E45: 0 | F45: 0.18 | G45: 0.18 | H45: 0.18 | I45: 0.18 | J45: 0.18 | K45: 0.18 | L45: 0.18 | M45: 0 | N45: =SUM((E45*E31)+(F45*F31)+(G45*G31)+(H45*H31)+(I45*I31)+(J45*J31)+(K45*K31)+(L45*L31)+(M45*M31))*(Input!E14/K32) -> 0 | O45: 0
A46: =A25 -> Limestone | B46: =B25 -> 20 | C46: =C25 -> 55 | D46: 0.3636363636 | E46: 0 | F46: 0.1 | G46: 0.1 | H46: 0.1 | I46: 0 | J46: 0.3 | K46: 0 | L46: 0.1 | M46: 0 | N46: =SUM((E46*E31)+(F46*F31)+(G46*G31)+(H46*H31)+(I46*I31)+(J46*J31)+(K46*K31)+(L46*L31)+(M46*M31))*(Input!E14/K32) -> 0 | O46: 0
A47: =A26 -> Blue Salt | B47: =B26 -> 10 | C47: =C26 -> 55 | D47: 0.1818181818 | E47: 0.1 | F47: 0.1 | G47: 0.1 | H47: 0.1 | I47: 0.1 | J47: 0.1 | K47: 0.1 | L47: 0.1 | M47: 0 | N47: =SUM((E47*E31)+(F47*F31)+(G47*G31)+(H47*H31)+(I47*I31)+(J47*J31)+(K47*K31)+(L47*L31)+(M47*M31))*(Input!E14/K32) -> 5.785714286 | O47: 1.051948052
B48: $/head/day | E48: =SUM((E33*$D$33)+(E34*$D$34)+(E35*$D$35)+(E36*$D$36)+(E37*$D$37)+(E38*$D$38)+(E39*$D$39)+(E40*$D$40)+(E41*$D$41)+(E42*$D$42)+(E43*$D$43)+(E44*$D$44)+(E45*$D$45)+(E46*$D$46+(E47*$D$47))) -> 3.180568182 | F48: =SUM((F33*$D$33)+(F34*$D$34)+(F35*$D$35)+(F36*$D$36)+(F37*$D$37)+(F38*$D$38)+(F39*$D$39)+(F40*$D$40)+(F41*$D$41)+(F42*$D$42)+(F43*$D$43)+(F44*$D$44)+(F45*$D$45)+(F46*$D$46+(F47*$D$47))) -> 2.888181818 | G48: 2.753298031 | H48: 3.088014585 | I48: 2.720568182 | J48: 3.295809885 | K48: 2.411818182 | L48: 3.506498145 | M48: 0 | O48: =SUM(O33:O47) -> 184.0185877
A50: Winter Feed Summary
H51: Total Days on Feed1 | K51: Average Cost/Day | O51: Feed Cost per Cow2
D52: Pre Calving - Cows | H52: =SUM(E9:M9) -> 135 | K52: =IF(O52=0,0,SUM(O52/H52)) -> 2.058092532 | O52: =O27 -> 277.8424919
D53: Post Calving - Cows | H53: =SUM(E31:M31) -> 60 | K53: =IF(O53=0,0,SUM(O53/H53)) -> 3.066976461 | O53: =O48 -> 184.0185877
H54: =SUM(H52:H53) -> 195 | K54: =IF(O54=0,0,SUM(O54/H54)) -> 2.368518357 | O54: =SUM(O52:O53) -> 461.8610795
F55: =IF(H54=Pasture!G5,"","# DAYS ON FEED RATION ERROR") -> 
A56: ="1. Total Days on Feed Must = "&Pasture!G5&" Days (as calculated on Input worksheet)" -> 1. Total Days on Feed Must = 195 Days (as calculated on Input worksheet)
A57: ="2. Feed Cost Per Cow Based on "&Input!E14&" lb Cow" -> 2. Feed Cost Per Cow Based on 1350 lb Cow
A58: =IF(OR(F9>0,G9>0,K9>0,F31>0,G31>0,K31>0),"Note: When selecting silage based feed rations, please input all required equipment capital costs on the 'Input' worksheet associated with feeding and feed delivery for silage.","") -> 
A61: Note: The suggested feed rations above were formulated using Cowbytes Beef Ration Balancer software with no included allowance for wastage during feeding. Feed ration quantity and costs should be adjusted accordingly. If you need help with a ration, contact a Manitoba Agriculture Livestock Specialist.

Sheet Fixed
A1: Fixed Costs
A3: Cows | F3: Machinery & Equipment
B4: Cow value ($/head) | D4: =Input!E28 -> 2600 | G4: Total Investment ($/cow) | I4: =ROUND((SUM(J48:J63)/(Input!E13)),0) -> 1183 | L4: *HIDE*
B5: Owned Cow Equity | D5: 0.85 | G5: Residual Value (End of Useful Life) | I5: 0.2 | L5: =(#REF!-#REF!)/(#REF!+D17) -> 
B6: =" Cows Financed ("&TEXT(D4*D6,"$#,###")&" per head)" -> Cows Financed ($390 per head) | D6: =SUM(1-D5) -> 0.15 | G6: Useful Life (years) | I6: 10
B7: Cow Opportunity Cost (Investment Rate) | D7: 0 | G7: Owned Machinery Equity | I7: 0.8
B8: Cow cost ($/head) | G8: =" Machinery Financed ("&TEXT((I4)*I8,"$#,###")&" per head)" -> Machinery Financed ($237 per head) | I8: =SUM(1-I7) -> 0.2
B9: Finance Rate & Term | C9: 0.07 | D9: 7 | E9: Years | G9: Machinery Opportunity Cost (Investment Rate) | I9: 0
B10: Principle & Interest Cost | D10: =-PMT(C9,D9,D4*D6,0) -> 72.36575566 | G10: Machinery & Equipment Cost ($/cow)
B11: Owned Cows Opportunity Cost | D11: =SUM(D4*D5)*(D7) -> 0 | G11: Finance Rate & Term | H11: 0.07 | I11: 7 | J11: Years
B12: Total Cost | D12: =SUM(D10:D11) -> 72.36575566 | G12: Principle & Interest Cost | I12: =-PMT(H11,I11,I4*I8,0) -> 43.90189176
G13: Machinery Depreciation Cost | I13: =(I4-(I4*I5))/I6 -> 94.64
G14: Owned Machinery Opportunity Cost | I14: =SUM(I4*I7)*(I9) -> 0
A15: Marginal Pasture Land | G15: Total Cost | I15: =SUM(I12:I14) -> 138.5418918
B16: Average Land value ($/acre) | D16: =Pasture!E24 -> 800
B17: Pasture acres | D17: =Pasture!E116 -> 300 | F17: Buildings & Facilities
B18: Owned Land Equity | D18: =Pasture!D25 -> 0.75 | G18: Total Investment ($/cow) | I18: =ROUND((SUM(E48:E63)/(Input!E13)),0) -> 517
B19: =" Land Financed ("&TEXT(D16*D19,"$#,###")&" per acre)" -> Land Financed ($200 per acre) | D19: =SUM(1-D18) -> 0.25 | G19: Residual Value (End of Useful Life) | I19: 0.2
B20: Land Opportunity Cost (Investment Rate) | D20: =Pasture!D27 -> 0 | G20: Useful Life (years) | I20: 20 | L20: w/o harvest
B21: Land cost ($/acre) | G21: Owned Building Equity | I21: 0.85 | L21: =-PMT($H$25,$I$25,L5*$I$22,0) -> 
B22: Finance Rate & Term | C22: =Pasture!C29 -> 0.065 | D22: =Pasture!D29 -> 25 | E22: Years | G22: =" Building Financed ("&TEXT((I18)*I22,"$#,###")&" per head)" -> Building Financed ($78 per head) | I22: =SUM(1-I21) -> 0.15 | L22: =(L5-(L5*$I$19))/$I$20 -> 
B23: Principle & Interest Cost | D23: =-PMT(C22,D22,D16*D19,0) -> 16.39629622 | G23: Building Opportunity Cost (Investment Rate) | I23: 0 | L23: =SUM(L5*$I$21)*($I$23) -> 
B24: Owned Land Opportunity Cost | D24: =SUM(D16*D18)*(D20) -> 0 | G24: Building & Water System Cost ($/cow) | L24: =SUM(L21:L23) -> 
B25: Total Cost | D25: =SUM(D23:D24) -> 16.39629622 | G25: Finance Rate & Term | H25: 0.07 | I25: 7 | J25: Years
G26: Principle & Interest Cost | I26: =-PMT(H25,I25,I18*I22,0) -> 14.38965218
G27: Building Depreciation Cost | I27: =(I18-(I18*I19))/I20 -> 20.68
G28: Owned Building Opportunity Cost | I28: =SUM(I18*I21)*(I23) -> 0
A29: Improved Pasture Land | G29: Total Cost | I29: =SUM(I26:I28) -> 35.06965218
B30: Average Land value ($/acre) | D30: =Pasture!F24 -> 1800
B31: Pasture acres | D31: =Pasture!F116 -> 51 | F31: Fencing
B32: Owned Land Equity | D32: =Pasture!D25 -> 0.75 | G32: Total Investment ($/cow) | I32: =SUM((Pasture!E59*Pasture!E119)+(Pasture!F59*Pasture!F119)+(Pasture!G59*Pasture!G119))/Input!E13 -> 208.3973333
B33: =" Land Financed ("&TEXT(D30*D33,"$#,###")&" per acre)" -> Land Financed ($450 per acre) | D33: =SUM(1-D32) -> 0.25 | G33: Residual Value (End of Useful Life) | I33: =Pasture!E61 -> 0.1
B34: Land Opportunity Cost (Investment Rate) | D34: =Pasture!D27 -> 0 | G34: Useful Life (years) | I34: =Pasture!D62 -> 20
B35: Land cost ($/acre) | G35: Owned Fence Equity | I35: =Pasture!D63 -> 0.75
B36: Finance Rate & Term | C36: =Pasture!C29 -> 0.065 | D36: =Pasture!D29 -> 25 | E36: Years | G36: =" Fence Financed ("&TEXT((I32)*I36,"$#,###")&" per head)" -> Fence Financed ($52 per head) | I36: =SUM(1-I35) -> 0.25
B37: Principle & Interest Cost | D37: =-PMT(C36,D36,D30*D33,0) -> 36.89166649 | G37: Fence Opportunity Cost (Investment Rate) | I37: =Pasture!D27 -> 0
B38: Owned Land Opportunity Cost | D38: =SUM(D30*D32)*(D34) -> 0 | G38: Fencing Cost ($/cow)
B39: Total Cost | D39: =SUM(D37:D38) -> 36.89166649 | G39: Finance Rate & Term | H39: =Pasture!C66 -> 0.07 | I39: =Pasture!D66 -> 7
G40: Principle & Interest Cost | I40: =-PMT(H39,I39,I32*I36,0) -> 9.667199041
A41: Total Principle & Interest Cost ($/cow) | D41: =SUM(D10+I12+I26+I40+D37+D23) -> 193.6124613 | G41: Fence Depreciation Cost | I41: =(I32-(I32*I33))/I34 -> 9.37788
A42: ="Total Principle & Interest Cost ("&Input!E13&" cows)" -> Total Principle & Interest Cost (150 cows) | D42: =D41*Input!E13 -> 29041.8692 | G42: Owned Fence Opportunity Cost | I42: =SUM(I32*I35)*(I37) -> 0
G43: Total Cost | I43: =SUM(I40:I42) -> 19.04507904
T44: 0.0275
A45: Capital Value
C46: Market | D46: Cow-calf | H46: Market | I46: Cow-calf
A47: Buildings & Facilities | C47: Value | D47: Usage % | E47: Allocation | G47: Machinery & Equipment | H47: Value | I47: Usage % | J47: Allocation
B48: Windbreak Fence | C48: =Input!G99 -> 5812.5 | D48: 1 | E48: =SUM(C48*D48) -> 5812.5 | G48: Miscellaneous Machinery | H48: 10000 | I48: 1 | J48: =SUM(H48*I48) -> 10000
B49: Feedlot Fence | C49: =Input!G102 -> 4650 | D49: 1 | E49: 4650 | G49: Tractor & Loader | H49: 175000 | I49: 0.5 | J49: 87500
B50: Calf Shelters | C50: =Input!G105 -> 9300 | D50: 1 | E50: 9300 | G50: Bale Shredder | H50: 25000 | I50: 1 | J50: 25000
B51: Handling Facilities | C51: 15000 | D51: 1 | E51: 15000 | G51: Tractor & Feed Wagon (silage) | H51: 0 | I51: 1 | J51: 0
B52: Calving Facility | C52: 12500 | D52: 1 | E52: 12500 | G52: Stock Trailer | H52: 25000 | I52: 1 | J52: 25000
B53: Waterers | C53: =Input!G96 -> 4000 | D53: 1 | E53: 4000 | G53: Truck | H53: 60000 | I53: 0.5 | J53: 30000
B54: Pasture Watering System | C54: 4000 | D54: 1 | E54: 4000 | H54: 0 | I54: 1 | J54: 0
B55: Pasture Water Source | C55: 3000 | D55: 1 | E55: 3000 | H55: 0 | I55: 1 | J55: 0
B56: Gates | C56: 1450 | D56: 1 | E56: 1450 | H56: 0 | I56: 1 | J56: 0
B57: Feeders | C57: 2400 | D57: 1 | E57: 2400 | H57: 0 | I57: 1 | J57: 0
B58: Well & Pressure System | C58: 8000 | D58: 1 | E58: 8000 | H58: 0 | I58: 1 | J58: 0
B59: Hydro (6 poles @ $400) | C59: 2400 | D59: 1 | E59: 2400 | H59: 0 | I59: 1 | J59: 0
B60: Storage Bins | C60: 5000 | D60: 1 | E60: 5000 | H60: 0 | I60: 1 | J60: 0
C61: 0 | D61: 1 | E61: 0 | H61: 0 | I61: 1 | J61: 0
C62: 0 | D62: 1 | E62: 0 | H62: 0 | I62: 1 | J62: 0
C63: 0 | D63: 0 | E63: 0 | H63: 0 | I63: 1 | J63: 0
E64: ="Total Inv. = $"&TEXT(SUM(E48:E63),"#,###")&" ($"&ROUND(SUM(E48:E63)/(Input!E13),0)&"/cow)" -> Total Inv. = $77,513 ($517/cow) | J64: ="Total Inv. = $"&TEXT(SUM(J48:J63),"#,###")&" ($"&ROUND(SUM(J48:J63)/(Input!E13),0)&"/cow)" -> Total Inv. = $177,500 ($1183/cow)
B65: Buildings & Water - Target $/cow | C65: 350 | G65: Machinery - Target $/cow | H65: 750
B66: =IF(ROUND(SUM(E48:E63)/(Input!E13),0)<C65,"(Under Invested by",IF(ROUND(SUM(E48:E63)/(Input!E13),0)=C65,"(On Target","(Over Invested by")) -> (Over Invested by | C66: ="$"&TEXT(ABS((ROUND(SUM(E48:E63)/(Input!$E$13),2)-C65)*(Input!$E$13)),"#,###")&")" -> $25,013) | G66: =IF(ROUND(SUM(J48:J63)/(Input!E13),0)<H65,"(Under Invested by",IF(ROUND(SUM(J48:J63)/(Input!E13),0)=H65,"(On Target","(Over Invested by")) -> (Over Invested by | H66: ="$"&TEXT(ABS((ROUND(SUM(J48:J63)/(Input!E13),2)-H65)*(Input!E13)),"#,###")&")" -> $65,000)

Sheet Extended Grazing
A1: Extended Grazing Costs & Requirements Worksheet
A3: Extended Grazing Days | C3: =Pasture!G4 -> 35
A4: Number of Cows | C4: =Input!E13 -> 150
A5: Number of Cow Grazing Days | C5: =SUM(C3*C4) -> 5250
A7: Extended Grazing Options - Costs
C8: Corn Grazing | D8: Stockpiled Forage | E8: Swath Grazing | F8: Crop Residue
A11: Standing Forage Cost ($/lb) | C11: n/a | D11: 0.025 | E11: n/a | F11: 0.015
A13: Input Costs ($/acre)
B14: Seed | C14: 96 | E14: 32
B15: Fertilizer (incl. applic.) | C15: 147 | E15: 81
B16: Herbicide | C16: 16 | E16: 16
B17: Custom tillage | C17: 12 | E17: 12
B18: Custom seeding | C18: 25 | E18: 25
B19: Custom spraying | C19: 9 | E19: 9
B20: Miscellaneous | C20: 7.75 | E20: 7.75
B21: Land taxes | C21: 15 | E21: 15
B22: Land Costs | C22: 75 | E22: 75
B23: Labour | C23: =SUM(0.75*'Operating '!E135) -> 20.25 | E23: =C23 -> 20.25
B24: Subtotal | C24: =SUM(C14:C23) -> 423 | D24: =SUM(D34*2000*D11) -> 50 | E24: =SUM(E14:E23) -> 293 | F24: =SUM(F34*2000*F11) -> 7.5
A26: Fencing Costs
B27: Estimated miles of fence required | C27: =SUM(C38/80) -> 0.175 | D27: =SUM(D38/80) -> 1.475 | E27: =SUM(E38/80) -> 0.3 | F27: =SUM(F38/80) -> 5.775
B28: Fence Investment Cost/acre | C28: =SUM(C27*Pasture!$H$40*(Input!$E$75/100))/C38 -> 1.3115 | D28: =SUM(D27*Pasture!$H$40*(Input!$E$75/100))/D38 -> 1.3115 | E28: =SUM(E27*Pasture!$H$40*(Input!$E$75/100))/E38 -> 1.3115 | F28: =SUM(F27*Pasture!$H$40*(Input!$E$75/100))/F38 -> 1.3115
B29: Fence Depreciation Cost/acre | C29: =SUM((C27*Pasture!$H$40)/Pasture!$D$62)/C38 -> 1.639375 | D29: =SUM((D27*Pasture!$H$40)/Pasture!$D$62)/D38 -> 1.639375 | E29: =SUM((E27*Pasture!$H$40)/Pasture!$D$62)/E38 -> 1.639375 | F29: =SUM((F27*Pasture!$H$40)/Pasture!$D$62)/F38 -> 1.639375
A31: Total cost per acre | C31: =SUM(C29+C28+C24) -> 425.950875 | D31: =SUM(D29+D28+D24) -> 52.950875 | E31: =SUM(E29+E28+E24) -> 295.950875 | F31: =SUM(F29+F28+F24) -> 10.450875
A33: Extended Grazing Options - Yields & Cost Comparison
A34: Grazing Yield (wet tons/acre) | C34: 15 | D34: 1 | E34: 7.5 | F34: 0.25
A35: % moisture | C35: 50 | D35: 10 | E35: 40 | F35: 8
B36: Yield (tons dry matter/acre) | C36: =SUM(1-(C35/100))*C34 -> 7.5 | D36: =SUM(1-(D35/100))*D34 -> 0.9 | E36: =SUM(1-(E35/100))*E34 -> 4.5 | F36: =SUM(1-(F35/100))*F34 -> 0.23
B37: Total # cow grazing days/acre | C37: =SUM(C36*2000)/40.5 -> 370.3703704 | D37: =SUM(D36*2000)/40.5 -> 44.44444444 | E37: =SUM(E36*2000)/40.5 -> 222.2222222 | F37: =SUM(F36*2000)/40.5 -> 11.35802469
B38: Acres Req'd for Option | C38: =ROUND($C$5/C37,0) -> 14 | D38: =ROUND($C$5/D37,0) -> 118 | E38: =ROUND($C$5/E37,0) -> 24 | F38: =ROUND($C$5/F37,0) -> 462
A40: Total Extended Grazing Cost | C40: =SUM(C31*C38) -> 5963.31225 | D40: =SUM(D31*D38) -> 6248.20325 | E40: =SUM(E31*E38) -> 7102.821 | F40: =SUM(F31*F38) -> 4828.30425
A41: Cost per cow | C41: =SUM(C40/Input!$E$13) -> 39.755415 | D41: =SUM(D40/Input!$E$13) -> 41.65468833 | E41: =SUM(E40/Input!$E$13) -> 47.35214 | F41: =SUM(F40/Input!$E$13) -> 32.188695
A42: ="Cost/cow/day (based on "&C3&" days)" -> Cost/cow/day (based on 35 days) | C42: =C41/$C$3 -> 1.135869 | D42: =D41/$C$3 -> 1.190133952 | E42: =E41/$C$3 -> 1.352918286 | F42: =F41/$C$3 -> 0.919677
A44: Extended Grazing - Usage Planner
C46: Corn Grazing | D46: Stockpiled Forage | E46: Swath Grazing | F46: Crop Residue | G46: Total
A49: Planned extended grazing days | C49: 0 | D49: 35 | E49: 0 | F49: 0 | G49: =IF(C3=0,0,IF(SUM(C49:F49)<C3,"ERROR",IF(SUM(C49:F49)>C3,"ERROR",SUM(C49:F49)))) -> 35
B50: =ROUND(SUM(C50:F50),0) -> 118 | C50: =SUM(C49/$C$3)*C38 -> 0 | D50: =SUM(D49/$C$3)*D38 -> 118 | E50: 0 | F50: 0 | G50: =IF(G49="ERROR","(total must = "&C3&" days)","") -> 
A53: Cost per cow | C53: =SUM(C42*C49) -> 0 | D53: =SUM(D42*D49) -> 41.65468833 | E53: =SUM(E42*E49) -> 0 | F53: =SUM(F42*F49) -> 0 | G53: =IF(C3=0,0,SUM(C53:F53)) -> 41.65468833
A54: ="Cost/cow/day (based on "&C3&" days)" -> Cost/cow/day (based on 35 days) | G54: =IF(G53=0,0,SUM(G53/C3)) -> 1.190133952
A57: Note: This budget is only a guide and is not intended as an in-depth study of the cost of production of this industry. Interpretation and utilization of this information is the responsibility of the user.

Sheet Details
A1: Assumptions
A3: ="1. This budget outlines the cost of production for a cow-calf operation with "&Input!E13&" cows, "&Input!E15&" bulls and "&Input!E17&"% calf crop weaned." -> 1. This budget outlines the cost of production for a cow-calf operation with 150 cows, 5 bulls and 95% calf crop weaned.
A4: 2. Building and equipment are valued at new cost.
A5: 3. Feed cost is a combined value of market price and on-farm production costs.
A6: 4. Manure removal is contracted out.
A7: 5. Replacement heifers are valued at fair market value.
A8: ="6. This budget assumes an average weaning weight of "&Input!E23&" lbs. (steer calves 600 lbs and heifer calves 550 lbs.)" -> 6. This budget assumes an average weaning weight of 575 lbs. (steer calves 600 lbs and heifer calves 550 lbs.)
A10: Capital and Debt Summary:
A11: Capital Summary | D11: $/cow | E11: Total | G11: Debt Summary | I11: $/cow | J11: Total
A12: Breeding Herd Value | D12: =SUM(E12/Input!$E$13) -> 2766.666667 | E12: =(Input!E66*Input!E15)+(Input!E28*Input!E13) -> 415000 | G12: Cows | I12: =(Fixed!D4*Fixed!D6) -> 390 | J12: =I12*Input!E13 -> 58500
A13: Marginal Pasture Land | D13: =SUM(E13/Input!$E$13) -> 1600 | E13: =Fixed!D16*Fixed!D17 -> 240000 | G13: Marginal Pasture Land | I13: =J13/Input!$E$13 -> 400 | J13: =SUM(Fixed!D16*Fixed!D19*Fixed!D17) -> 60000
A14: Improved Pasture Land | D14: =SUM(E14/Input!$E$13) -> 612 | E14: =SUM(Fixed!D30*Fixed!D31) -> 91800 | G14: Improved Pasture Land | I14: =J14/Input!E13 -> 153 | J14: =SUM(Fixed!D30*Fixed!D33*Fixed!D31) -> 22950
A15: Machinery & Equipment | D15: =SUM(E15/Input!$E$13) -> 1183.333333 | E15: =SUM(Fixed!J48:J63) -> 177500 | G15: Machinery & Equipment | I15: =(Fixed!I4*Fixed!I8) -> 236.6 | J15: =I15*Input!E13 -> 35490
A16: Fencing | D16: =Fixed!I32 -> 208.3973333 | E16: =SUM(D16*Input!E13) -> 31259.6 | G16: Fencing | I16: =Fixed!I32*Fixed!I36 -> 52.09933333 | J16: =I16*Input!E13 -> 7814.9
A17: Buildings & Facilities | D17: =SUM(E17/Input!$E$13) -> 516.75 | E17: =SUM(Fixed!E48:E63) -> 77512.5 | G17: Buildings & Facilities | I17: =(Fixed!I18*Fixed!I22) -> 77.55 | J17: =I17*Input!E13 -> 11632.5
A18: Hay Land | D18: =SUM(E18/Input!$E$13) -> 0 | E18: 0 | G18: Hay Land | I18: =J18/Input!$E$13 -> 0 | J18: 0 | N18: **just pondering this idea for a total debt per cowwith all in??
A19: Silage Land | D19: =SUM(E19/Input!$E$13) -> 0 | E19: 0 | G19: Silage Land | I19: =J19/Input!$E$13 -> 0 | J19: 0
A20: Forage Equipment | D20: =SUM(E20/Input!$E$13) -> 0 | E20: 0 | G20: Forage Equipment | I20: =J20/Input!$E$13 -> 0 | J20: 0
A21: Grain Land | D21: =SUM(E21/Input!$E$13) -> 0 | E21: 0 | G21: Grain Land | I21: =J21/Input!$E$13 -> 0 | J21: 0
A22: Grain Machinery & Equipment | D22: =SUM(E22/Input!$E$13) -> 0 | E22: 0 | G22: Grain Machinery & Equipment | I22: =J22/Input!$E$13 -> 0 | J22: 0
A23: Total Capital Investment | D23: =SUM(D12:D17) -> 6887.147333 | E23: =SUM(E12:E17) -> 1033072.1 | G23: Total Debt | I23: =SUM(I12:I17) -> 1309.249333 | J23: =SUM(J12:J17) -> 196387.4
G25: ="Debt/EBITDAR ratio = "&ROUND(I23/'Summary (2)'!F38,2)&":1" -> Debt/EBITDAR ratio = 1.71:1
G26: Cow Calf Equity | I26: =SUM(E23-J23)/E23 -> 0.8098996188
A28: Land Use Efficiency and Feed Security Analysis:
I29: Acres/cow | J29: Total Acres
B30: Pasture (Marginal, Improved, Crown Land and Rented Pasture) | G30: =Pasture!G3 -> 135 | H30: Days | I30: =J30/Input!$E$13 -> 4.34 | J30: =Pasture!E116+Pasture!F116+Pasture!G116+Pasture!I116 -> 651
B31: Extended Grazing (Corn, Stockpiled, Swath and Crop Residue) | G31: =Pasture!G4 -> 35 | H31: Days | I31: =J31/Input!$E$13 -> 0.7866666667 | J31: ='Extended Grazing'!C50+'Extended Grazing'!D50+'Extended Grazing'!E50+'Extended Grazing'!F50 -> 118
B32: Planned forage & feed waste amount | E32: 0.1 | F32: 1500 | G32: pound bales
B33: Alfalfa Hay | D33: =(('Winter Feed Rations'!N12+'Winter Feed Rations'!N33+(('Winter Feed Rations'!N12+'Winter Feed Rations'!N33)*$E$32))*Input!$E$13)/2000 -> 0 | E33: Total Tons @ | F33: 3.5 | G33: ="tons/acre ("&TEXT((F33*2000)/$F$32,"#.#")&" bales/ac)" -> tons/acre (4.7 bales/ac) | I33: =J33/Input!$E$13 -> 0 | J33: =IF(F33=0,0,SUM(D33/F33)) -> 0
B34: Alfalfa Grass Hay | D34: =(('Winter Feed Rations'!N13+'Winter Feed Rations'!N34+(('Winter Feed Rations'!N13+'Winter Feed Rations'!N34)*$E$32))*Input!$E$13)/2000 -> 585.9120536 | E34: Total Tons @ | F34: 2.79 | G34: ="tons/acre ("&TEXT((F34*2000)/$F$32,"#.#")&" bales/ac)" -> tons/acre (3.7 bales/ac) | I34: =J34/Input!$E$13 -> 1.400028802 | J34: =IF(F34=0,0,SUM(D34/F34)) -> 210.0043203
B35: Grass Hay | D35: =(('Winter Feed Rations'!N14+'Winter Feed Rations'!N35+(('Winter Feed Rations'!N14+'Winter Feed Rations'!N35)*$E$32))*Input!$E$13)/2000 -> 0 | E35: Total Tons @ | F35: 2 | G35: tons/acre (2.7 bales/ac) | I35: =J35/Input!$E$13 -> 0 | J35: 0
B36: Barley Greenfeed | D36: =(('Winter Feed Rations'!N16+'Winter Feed Rations'!N37+(('Winter Feed Rations'!N16+'Winter Feed Rations'!N37)*$E$32))*Input!$E$13)/2000 -> 0 | E36: Total Tons @ | F36: 2.83 | G36: tons/acre (3.8 bales/ac) | I36: =J36/Input!$E$13 -> 0 | J36: 0
B37: Corn Silage | D37: =(('Winter Feed Rations'!N17+'Winter Feed Rations'!N38+(('Winter Feed Rations'!N17+'Winter Feed Rations'!N38)*$E$32))*Input!$E$13)/2000 -> 0 | E37: Total Tons @ | F37: 15 | G37: tons/acre | I37: =J37/Input!$E$13 -> 0 | J37: 0
B38: Barley Silage | D38: =(('Winter Feed Rations'!N18+'Winter Feed Rations'!N39+(('Winter Feed Rations'!N18+'Winter Feed Rations'!N39)*$E$32))*Input!$E$13)/2000 -> 0 | E38: Total Tons @ | F38: 7.5 | G38: tons/acre | I38: =J38/Input!$E$13 -> 0 | J38: 0
B39: Barley Grain | D39: =(('Winter Feed Rations'!N19+'Winter Feed Rations'!N40+(('Winter Feed Rations'!N19+'Winter Feed Rations'!N40)*$E$32))*Input!$E$13)/48 -> 994.4196429 | E39: Total bu @ | F39: 78 | G39: bu/acre | I39: =J39/Input!$E$13 -> 0.08499313187 | J39: 12.74896978
I40: =SUM(I30:I39) -> 6.6116886 | J40: =SUM(J30:J39) -> 991.7532901
A42: Profitability and Breakeven Analysis:
A43: ="Gross Revenue = calf weight (lbs) x $/lb x % calf crop (eg. "&Input!E23&" x $"&TEXT(Input!E24/100,"0.00")&"/lb x "&Input!E17&"% = $"&TEXT(Summary!F46,"0.00")&")" -> Gross Revenue = calf weight (lbs) x $/lb x % calf crop (eg. 575 x $3.66/lb x 95% = $1997.36)
A44: ="Return on Investment (ROI) = (Gross Revenue - Total Cost) / Total Cost (eg. ($"&TEXT(Summary!F46,"0,000.00")&" - $"&TEXT(Summary!F40,"0,000.00")&") / $"&TEXT(Summary!F40,"0.00")&" = "&TEXT(100*Summary!F71,"0.0")&"%" -> Return on Investment (ROI) = (Gross Revenue - Total Cost) / Total Cost (eg. ($1,997.36 - $1,643.57) / $1643.57 = 21.5%
A46: ="Return on Asset (ROA) = (Margin Over Operating - Owners Labour - Building Depreciation - Machinery Depreciation - Fence Depreciation) / ((Building, Machinery & Equipment Investment + Pasture Investment + Breeding Herd Investment) / Herd Size) (eg. ($"&TEXT(Summary!F52,"0.00")&" - $"&TEXT(Summary!F38,"0.00")&" - $"&TEXT(Fixed!I27,"0.00")&" - $"&TEXT(Fixed!I13,"0.00")&" - $"&TEXT(Fixed!I41,"0.00")&") / (($"&TEXT(Details!E17+Details!E16+Details!E15,"#,###")&" + $"&TEXT(E13+E14,"#,###")&" + $"&TEXT(E12,"#,###")&") / "&Input!E13&") = "&TEXT(100*Summary!F72,"0.0")&"%" -> Return on Asset (ROA) = (Margin Over Operating - Owners Labour - Building Depreciation - Machinery Depreciation - Fence Depreciation) / ((Building, Machinery & Equipment Investment + Pasture Investment + Breeding Herd Investment) / Herd Size) (eg. ($880.18 - $216.00 - $20.68 - $94.64 - $9.38) / (($286,272 + $331,800 + $415,000) / 150) = 7.8%
A49: ="Operating Expense Ratio = (operating cost ÷ gross revenue) x 100 (eg. ($"&TEXT(Summary!F29, "0.00")&" ÷ $"&TEXT(Summary!F46,"0.00")&" ) x 100 = "&ROUND(Summary!F48*100,0)&"%)" -> Operating Expense Ratio = (operating cost ÷ gross revenue) x 100 (eg. ($1117.19 ÷ $1997.36 ) x 100 = 56%)
A51: ="Breakeven Price $/cwt = Cost ÷ % calf crop ÷ calf weight cwt (eg. $"&TEXT(Summary!F40,"0.00")&" ÷ "&Input!E17&"% ÷ "&Input!E23/100&" = $"&ROUND(Summary!F60,0)&")" -> Breakeven Price $/cwt = Cost ÷ % calf crop ÷ calf weight cwt (eg. $1643.57 ÷ 95% ÷ 5.75 = $301)
A53: Cost Summary:
A54: ="Summer Grazing Cost Per Cow Per Day = pasture cost ÷ days (eg. $"&TEXT(Pasture!J124, "0.00")&" ÷ "&Pasture!G3&" = $"&TEXT(Summary!F76,"0.00")&")" -> Summer Grazing Cost Per Cow Per Day = pasture cost ÷ days (eg. $158.54 ÷ 135 = $1.17)
A55: ="Extended Grazing Cost Per Cow Per Day = grazing cost ÷ days (eg. $"&TEXT('Extended Grazing'!G53, "0.00")&" ÷ "&Pasture!G4&" = $"&TEXT(Summary!F77,"0.00")&")" -> Extended Grazing Cost Per Cow Per Day = grazing cost ÷ days (eg. $41.65 ÷ 35 = $1.19)
A56: ="Winter Feed Cost Per Cow Per Day = feed cost ÷ days (eg. $"&TEXT('Winter Feed Rations'!O54+((Input!G46+Input!G53)), "0.00")&" ÷ "&Pasture!G5&" = $"&TEXT(Summary!F78,"0.00")&")" -> Winter Feed Cost Per Cow Per Day = feed cost ÷ days (eg. $479.82 ÷ 195 = $2.46)
A57: ="Yardage Cost Per Cow Per Day = ($"&TEXT('Operating '!D25*'Operating '!D26+Input!G59,"0.00")&" straw + $"&TEXT('Operating '!G48,"0.00")&" fuel & repair + $"&TEXT('Operating '!G118,"0.00")&" building insurance + $"&TEXT('Operating '!G59,"0.00")&" utilities + $"&TEXT('Operating '!G108,"0.00")&" manure removal + $"&TEXT(Fixed!I27,"0.00")&" building depreciation+ $"&TEXT(Fixed!I13,"0.00")&" machinery depreciation + $"&TEXT(Fixed!I26,"0.00")&" building investment + $"&TEXT(Fixed!I12,"0.00")&" machinery investment + $"&TEXT((((Summary!H27-Summary!H14-Summary!H15-Summary!H18-Summary!H19-Summary!H22-Summary!H23)/2*('Operating '!E131/100)/(Input!E13))),"0.00")&" operating interest + $"&TEXT(((Summary!H26*((Pasture!G5+Pasture!G4)/365))/Input!E13),"0.00")&" misc. + $"&TEXT(('Operating '!G138)*0.625,"0.00")&" labour) ÷ "&Pasture!G5+Pasture!G4&" days = $"&TEXT(Summary!F79,"0.000") -> Yardage Cost Per Cow Per Day = ($72.33 straw + $42.72 fuel & repair + $6.80 building insurance + $11.69 utilities + $10.84 manure removal + $20.68 building depreciation+ $94.64 machinery depreciation + $14.39 building investment + $43.90 machinery investment + $26.99 operating interest + $4.21 misc. + $135.00 labour) ÷ 230 days = $2.099
J61: September, 2024

Sheet Housing
A2: Cow-Calf Operating Facilities

Sheet Chart data (HIDE) (hidden)
A1: =Input!E13&" Head Beef Cow Calf - Total Production Costs ($/cow)" -> 150 Head Beef Cow Calf - Total Production Costs ($/cow) | F1: 150 Cow COP Changes | L1: Year | M1: Million Head | N1: $/cwt | O1: ="$/cwt ("&SUM(Input!E75/2)&"% Inflation)" -> $/cwt (2% Inflation)
A2: Feed Cost | B2: =Summary!F10 -> 524.2248588 | C2: =SUM(B2/$B$9) -> 0.3189557355 | F2: Input - 150 cows | K2: 1 | L2: 2019 | M2: 93 | N2: =Input!E24 -> 365.65 | O2: =N2 -> 365.65
A3: Other Operating Cost | B3: =Summary!F29-Summary!F10 -> 592.961016 | C3: 0.360777086 | F3: Input - 5 bulls | K3: 2 | L3: 2020 | M3: 94 | N3: 187 | O3: =SUM((N3-N2)+O2)*(1+(Input!$E$75/100)/2) -> 190.74
A4: Fixed Cost - Livestock | B4: =Summary!F32 -> 72.36575566 | C4: 0.04402971823 | F4: Operating - 6 hours vet | K4: 3 | L4: 2021 | M4: 93.5 | N4: 185 | O4: =SUM((N4-N3)+O3)*(1+(Input!$E$75/100)/2) -> 192.5148
A5: Fixed Cost - Buildings | B5: =Summary!F33 -> 35.06965218 | C5: 0.02133753583 | F5: Operating - 1.5 hours tractor time | K5: 4 | L5: 2022 | M5: 92 | N5: 187 | O5: =SUM((N5-N4)+O4)*(1+(Input!$E$75/100)/2) -> 198.405096
A6: Fixed Cost - Machinery | B6: =Summary!F34 -> 138.5418918 | C6: 0.08429346728 | F6: Operating - 0 hrs hired, 8 hours owner | K6: 5 | L6: 2023 | M6: 91 | N6: 192 | O6: =SUM((N6-N5)+O5)*(1+(Input!$E$75/100)/2) -> 207.4731979
A7: Fixed Cost - Pasture Land & Fencing | B7: =Summary!F35 -> 64.40300255 | C7: 0.03918491598 | F7: Pasture - cow number allocation | K7: 6 | L7: 2024 | M7: 90 | N7: 197 | O7: =SUM((N7-N6)+O6)*(1+(Input!$E$75/100)/2) -> 216.7226619
A8: Owners-Labour & Living | B8: =Summary!F38 -> 216 | C8: 0.1314215412 | F8: Winter Feed - 135 days to ration#1, pre and post | K8: 7 | L8: 2025 | M8: 89 | N8: 206 | O8: =SUM((N8-N7)+O7)*(1+(Input!$E$75/100)/2) -> 230.2371151
B9: =SUM(B2:B8) -> 1643.566177 | F9: Fixed - remove tractor and silage wagon cost ($0) | K9: 8 | L9: 2026 | M9: 87 | N9: 210 | O9: =SUM((N9-N8)+O8)*(1+(Input!$E$75/100)/2) -> 238.9218574
F10: Fixed - reduce tractor cost to $120,000 | K10: 9 | L10: 2027 | M10: 87.5 | N10: 207 | O10: =SUM((N10-N9)+O9)*(1+(Input!$E$75/100)/2) -> 240.6402946
K11: 10 | L11: 2028 | M11: 88 | N11: 202 | O11: =SUM((N11-N10)+O10)*(1+(Input!$E$75/100)/2) -> 240.3531005
A14: =Input!E13&" Head Beef Cow Calf - Other Operating Costs ($/cow)" -> 150 Head Beef Cow Calf - Other Operating Costs ($/cow)
A16: Straw | B16: =Summary!F13 -> 70
A17: Veterinary Medicine & Supplies | B17: =Summary!F14 -> 30.67666667
A18: Breeding Costs | B18: =Summary!F15 -> 46.42 | K18: From the meeting
A19: Fuel, Maintenance & Repairs | B19: =Summary!F16 -> 42.7173 | K19: years | L19: calf prices from meeting | M19: cull | N19: diff | O19: %
A20: Utilities | B20: =Summary!F17 -> 11.688774 | K20: 1 | L20: 180.43 | M20: 80 | N20: =SUM(L20-M20) -> 100.43 | O20: =SUM(M20/L20) -> 0.4433852464
A21: Marketing & Transportation | B21: =Summary!F18 -> 39.59833333 | K21: 2 | L21: 170 | M21: 80 | N21: =SUM(L21-M21) -> 90 | O21: =SUM(M21/L21) -> 0.4705882353
A22: Death Loss | B22: =Summary!F19 -> 32.5 | K22: 3 | L22: 175 | M22: 85 | N22: 90 | O22: 0.4857142857
A23: Manure Removal | B23: =Summary!F20 -> 10.83963562 | K23: 4 | L23: 175 | M23: 85 | N23: 90 | O23: 0.4857142857
A24: Insurance | B24: =Summary!F21 -> 18.83 | K24: 5 | L24: 175 | M24: 90 | N24: 85 | O24: 0.5142857143
A25: Herd Replacement | B25: =Summary!F22 -> 148.5 | K25: 6 | L25: 180 | M25: 95 | N25: 85 | O25: 0.5277777778
A26: Pasture Rental | B26: =Summary!F23 -> 59.375 | K26: 7 | L26: 190 | M26: 95 | N26: 95 | O26: 0.5
A27: Pasture Operating | B27: =Summary!F24 -> 34.76510638 | K27: 8 | L27: 200 | M27: 100 | N27: 100 | O27: 0.5
A28: Labour - Hired | B28: =Summary!F25 -> 0
A29: Miscellaneous | B29: =Summary!F26 -> 6.67 | K29: calves | L29: Year 2 to 8 prices | S29: AVG
A30: Operating Interest | B30: =Summary!F28 -> 40.3802 | K30: trend | L30: =N3 -> 187 | M30: =N4 -> 185 | N30: =N5 -> 187 | O30: =N6 -> 192 | P30: =N7 -> 197 | Q30: =N8 -> 206 | R30: =N9 -> 210 | S30: =AVERAGE(L30:R30) -> 194.8571429
B31: =SUM(B16:B30) -> 592.961016 | K31: with inflation | L31: =ROUND($O3,0) -> 191 | M31: =ROUND($O4,0) -> 193 | N31: =ROUND($O5,0) -> 198 | O31: =ROUND($O6,0) -> 207 | P31: =ROUND($O7,0) -> 217 | Q31: =ROUND($O8,0) -> 230 | R31: =ROUND($O9,0) -> 239 | S31: =AVERAGE(L31:R31) -> 210.7142857
K33: culls | L33: 100 | M33: ($/cwt discount from average calf prices)
K34: trend | L34: =SUM(L30-L33) -> 87 | M34: =SUM(M30-L33) -> 85 | N34: =SUM(N30-L33) -> 87 | O34: =SUM(O30-L33) -> 92 | P34: =SUM(P30-L33) -> 97 | Q34: =SUM(Q30-L33) -> 106 | R34: =SUM(R30-L33) -> 110 | S34: =AVERAGE(L34:R34) -> 94.85714286
A35: =Input!E13&" Head Beef Cow Calf - Cost Summary ($/cow/day)" -> 150 Head Beef Cow Calf - Cost Summary ($/cow/day) | K35: with inflation | L35: =SUM(L31-L33) -> 91 | M35: =SUM(M31-L33) -> 93 | N35: =SUM(N31-L33) -> 98 | O35: =SUM(O31-L33) -> 107 | P35: =SUM(P31-L33) -> 117 | Q35: =SUM(Q31-L33) -> 130 | R35: =SUM(R31-L33) -> 139 | S35: =AVERAGE(L35:R35) -> 110.7142857
A36: ="Grazing ("&Pasture!G3&" days)" -> Grazing (135 days) | B36: =Summary!F76 -> 1.174393399
A37: ="Extended grazing ("&Pasture!G4&" days)" -> Extended grazing (35 days) | B37: =Summary!F77 -> 1.190133952 | K37: culls | L37: 0.55 | M37: ($/cwt percentage of average calf prices)
A38: ="Yardage (based on "&Pasture!G5+Pasture!G4&" days)" -> Yardage (based on 230 days) | B38: =Summary!F79 -> 2.099456293 | K38: trend | L38: =SUM(L30*$L$37) -> 102.85 | M38: 101.75 | N38: 102.85 | O38: 105.6 | P38: 108.35 | Q38: 113.3 | R38: 115.5 | S38: =AVERAGE(L38:R38) -> 107.1714286
A39: ="Winter feed ("&Pasture!G5&" days)" -> Winter feed (195 days) | B39: =Summary!F78 -> 2.460620921 | K39: with inflation | L39: 105.05 | M39: 106.15 | N39: 108.9 | O39: 113.85 | P39: 119.35 | Q39: 126.5 | R39: 131.45 | S39: =AVERAGE(L39:R39) -> 115.8928571
A40: ="Total Overwinter Costs ("&Pasture!G5+Pasture!G4&" days)" -> Total Overwinter Costs (230 days) | B40: =Summary!F80 -> 4.366742241
K43: Feed | L43: 355 | M43: =SUM(L43*(1+(Input!$E$75/100)/2)) -> 362.1 | N43: =SUM(M43*(1+(Input!$E$75/100)/2)) -> 369.342 | O43: =SUM(N43*(1+(Input!$E$75/100)/2)) -> 376.72884 | P43: =SUM(O43*(1+(Input!$E$75/100)/2)) -> 384.2634168 | Q43: =SUM(P43*(1+(Input!$E$75/100)/2)) -> 391.9486851 | R43: =SUM(Q43*(1+(Input!$E$75/100)/2)) -> 399.7876588 | S43: =AVERAGE(L43:R43) -> 377.0243715
A46: =Input!E13&" Head Beef Cow Calf - Costs Not Covered ("&Input!E23&" lb. avg. steers & heifers)" -> 150 Head Beef Cow Calf - Costs Not Covered (575 lb. avg. steers & heifers)
A47: Calf Price | B47: Gross revenue | C47: ="Operating Costs = $"&ROUND(Summary!F29,0) -> Operating Costs = $1117 | D47: ="Fixed Costs = $"&ROUND(Summary!F36,0) -> Fixed Costs = $310 | E47: ="Labour (Owners Living) Cost = $"&ROUND(Summary!F38,0) -> Labour (Owners Living) Cost = $216 | F47: Total | I47: =C47 -> Operating Costs = $1117 | J47: =D47 -> Fixed Costs = $310 | K47: =A47 -> Calf Price
A49: =SUM(A50+$A$62) -> 370 | B49: =SUM((A49/100)*Input!$E$23)*(Input!$E$17/100) -> 2021.125 | C49: =IF(Summary!$F$29-B49<0,0,SUM(Summary!$F$29-B49)) -> 0 | D49: =IF(Summary!$F$29+Summary!$F$36-B49<0,0,SUM(Summary!$F$29+Summary!$F$36-B49-C49)) -> 0 | E49: =IF(Summary!$F$29+Summary!$F$36+Summary!$F$38-B49<0,0,SUM(Summary!$F$29+Summary!$F$36+Summary!$F$38-B49-C49-D49)) -> 0 | F49: =SUM(C49:E49) -> 0 | I49: =C49 -> 0 | J49: =D49 -> 0 | K49: =A49 -> 370 | M49: ="Market prices of $"&ROUND(Summary!F59,0)&"/cwt and lower do not cover both operating and fixed costs. This can indicate the potential need for LPI coverage and is an important step in Risk Management Planning." -> Market prices of $261/cwt and lower do not cover both operating and fixed costs. This can indicate the potential need for LPI coverage and is an important step in Risk Management Planning.
A50: 358 | B50: =SUM((A50/100)*Input!$E$23)*(Input!$E$17/100) -> 1955.575 | C50: =IF(Summary!$F$29-B50<0,0,SUM(Summary!$F$29-B50)) -> 0 | D50: =IF(Summary!$F$29+Summary!$F$36-B50<0,0,SUM(Summary!$F$29+Summary!$F$36-B50-C50)) -> 0 | E50: =IF(Summary!$F$29+Summary!$F$36+Summary!$F$38-B50<0,0,SUM(Summary!$F$29+Summary!$F$36+Summary!$F$38-B50-C50-D50)) -> 0 | F50: 0 | I50: 0 | J50: 0 | K50: 358
A51: =ROUND(Input!E24+A63,0) -> 346 | B51: =SUM((A51/100)*Input!$E$23)*(Input!$E$17/100) -> 1890.025 | C51: =IF(Summary!$F$29-B51<0,0,SUM(Summary!$F$29-B51)) -> 0 | D51: =IF(Summary!$F$29+Summary!$F$36-B51<0,0,SUM(Summary!$F$29+Summary!$F$36-B51-C51)) -> 0 | E51: =IF(Summary!$F$29+Summary!$F$36+Summary!$F$38-B51<0,0,SUM(Summary!$F$29+Summary!$F$36+Summary!$F$38-B51-C51-D51)) -> 0 | F51: 0 | I51: 0 | J51: 0 | K51: 346
A52: =SUM(A51-$A$62) -> 334 | B52: =SUM((A52/100)*Input!$E$23)*(Input!$E$17/100) -> 1824.475 | C52: =IF(Summary!$F$29-B52<0,0,SUM(Summary!$F$29-B52)) -> 0 | D52: =IF(Summary!$F$29+Summary!$F$36-B52<0,0,SUM(Summary!$F$29+Summary!$F$36-B52-C52)) -> 0 | E52: =IF(Summary!$F$29+Summary!$F$36+Summary!$F$38-B52<0,0,SUM(Summary!$F$29+Summary!$F$36+Summary!$F$38-B52-C52-D52)) -> 0 | F52: 0 | I52: 0 | J52: 0 | K52: 334
A53: =SUM(A52-$A$62) -> 322 | B53: =SUM((A53/100)*Input!$E$23)*(Input!$E$17/100) -> 1758.925 | C53: =IF(Summary!$F$29-B53<0,0,SUM(Summary!$F$29-B53)) -> 0 | D53: =IF(Summary!$F$29+Summary!$F$36-B53<0,0,SUM(Summary!$F$29+Summary!$F$36-B53-C53)) -> 0 | E53: =IF(Summary!$F$29+Summary!$F$36+Summary!$F$38-B53<0,0,SUM(Summary!$F$29+Summary!$F$36+Summary!$F$38-B53-C53-D53)) -> 0 | F53: 0 | I53: 0 | J53: 0 | K53: 322
A54: =SUM(A53-$A$62) -> 310 | B54: =SUM((A54/100)*Input!$E$23)*(Input!$E$17/100) -> 1693.375 | C54: =IF(Summary!$F$29-B54<0,0,SUM(Summary!$F$29-B54)) -> 0 | D54: =IF(Summary!$F$29+Summary!$F$36-B54<0,0,SUM(Summary!$F$29+Summary!$F$36-B54-C54)) -> 0 | E54: =IF(Summary!$F$29+Summary!$F$36+Summary!$F$38-B54<0,0,SUM(Summary!$F$29+Summary!$F$36+Summary!$F$38-B54-C54-D54)) -> 0 | F54: 0 | I54: 0 | J54: 0 | K54: 310
A55: 298 | B55: =SUM((A55/100)*Input!$E$23)*(Input!$E$17/100) -> 1627.825 | C55: =IF(Summary!$F$29-B55<0,0,SUM(Summary!$F$29-B55)) -> 0 | D55: =IF(Summary!$F$29+Summary!$F$36-B55<0,0,SUM(Summary!$F$29+Summary!$F$36-B55-C55)) -> 0 | E55: =IF(Summary!$F$29+Summary!$F$36+Summary!$F$38-B55<0,0,SUM(Summary!$F$29+Summary!$F$36+Summary!$F$38-B55-C55-D55)) -> 15.74117695 | F55: 15.74117695 | I55: 0 | J55: 0 | K55: 298
A56: 286 | B56: =SUM((A56/100)*Input!$E$23)*(Input!$E$17/100) -> 1562.275 | C56: =IF(Summary!$F$29-B56<0,0,SUM(Summary!$F$29-B56)) -> 0 | D56: =IF(Summary!$F$29+Summary!$F$36-B56<0,0,SUM(Summary!$F$29+Summary!$F$36-B56-C56)) -> 0 | E56: =IF(Summary!$F$29+Summary!$F$36+Summary!$F$38-B56<0,0,SUM(Summary!$F$29+Summary!$F$36+Summary!$F$38-B56-C56-D56)) -> 81.29117695 | F56: 81.29117695 | I56: 0 | J56: 0 | K56: 286
A57: 274 | B57: =SUM((A57/100)*Input!$E$23)*(Input!$E$17/100) -> 1496.725 | C57: =IF(Summary!$F$29-B57<0,0,SUM(Summary!$F$29-B57)) -> 0 | D57: =IF(Summary!$F$29+Summary!$F$36-B57<0,0,SUM(Summary!$F$29+Summary!$F$36-B57-C57)) -> 0 | E57: =IF(Summary!$F$29+Summary!$F$36+Summary!$F$38-B57<0,0,SUM(Summary!$F$29+Summary!$F$36+Summary!$F$38-B57-C57-D57)) -> 146.8411769 | F57: 146.8411769 | I57: 0 | J57: 0 | K57: 274
A58: 262 | B58: =SUM((A58/100)*Input!$E$23)*(Input!$E$17/100) -> 1431.175 | C58: =IF(Summary!$F$29-B58<0,0,SUM(Summary!$F$29-B58)) -> 0 | D58: =IF(Summary!$F$29+Summary!$F$36-B58<0,0,SUM(Summary!$F$29+Summary!$F$36-B58-C58)) -> 0 | E58: =IF(Summary!$F$29+Summary!$F$36+Summary!$F$38-B58<0,0,SUM(Summary!$F$29+Summary!$F$36+Summary!$F$38-B58-C58-D58)) -> 212.3911769 | F58: 212.3911769 | I58: 0 | J58: 0 | K58: 262
A59: 250 | B59: =SUM((A59/100)*Input!$E$23)*(Input!$E$17/100) -> 1365.625 | C59: =IF(Summary!$F$29-B59<0,0,SUM(Summary!$F$29-B59)) -> 0 | D59: =IF(Summary!$F$29+Summary!$F$36-B59<0,0,SUM(Summary!$F$29+Summary!$F$36-B59-C59)) -> 61.94117695 | E59: =IF(Summary!$F$29+Summary!$F$36+Summary!$F$38-B59<0,0,SUM(Summary!$F$29+Summary!$F$36+Summary!$F$38-B59-C59-D59)) -> 216 | F59: 277.9411769 | I59: 0 | J59: 61.94117695 | K59: 250
A60: 238 | B60: =SUM((A60/100)*Input!$E$23)*(Input!$E$17/100) -> 1300.075 | C60: =IF(Summary!$F$29-B60<0,0,SUM(Summary!$F$29-B60)) -> 0 | D60: =IF(Summary!$F$29+Summary!$F$36-B60<0,0,SUM(Summary!$F$29+Summary!$F$36-B60-C60)) -> 127.4911769 | E60: =IF(Summary!$F$29+Summary!$F$36+Summary!$F$38-B60<0,0,SUM(Summary!$F$29+Summary!$F$36+Summary!$F$38-B60-C60-D60)) -> 216 | F60: 343.4911769 | I60: 0 | J60: 127.4911769 | K60: 238
A62: 12 | B62: price change
A63: -20 | B63: initial mod.
A68: ="2021 Beef Cow Calf - Risk & Reward ("&Input!E23&" lb. avg. steers & heifers)" -> 2021 Beef Cow Calf - Risk & Reward (575 lb. avg. steers & heifers)
A69: Calf Price | B69: Gross revenue | C69: Operating Cost | D69: Fixed Cost | E69: Labour | F69: Margin Over Operating & Fixed Cost
A71: =SUM(A72-5) -> 346 | B71: =SUM((A71/100)*Input!$E$23)*(Input!$E$17/100) -> 1890.025 | C71: =Summary!$F$29 -> 1117.185875 | D71: =Summary!$F$36 -> 310.3803021 | E71: =Summary!$F$38 -> 216 | F71: =SUM(B71-(C71+D71)) -> 462.4588231
A72: =SUM(A73-5) -> 351 | B72: =SUM((A72/100)*Input!$E$23)*(Input!$E$17/100) -> 1917.3375 | C72: =Summary!$F$29 -> 1117.185875 | D72: =Summary!$F$36 -> 310.3803021 | E72: =Summary!$F$38 -> 216 | F72: =SUM(B72-(C72+D72)) -> 489.7713231
A73: =SUM(A74-5) -> 356 | B73: =SUM((A73/100)*Input!$E$23)*(Input!$E$17/100) -> 1944.65 | C73: =Summary!$F$29 -> 1117.185875 | D73: =Summary!$F$36 -> 310.3803021 | E73: =Summary!$F$38 -> 216 | F73: 517.0838231
A74: =SUM(A75-5) -> 361 | B74: =SUM((A74/100)*Input!$E$23)*(Input!$E$17/100) -> 1971.9625 | C74: =Summary!$F$29 -> 1117.185875 | D74: =Summary!$F$36 -> 310.3803021 | E74: =Summary!$F$38 -> 216 | F74: 544.3963231
A75: =ROUND(Input!E24,0) -> 366 | B75: =SUM((A75/100)*Input!$E$23)*(Input!$E$17/100) -> 1999.275 | C75: =Summary!$F$29 -> 1117.185875 | D75: =Summary!$F$36 -> 310.3803021 | E75: =Summary!$F$38 -> 216 | F75: 571.7088231
A76: =SUM(A75+5) -> 371 | B76: =SUM((A76/100)*Input!$E$23)*(Input!$E$17/100) -> 2026.5875 | C76: =Summary!$F$29 -> 1117.185875 | D76: =Summary!$F$36 -> 310.3803021 | E76: =Summary!$F$38 -> 216 | F76: 599.0213231
A77: 376 | B77: =SUM((A77/100)*Input!$E$23)*(Input!$E$17/100) -> 2053.9 | C77: =Summary!$F$29 -> 1117.185875 | D77: =Summary!$F$36 -> 310.3803021 | E77: =Summary!$F$38 -> 216 | F77: 626.3338231
A78: 381 | B78: =SUM((A78/100)*Input!$E$23)*(Input!$E$17/100) -> 2081.2125 | C78: =Summary!$F$29 -> 1117.185875 | D78: =Summary!$F$36 -> 310.3803021 | E78: =Summary!$F$38 -> 216 | F78: 653.6463231
A79: 386 | B79: =SUM((A79/100)*Input!$E$23)*(Input!$E$17/100) -> 2108.525 | C79: =Summary!$F$29 -> 1117.185875 | D79: =Summary!$F$36 -> 310.3803021 | E79: =Summary!$F$38 -> 216 | F79: 680.9588231
A80: 391 | B80: =SUM((A80/100)*Input!$E$23)*(Input!$E$17/100) -> 2135.8375 | C80: =Summary!$F$29 -> 1117.185875 | D80: =Summary!$F$36 -> 310.3803021 | E80: =Summary!$F$38 -> 216 | F80: 708.2713231
A81: 396 | B81: =SUM((A81/100)*Input!$E$23)*(Input!$E$17/100) -> 2163.15 | C81: =Summary!$F$29 -> 1117.185875 | D81: =Summary!$F$36 -> 310.3803021 | E81: =Summary!$F$38 -> 216 | F81: 735.5838231
A82: 401 | B82: =SUM((A82/100)*Input!$E$23)*(Input!$E$17/100) -> 2190.4625 | C82: =Summary!$F$29 -> 1117.185875 | D82: =Summary!$F$36 -> 310.3803021 | E82: =Summary!$F$38 -> 216 | F82: 762.8963231
A87: =Input!E13&" Head Beef Cow Calf - Change to Profit Margin Over Operating & Fixed Costs" -> 150 Head Beef Cow Calf - Change to Profit Margin Over Operating & Fixed Costs
B88: Base Margin
C89: Change
A90: Baseline | B90: =Summary!F53 -> 569.7969481
A91: ="Cost ("&'Risk Analysis'!$C$24*100&"%)" -> Cost (-5%) | B91: =B90 -> 569.7969481 | C91: ='Risk Analysis'!H24 -> 55.85929374
A92: ="Production ("&'Risk Analysis'!$C$26*100&"% Weaning Weight)" -> Production (5% Weaning Weight) | B92: =B90 -> 569.7969481 | C92: ='Risk Analysis'!H26 -> 105.124375
A93: ="Price ("&'Risk Analysis'!$C$25*100&"% or $"&TEXT(ROUND('Risk Analysis'!F25/100,2),"0.00")&"/lb)" -> Price (5% or $0.18/lb) | B93: =B90 -> 569.7969481 | C93: ='Risk Analysis'!H25 -> 105.124375
A94: Cost & Production | B94: =B90 -> 569.7969481 | C94: =C91+C92 -> 160.9836687
A95: Cost, Production & Price | B95: =B90 -> 569.7969481 | C95: =C91+C92+C93 -> 266.1080437
A126: 2021 Beef Cow Calf - Cumulative, Multiplicative, Compounding Effects: Change to Margin Over Operating & Fixed Costs
B127: Base Margin
C128: Change | K128: ="Market prices of $"&ROUND(Summary!D138,0)&"/cwt and lower do not cover both operating and fixed costs. This can indicate the potential need for WLPIP coverage and is an important step in Risk Management Planning)." -> Market prices of $0/cwt and lower do not cover both operating and fixed costs. This can indicate the potential need for WLPIP coverage and is an important step in Risk Management Planning).
A129: Baseline | B129: =Summary!F53 -> 569.7969481
A130: ="Cost ("&'Risk Analysis'!$C$24*100&"%)" -> Cost (-5%) | B130: =B129 -> 569.7969481 | C130: ='Risk Analysis'!H24 -> 55.85929374
A131: ="Production ("&'Risk Analysis'!$C$26*100&"% Weaning Weight)" -> Production (5% Weaning Weight) | B131: =B129 -> 569.7969481 | C131: ='Risk Analysis'!H26 -> 105.124375
A132: ="Production ("&'Risk Analysis'!$C$27*100&"% Calf Crop)" -> Production (1% Calf Crop) | B132: =B129 -> 569.7969481 | C132: ='Risk Analysis'!H27 -> 21.024875
A133: ="Price ("&'Risk Analysis'!$C$25*100&"% or $"&TEXT(ROUND('Risk Analysis'!F25/100,2),"0.00")&"/lb)" -> Price (5% or $0.18/lb) | B133: =B129 -> 569.7969481 | C133: ='Risk Analysis'!H25 -> 105.124375
A134: Cost & Production | B134: =B129 -> 569.7969481 | C134: =C130+C131+C132 -> 182.0085437
A135: Cost, Production & Price | B135: =B129 -> 569.7969481 | C135: =C130+C131+C133+C132 -> 287.1329187
A174: equity | B174: 1 | C174: =SUM(B174-0.05) -> 0.95 | D174: 0.9 | E174: 0.85 | F174: 0.8 | G174: 0.75 | H174: 0.7 | I174: 0.65 | J174: 0.6 | K174: 0.55 | L174: 0.5
A175: financed | B175: =SUM(1-B174) -> 0 | C175: 0.05 | D175: 0.1 | E175: 0.15 | F175: 0.2 | G175: 0.25 | H175: 0.3 | I175: 0.35 | J175: 0.4 | K175: 0.45 | L175: 0.5
A178: Debt Summary | B178: $/cow
A179: Cows | B179: =(Fixed!$D$4*B175) -> 0 | C179: =(Fixed!$D$4*C175) -> 130 | D179: =(Fixed!$D$4*D175) -> 260 | E179: =(Fixed!$D$4*E175) -> 390 | F179: =(Fixed!$D$4*F175) -> 520 | G179: =(Fixed!$D$4*G175) -> 650 | H179: =(Fixed!$D$4*H175) -> 780 | I179: =(Fixed!$D$4*I175) -> 910 | J179: =(Fixed!$D$4*J175) -> 1040 | K179: =(Fixed!$D$4*K175) -> 1170 | L179: =(Fixed!$D$4*L175) -> 1300
A180: Marginal Pasture Land | B180: =SUM(Fixed!$D$16*B175*Fixed!$D$17)/Input!$E$13 -> 0 | C180: =SUM(Fixed!$D$16*C175*Fixed!$D$17)/Input!$E$13 -> 80 | D180: =SUM(Fixed!$D$16*D175*Fixed!$D$17)/Input!$E$13 -> 160 | E180: =SUM(Fixed!$D$16*E175*Fixed!$D$17)/Input!$E$13 -> 240 | F180: =SUM(Fixed!$D$16*F175*Fixed!$D$17)/Input!$E$13 -> 320 | G180: =SUM(Fixed!$D$16*G175*Fixed!$D$17)/Input!$E$13 -> 400 | H180: =SUM(Fixed!$D$16*H175*Fixed!$D$17)/Input!$E$13 -> 480 | I180: =SUM(Fixed!$D$16*I175*Fixed!$D$17)/Input!$E$13 -> 560 | J180: =SUM(Fixed!$D$16*J175*Fixed!$D$17)/Input!$E$13 -> 640 | K180: =SUM(Fixed!$D$16*K175*Fixed!$D$17)/Input!$E$13 -> 720 | L180: =SUM(Fixed!$D$16*L175*Fixed!$D$17)/Input!$E$13 -> 800
A181: Improved Pasture Land | B181: =SUM(Fixed!$D$30*B175*Fixed!$D$31)/Input!$E$13 -> 0 | C181: =SUM(Fixed!$D$30*C175*Fixed!$D$31)/Input!$E$13 -> 30.6 | D181: =SUM(Fixed!$D$30*D175*Fixed!$D$31)/Input!$E$13 -> 61.2 | E181: =SUM(Fixed!$D$30*E175*Fixed!$D$31)/Input!$E$13 -> 91.8 | F181: =SUM(Fixed!$D$30*F175*Fixed!$D$31)/Input!$E$13 -> 122.4 | G181: =SUM(Fixed!$D$30*G175*Fixed!$D$31)/Input!$E$13 -> 153 | H181: =SUM(Fixed!$D$30*H175*Fixed!$D$31)/Input!$E$13 -> 183.6 | I181: =SUM(Fixed!$D$30*I175*Fixed!$D$31)/Input!$E$13 -> 214.2 | J181: =SUM(Fixed!$D$30*J175*Fixed!$D$31)/Input!$E$13 -> 244.8 | K181: =SUM(Fixed!$D$30*K175*Fixed!$D$31)/Input!$E$13 -> 275.4 | L181: =SUM(Fixed!$D$30*L175*Fixed!$D$31)/Input!$E$13 -> 306
A182: Machinery & Equipment | B182: =(Fixed!$I$4*B175) -> 0 | C182: =(Fixed!$I$4*C175) -> 59.15 | D182: =(Fixed!$I$4*D175) -> 118.3 | E182: =(Fixed!$I$4*E175) -> 177.45 | F182: =(Fixed!$I$4*F175) -> 236.6 | G182: =(Fixed!$I$4*G175) -> 295.75 | H182: =(Fixed!$I$4*H175) -> 354.9 | I182: =(Fixed!$I$4*I175) -> 414.05 | J182: =(Fixed!$I$4*J175) -> 473.2 | K182: =(Fixed!$I$4*K175) -> 532.35 | L182: =(Fixed!$I$4*L175) -> 591.5
A183: Fencing | B183: =Fixed!$I$32*B175 -> 0 | C183: =Fixed!$I$32*C175 -> 10.41986667 | D183: =Fixed!$I$32*D175 -> 20.83973333 | E183: =Fixed!$I$32*E175 -> 31.2596 | F183: =Fixed!$I$32*F175 -> 41.67946667 | G183: =Fixed!$I$32*G175 -> 52.09933333 | H183: =Fixed!$I$32*H175 -> 62.5192 | I183: =Fixed!$I$32*I175 -> 72.93906667 | J183: =Fixed!$I$32*J175 -> 83.35893333 | K183: =Fixed!$I$32*K175 -> 93.7788 | L183: =Fixed!$I$32*L175 -> 104.1986667
A184: Buildings & Facilities | B184: =(Fixed!$I$18*B175) -> 0 | C184: =(Fixed!$I$18*C175) -> 25.85 | D184: =(Fixed!$I$18*D175) -> 51.7 | E184: =(Fixed!$I$18*E175) -> 77.55 | F184: =(Fixed!$I$18*F175) -> 103.4 | G184: =(Fixed!$I$18*G175) -> 129.25 | H184: =(Fixed!$I$18*H175) -> 155.1 | I184: =(Fixed!$I$18*I175) -> 180.95 | J184: =(Fixed!$I$18*J175) -> 206.8 | K184: =(Fixed!$I$18*K175) -> 232.65 | L184: =(Fixed!$I$18*L175) -> 258.5
A185: Total Debt Per Cow | B185: =SUM(B179:B184) -> 0 | C185: 336.0198667 | D185: 672.0397333 | E185: 1008.0596 | F185: 1344.079467 | G185: 1680.099333 | H185: 2016.1192 | I185: 2352.139067 | J185: 2688.158933 | K185: 3024.1788 | L185: 3360.198667
A187: Gross Revenue | B187: =Summary!F46 -> 1997.363125 | C187: =$B$187 -> 1997.363125 | D187: 1997.363125 | E187: 1997.363125 | F187: 1997.363125 | G187: 1997.363125 | H187: 1997.363125 | I187: 1997.363125 | J187: 1997.363125 | K187: 1997.363125 | L187: 1997.363125
A189: Total Operating Costs | B189: =Summary!F29 -> 1117.185875 | C189: =$B$189 -> 1117.185875 | D189: 1117.185875 | E189: 1117.185875 | F189: 1117.185875 | G189: 1117.185875 | H189: 1117.185875 | I189: 1117.185875 | J189: 1117.185875 | K189: 1117.185875 | L189: 1117.185875
A191: Total Fixed Costs | B191: =SUM(B192:B197) -> 124.69788 | C191: 175.5924138 | D191: 226.4869477 | E191: 277.3814815 | F191: 328.2760153 | G191: 379.1705492 | H191: 430.065083 | I191: 480.9596169 | J191: 531.8541507 | K191: 582.7486845 | L191: 633.6432184
A192: Cows | B192: =-PMT(Fixed!$C$9,Fixed!$D$9,Fixed!$D$4*B175,0)+SUM(Fixed!$D$4*B174)*(Fixed!$D$7) -> 0 | C192: =-PMT(Fixed!$C$9,Fixed!$D$9,Fixed!$D$4*C175,0)+SUM(Fixed!$D$4*C174)*(Fixed!$D$7) -> 24.12191855 | D192: =-PMT(Fixed!$C$9,Fixed!$D$9,Fixed!$D$4*D175,0)+SUM(Fixed!$D$4*D174)*(Fixed!$D$7) -> 48.2438371 | E192: =-PMT(Fixed!$C$9,Fixed!$D$9,Fixed!$D$4*E175,0)+SUM(Fixed!$D$4*E174)*(Fixed!$D$7) -> 72.36575566 | F192: =-PMT(Fixed!$C$9,Fixed!$D$9,Fixed!$D$4*F175,0)+SUM(Fixed!$D$4*F174)*(Fixed!$D$7) -> 96.48767421 | G192: =-PMT(Fixed!$C$9,Fixed!$D$9,Fixed!$D$4*G175,0)+SUM(Fixed!$D$4*G174)*(Fixed!$D$7) -> 120.6095928 | H192: =-PMT(Fixed!$C$9,Fixed!$D$9,Fixed!$D$4*H175,0)+SUM(Fixed!$D$4*H174)*(Fixed!$D$7) -> 144.7315113 | I192: =-PMT(Fixed!$C$9,Fixed!$D$9,Fixed!$D$4*I175,0)+SUM(Fixed!$D$4*I174)*(Fixed!$D$7) -> 168.8534299 | J192: =-PMT(Fixed!$C$9,Fixed!$D$9,Fixed!$D$4*J175,0)+SUM(Fixed!$D$4*J174)*(Fixed!$D$7) -> 192.9753484 | K192: =-PMT(Fixed!$C$9,Fixed!$D$9,Fixed!$D$4*K175,0)+SUM(Fixed!$D$4*K174)*(Fixed!$D$7) -> 217.097267 | L192: =-PMT(Fixed!$C$9,Fixed!$D$9,Fixed!$D$4*L175,0)+SUM(Fixed!$D$4*L174)*(Fixed!$D$7) -> 241.2191855
A193: Marginal Pasture Land | B193: =(-PMT(Fixed!$C$22,Fixed!$D$22,Fixed!$D$16*Fixed!$D$17*B175,0)+SUM(Fixed!$D$16*Fixed!$D$17*B174)*(Fixed!$D$20))/Input!$E$13 -> 0 | C193: =(-PMT(Fixed!$C$22,Fixed!$D$22,Fixed!$D$16*Fixed!$D$17*C175,0)+SUM(Fixed!$D$16*Fixed!$D$17*C174)*(Fixed!$D$20))/Input!$E$13 -> 6.558518487 | D193: =(-PMT(Fixed!$C$22,Fixed!$D$22,Fixed!$D$16*Fixed!$D$17*D175,0)+SUM(Fixed!$D$16*Fixed!$D$17*D174)*(Fixed!$D$20))/Input!$E$13 -> 13.11703697 | E193: =(-PMT(Fixed!$C$22,Fixed!$D$22,Fixed!$D$16*Fixed!$D$17*E175,0)+SUM(Fixed!$D$16*Fixed!$D$17*E174)*(Fixed!$D$20))/Input!$E$13 -> 19.67555546 | F193: =(-PMT(Fixed!$C$22,Fixed!$D$22,Fixed!$D$16*Fixed!$D$17*F175,0)+SUM(Fixed!$D$16*Fixed!$D$17*F174)*(Fixed!$D$20))/Input!$E$13 -> 26.23407395 | G193: =(-PMT(Fixed!$C$22,Fixed!$D$22,Fixed!$D$16*Fixed!$D$17*G175,0)+SUM(Fixed!$D$16*Fixed!$D$17*G174)*(Fixed!$D$20))/Input!$E$13 -> 32.79259243 | H193: =(-PMT(Fixed!$C$22,Fixed!$D$22,Fixed!$D$16*Fixed!$D$17*H175,0)+SUM(Fixed!$D$16*Fixed!$D$17*H174)*(Fixed!$D$20))/Input!$E$13 -> 39.35111092 | I193: =(-PMT(Fixed!$C$22,Fixed!$D$22,Fixed!$D$16*Fixed!$D$17*I175,0)+SUM(Fixed!$D$16*Fixed!$D$17*I174)*(Fixed!$D$20))/Input!$E$13 -> 45.90962941 | J193: =(-PMT(Fixed!$C$22,Fixed!$D$22,Fixed!$D$16*Fixed!$D$17*J175,0)+SUM(Fixed!$D$16*Fixed!$D$17*J174)*(Fixed!$D$20))/Input!$E$13 -> 52.46814789 | K193: =(-PMT(Fixed!$C$22,Fixed!$D$22,Fixed!$D$16*Fixed!$D$17*K175,0)+SUM(Fixed!$D$16*Fixed!$D$17*K174)*(Fixed!$D$20))/Input!$E$13 -> 59.02666638 | L193: =(-PMT(Fixed!$C$22,Fixed!$D$22,Fixed!$D$16*Fixed!$D$17*L175,0)+SUM(Fixed!$D$16*Fixed!$D$17*L174)*(Fixed!$D$20))/Input!$E$13 -> 65.58518487
A194: Improved Pasture Land | B194: =(-PMT(Fixed!$C$36,Fixed!$D$36,Fixed!$D$30*Fixed!$D$31*B175,0)+SUM(Fixed!$D$30*Fixed!$D$31*B174)*(Fixed!$D$34))/Input!$E$13 -> 0 | C194: =(-PMT(Fixed!$C$36,Fixed!$D$36,Fixed!$D$30*Fixed!$D$31*C175,0)+SUM(Fixed!$D$30*Fixed!$D$31*C174)*(Fixed!$D$34))/Input!$E$13 -> 2.508633321 | D194: =(-PMT(Fixed!$C$36,Fixed!$D$36,Fixed!$D$30*Fixed!$D$31*D175,0)+SUM(Fixed!$D$30*Fixed!$D$31*D174)*(Fixed!$D$34))/Input!$E$13 -> 5.017266642 | E194: =(-PMT(Fixed!$C$36,Fixed!$D$36,Fixed!$D$30*Fixed!$D$31*E175,0)+SUM(Fixed!$D$30*Fixed!$D$31*E174)*(Fixed!$D$34))/Input!$E$13 -> 7.525899964 | F194: =(-PMT(Fixed!$C$36,Fixed!$D$36,Fixed!$D$30*Fixed!$D$31*F175,0)+SUM(Fixed!$D$30*Fixed!$D$31*F174)*(Fixed!$D$34))/Input!$E$13 -> 10.03453328 | G194: =(-PMT(Fixed!$C$36,Fixed!$D$36,Fixed!$D$30*Fixed!$D$31*G175,0)+SUM(Fixed!$D$30*Fixed!$D$31*G174)*(Fixed!$D$34))/Input!$E$13 -> 12.54316661 | H194: =(-PMT(Fixed!$C$36,Fixed!$D$36,Fixed!$D$30*Fixed!$D$31*H175,0)+SUM(Fixed!$D$30*Fixed!$D$31*H174)*(Fixed!$D$34))/Input!$E$13 -> 15.05179993 | I194: =(-PMT(Fixed!$C$36,Fixed!$D$36,Fixed!$D$30*Fixed!$D$31*I175,0)+SUM(Fixed!$D$30*Fixed!$D$31*I174)*(Fixed!$D$34))/Input!$E$13 -> 17.56043325 | J194: =(-PMT(Fixed!$C$36,Fixed!$D$36,Fixed!$D$30*Fixed!$D$31*J175,0)+SUM(Fixed!$D$30*Fixed!$D$31*J174)*(Fixed!$D$34))/Input!$E$13 -> 20.06906657 | K194: =(-PMT(Fixed!$C$36,Fixed!$D$36,Fixed!$D$30*Fixed!$D$31*K175,0)+SUM(Fixed!$D$30*Fixed!$D$31*K174)*(Fixed!$D$34))/Input!$E$13 -> 22.57769989 | L194: =(-PMT(Fixed!$C$36,Fixed!$D$36,Fixed!$D$30*Fixed!$D$31*L175,0)+SUM(Fixed!$D$30*Fixed!$D$31*L174)*(Fixed!$D$34))/Input!$E$13 -> 25.08633321
A195: Machinery & Equipment | B195: =-PMT(Fixed!$H$11,Fixed!$I$11,Fixed!$I$4*B175,0)+((Fixed!$I$4-(Fixed!$I$4*Fixed!$I$5))/Fixed!$I$6)+(SUM(Fixed!$I$4*B174)*(Fixed!$I$9)) -> 94.64 | C195: =-PMT(Fixed!$H$11,Fixed!$I$11,Fixed!$I$4*C175,0)+((Fixed!$I$4-(Fixed!$I$4*Fixed!$I$5))/Fixed!$I$6)+(SUM(Fixed!$I$4*C174)*(Fixed!$I$9)) -> 105.6154729 | D195: =-PMT(Fixed!$H$11,Fixed!$I$11,Fixed!$I$4*D175,0)+((Fixed!$I$4-(Fixed!$I$4*Fixed!$I$5))/Fixed!$I$6)+(SUM(Fixed!$I$4*D174)*(Fixed!$I$9)) -> 116.5909459 | E195: =-PMT(Fixed!$H$11,Fixed!$I$11,Fixed!$I$4*E175,0)+((Fixed!$I$4-(Fixed!$I$4*Fixed!$I$5))/Fixed!$I$6)+(SUM(Fixed!$I$4*E174)*(Fixed!$I$9)) -> 127.5664188 | F195: =-PMT(Fixed!$H$11,Fixed!$I$11,Fixed!$I$4*F175,0)+((Fixed!$I$4-(Fixed!$I$4*Fixed!$I$5))/Fixed!$I$6)+(SUM(Fixed!$I$4*F174)*(Fixed!$I$9)) -> 138.5418918 | G195: =-PMT(Fixed!$H$11,Fixed!$I$11,Fixed!$I$4*G175,0)+((Fixed!$I$4-(Fixed!$I$4*Fixed!$I$5))/Fixed!$I$6)+(SUM(Fixed!$I$4*G174)*(Fixed!$I$9)) -> 149.5173647 | H195: =-PMT(Fixed!$H$11,Fixed!$I$11,Fixed!$I$4*H175,0)+((Fixed!$I$4-(Fixed!$I$4*Fixed!$I$5))/Fixed!$I$6)+(SUM(Fixed!$I$4*H174)*(Fixed!$I$9)) -> 160.4928376 | I195: =-PMT(Fixed!$H$11,Fixed!$I$11,Fixed!$I$4*I175,0)+((Fixed!$I$4-(Fixed!$I$4*Fixed!$I$5))/Fixed!$I$6)+(SUM(Fixed!$I$4*I174)*(Fixed!$I$9)) -> 171.4683106 | J195: =-PMT(Fixed!$H$11,Fixed!$I$11,Fixed!$I$4*J175,0)+((Fixed!$I$4-(Fixed!$I$4*Fixed!$I$5))/Fixed!$I$6)+(SUM(Fixed!$I$4*J174)*(Fixed!$I$9)) -> 182.4437835 | K195: =-PMT(Fixed!$H$11,Fixed!$I$11,Fixed!$I$4*K175,0)+((Fixed!$I$4-(Fixed!$I$4*Fixed!$I$5))/Fixed!$I$6)+(SUM(Fixed!$I$4*K174)*(Fixed!$I$9)) -> 193.4192565 | L195: =-PMT(Fixed!$H$11,Fixed!$I$11,Fixed!$I$4*L175,0)+((Fixed!$I$4-(Fixed!$I$4*Fixed!$I$5))/Fixed!$I$6)+(SUM(Fixed!$I$4*L174)*(Fixed!$I$9)) -> 204.3947294
A196: Fencing | B196: =-PMT(Fixed!$H$39,Fixed!$I$39,Fixed!$I$32*B175,0)+((Fixed!$I$32-(Fixed!$I$32*Fixed!$I$33))/Fixed!$I$34)+(SUM(Fixed!$I$32*B174)*(Fixed!$I$37)) -> 9.37788 | C196: =-PMT(Fixed!$H$39,Fixed!$I$39,Fixed!$I$32*C175,0)+((Fixed!$I$32-(Fixed!$I$32*Fixed!$I$33))/Fixed!$I$34)+(SUM(Fixed!$I$32*C174)*(Fixed!$I$37)) -> 11.31131981 | D196: =-PMT(Fixed!$H$39,Fixed!$I$39,Fixed!$I$32*D175,0)+((Fixed!$I$32-(Fixed!$I$32*Fixed!$I$33))/Fixed!$I$34)+(SUM(Fixed!$I$32*D174)*(Fixed!$I$37)) -> 13.24475962 | E196: =-PMT(Fixed!$H$39,Fixed!$I$39,Fixed!$I$32*E175,0)+((Fixed!$I$32-(Fixed!$I$32*Fixed!$I$33))/Fixed!$I$34)+(SUM(Fixed!$I$32*E174)*(Fixed!$I$37)) -> 15.17819942 | F196: =-PMT(Fixed!$H$39,Fixed!$I$39,Fixed!$I$32*F175,0)+((Fixed!$I$32-(Fixed!$I$32*Fixed!$I$33))/Fixed!$I$34)+(SUM(Fixed!$I$32*F174)*(Fixed!$I$37)) -> 17.11163923 | G196: =-PMT(Fixed!$H$39,Fixed!$I$39,Fixed!$I$32*G175,0)+((Fixed!$I$32-(Fixed!$I$32*Fixed!$I$33))/Fixed!$I$34)+(SUM(Fixed!$I$32*G174)*(Fixed!$I$37)) -> 19.04507904 | H196: =-PMT(Fixed!$H$39,Fixed!$I$39,Fixed!$I$32*H175,0)+((Fixed!$I$32-(Fixed!$I$32*Fixed!$I$33))/Fixed!$I$34)+(SUM(Fixed!$I$32*H174)*(Fixed!$I$37)) -> 20.97851885 | I196: =-PMT(Fixed!$H$39,Fixed!$I$39,Fixed!$I$32*I175,0)+((Fixed!$I$32-(Fixed!$I$32*Fixed!$I$33))/Fixed!$I$34)+(SUM(Fixed!$I$32*I174)*(Fixed!$I$37)) -> 22.91195866 | J196: =-PMT(Fixed!$H$39,Fixed!$I$39,Fixed!$I$32*J175,0)+((Fixed!$I$32-(Fixed!$I$32*Fixed!$I$33))/Fixed!$I$34)+(SUM(Fixed!$I$32*J174)*(Fixed!$I$37)) -> 24.84539847 | K196: =-PMT(Fixed!$H$39,Fixed!$I$39,Fixed!$I$32*K175,0)+((Fixed!$I$32-(Fixed!$I$32*Fixed!$I$33))/Fixed!$I$34)+(SUM(Fixed!$I$32*K174)*(Fixed!$I$37)) -> 26.77883827 | L196: =-PMT(Fixed!$H$39,Fixed!$I$39,Fixed!$I$32*L175,0)+((Fixed!$I$32-(Fixed!$I$32*Fixed!$I$33))/Fixed!$I$34)+(SUM(Fixed!$I$32*L174)*(Fixed!$I$37)) -> 28.71227808
A197: Buildings & Facilities | B197: =-PMT(Fixed!$H$25,Fixed!$I$25,Fixed!$I$18*B175,0)+((Fixed!$I$18-(Fixed!$I$18*Fixed!$I$19))/Fixed!$I$20)+(SUM(Fixed!$I$18*B174)*(Fixed!$I$23)) -> 20.68 | C197: =-PMT(Fixed!$H$25,Fixed!$I$25,Fixed!$I$18*C175,0)+((Fixed!$I$18-(Fixed!$I$18*Fixed!$I$19))/Fixed!$I$20)+(SUM(Fixed!$I$18*C174)*(Fixed!$I$23)) -> 25.47655073 | D197: =-PMT(Fixed!$H$25,Fixed!$I$25,Fixed!$I$18*D175,0)+((Fixed!$I$18-(Fixed!$I$18*Fixed!$I$19))/Fixed!$I$20)+(SUM(Fixed!$I$18*D174)*(Fixed!$I$23)) -> 30.27310145 | E197: =-PMT(Fixed!$H$25,Fixed!$I$25,Fixed!$I$18*E175,0)+((Fixed!$I$18-(Fixed!$I$18*Fixed!$I$19))/Fixed!$I$20)+(SUM(Fixed!$I$18*E174)*(Fixed!$I$23)) -> 35.06965218 | F197: =-PMT(Fixed!$H$25,Fixed!$I$25,Fixed!$I$18*F175,0)+((Fixed!$I$18-(Fixed!$I$18*Fixed!$I$19))/Fixed!$I$20)+(SUM(Fixed!$I$18*F174)*(Fixed!$I$23)) -> 39.86620291 | G197: =-PMT(Fixed!$H$25,Fixed!$I$25,Fixed!$I$18*G175,0)+((Fixed!$I$18-(Fixed!$I$18*Fixed!$I$19))/Fixed!$I$20)+(SUM(Fixed!$I$18*G174)*(Fixed!$I$23)) -> 44.66275364 | H197: =-PMT(Fixed!$H$25,Fixed!$I$25,Fixed!$I$18*H175,0)+((Fixed!$I$18-(Fixed!$I$18*Fixed!$I$19))/Fixed!$I$20)+(SUM(Fixed!$I$18*H174)*(Fixed!$I$23)) -> 49.45930436 | I197: =-PMT(Fixed!$H$25,Fixed!$I$25,Fixed!$I$18*I175,0)+((Fixed!$I$18-(Fixed!$I$18*Fixed!$I$19))/Fixed!$I$20)+(SUM(Fixed!$I$18*I174)*(Fixed!$I$23)) -> 54.25585509 | J197: =-PMT(Fixed!$H$25,Fixed!$I$25,Fixed!$I$18*J175,0)+((Fixed!$I$18-(Fixed!$I$18*Fixed!$I$19))/Fixed!$I$20)+(SUM(Fixed!$I$18*J174)*(Fixed!$I$23)) -> 59.05240582 | K197: =-PMT(Fixed!$H$25,Fixed!$I$25,Fixed!$I$18*K175,0)+((Fixed!$I$18-(Fixed!$I$18*Fixed!$I$19))/Fixed!$I$20)+(SUM(Fixed!$I$18*K174)*(Fixed!$I$23)) -> 63.84895655 | L197: =-PMT(Fixed!$H$25,Fixed!$I$25,Fixed!$I$18*L175,0)+((Fixed!$I$18-(Fixed!$I$18*Fixed!$I$19))/Fixed!$I$20)+(SUM(Fixed!$I$18*L174)*(Fixed!$I$23)) -> 68.64550727
A199: C. Labour - Owners Living | B199: =Summary!F38 -> 216 | C199: =$B$199 -> 216 | D199: 216 | E199: 216 | F199: 216 | G199: 216 | H199: 216 | I199: 216 | J199: 216 | K199: 216 | L199: 216
A200: Profit
A201: over op & fixed | B201: =SUM(B187-B189-B191) -> 755.4793702 | C201: 704.5848364 | D201: 653.6903025 | E201: 602.7957687 | F201: 551.9012349 | G201: 501.006701 | H201: 450.1121672 | I201: 399.2176333 | J201: 348.3230995 | K201: 297.4285657 | L201: 246.5340318
A202: over total costs | B202: =SUM(B187-B189-B191-B199) -> 539.4793702 | C202: 488.5848364 | D202: 437.6903025 | E202: 386.7957687 | F202: 335.9012349 | G202: 285.006701 | H202: 234.1121672 | I202: 183.2176333 | J202: 132.3230995 | K202: 81.42856567 | L202: 30.53403184
B204: =TEXT(B185,"$0")&" ("&B174*100&"%)" -> $0 (100%) | C204: $336 (95%) | D204: $672 (90%) | E204: $1008 (85%) | F204: $1344 (80%) | G204: $1680 (75%) | H204: $2016 (70%) | I204: $2352 (65%) | J204: $2688 (60%) | K204: $3024 (55%) | L204: $3360 (50%)
A208: =Input!E13&" Head Beef Cow Calf - Profitability vs. Debt per Cow" -> 150 Head Beef Cow Calf - Profitability vs. Debt per Cow
C209: Debt/Cow | D209: Profit (over Operating & Fixed Costs) | E209: Profit (over Total Costs) | F209: Total Fixed Costs
A210: =B204 -> $0 (100%) | B210: =B$174 -> 1 | C210: =B$185 -> 0 | D210: =B$201 -> 755.4793702 | E210: =B$202 -> 539.4793702 | F210: =B$191 -> 124.69788
A211: =C204 -> $336 (95%) | B211: =C$174 -> 0.95 | C211: =C$185 -> 336.0198667 | D211: =C$201 -> 704.5848364 | E211: =C$202 -> 488.5848364 | F211: =C$191 -> 175.5924138
A212: =D204 -> $672 (90%) | B212: =D$174 -> 0.9 | C212: =D$185 -> 672.0397333 | D212: =D$201 -> 653.6903025 | E212: =D$202 -> 437.6903025 | F212: =D$191 -> 226.4869477
A213: =E204 -> $1008 (85%) | B213: =E$174 -> 0.85 | C213: =E$185 -> 1008.0596 | D213: =E$201 -> 602.7957687 | E213: =E$202 -> 386.7957687 | F213: =E$191 -> 277.3814815
A214: =F204 -> $1344 (80%) | B214: =F$174 -> 0.8 | C214: =F$185 -> 1344.079467 | D214: =F$201 -> 551.9012349 | E214: =F$202 -> 335.9012349 | F214: =F$191 -> 328.2760153
A215: =G204 -> $1680 (75%) | B215: =G$174 -> 0.75 | C215: =G$185 -> 1680.099333 | D215: =G$201 -> 501.006701 | E215: =G$202 -> 285.006701 | F215: =G$191 -> 379.1705492
A216: =H204 -> $2016 (70%) | B216: =H$174 -> 0.7 | C216: =H$185 -> 2016.1192 | D216: =H$201 -> 450.1121672 | E216: =H$202 -> 234.1121672 | F216: =H$191 -> 430.065083
A217: =I204 -> $2352 (65%) | B217: =I$174 -> 0.65 | C217: =I$185 -> 2352.139067 | D217: =I$201 -> 399.2176333 | E217: =I$202 -> 183.2176333 | F217: =I$191 -> 480.9596169
A218: =J204 -> $2688 (60%) | B218: =J$174 -> 0.6 | C218: =J$185 -> 2688.158933 | D218: =J$201 -> 348.3230995 | E218: =J$202 -> 132.3230995 | F218: =J$191 -> 531.8541507
A219: =K204 -> $3024 (55%) | B219: =K$174 -> 0.55 | C219: =K$185 -> 3024.1788 | D219: =K$201 -> 297.4285657 | E219: =K$202 -> 81.42856567 | F219: =K$191 -> 582.7486845
A220: =L204 -> $3360 (50%) | B220: =L$174 -> 0.5 | C220: =L$185 -> 3360.198667 | D220: =L$201 -> 246.5340318 | E220: =L$202 -> 30.53403184 | F220: =L$191 -> 633.6432184
A230: =Input!E13&" Head Beef - Debt per Cow ("&TEXT(B238,"$0")&"/cow @ "&ROUND(Details!I26*100,0)&"% Equity)" -> 150 Head Beef - Debt per Cow ($1309/cow @ 81% Equity)
A231: Debt Summary | B231: $/cow | C231: Total
A232: Cows | B232: =Details!I12 -> 390 | C232: =Details!J12 -> 58500
A233: Marginal Pasture Land | B233: =Details!I13 -> 400 | C233: =Details!J13 -> 60000
A234: Improved Pasture Land | B234: =Details!I14 -> 153 | C234: =Details!J14 -> 22950
A235: Machinery & Equipment | B235: =Details!I15 -> 236.6 | C235: =Details!J15 -> 35490
A236: Fencing | B236: =Details!I16 -> 52.09933333 | C236: =Details!J16 -> 7814.9
A237: Buildings & Facilities | B237: =Details!I17 -> 77.55 | C237: =Details!J17 -> 11632.5
A238: Total Debt | B238: =SUM(B232:B237) -> 1309.249333 | C238: =SUM(C232:C237) -> 196387.4
A241: ="Managing total debt per cow is a important step to maintain profitability in a cow calf production enterprise. Total P & I Cost = $"&ROUND(Fixed!D41,0)&"/cow." -> Managing total debt per cow is a important step to maintain profitability in a cow calf production enterprise. Total P & I Cost = $194/cow.
B250: ="What Can you Profitably Pay for Cows? ("&Fixed!D6*100&"% financed)" -> What Can you Profitably Pay for Cows? (15% financed)
C251: Purchase Price (over Operating & Fixed costs) | G251: Purchase Price (over Total Costs)
B252: Target Profit/Cow | C252: Cow PMT | D252: Loan Value | E252: Cow | G252: Cow PMT | H252: Loan Value | I252: Cow | J252: gross | K252: op cost | M252: Pasture | N252: Machinery & Equipment | O252: Buildings & Facilities | R252: Labour-Owner Living
B253: 75 | C253: =SUM($J$256-B253-$K$256-$M$256-$N$256-$O$256) -> 567.1627037 | D253: =-PV(Fixed!$C$9,Fixed!$D$9,SUM(C253-((Fixed!$D$4*Fixed!$D$5)*(Fixed!$D$7)))) -> 3056.603948 | E253: =SUM(D253+(Fixed!$D$4*Fixed!$D$5)) -> 5266.603948 | G253: =SUM($J$256-B253-$K$256-$M$256-$N$256-$O$256-$R$256) -> 351.1627037 | H253: =-PV(Fixed!$C$9,Fixed!$D$9,SUM(G253-((Fixed!$D$4*Fixed!$D$5)*(Fixed!$D$7)))) -> 1892.517437 | I253: =SUM(H253+(Fixed!$D$4*Fixed!$D$5)) -> 4102.517437
B254: 50 | C254: 592.1627037 | D254: =-PV(Fixed!$C$9,Fixed!$D$9,SUM(C254-((Fixed!$D$4*Fixed!$D$5)*(Fixed!$D$7)))) -> 3191.336183 | E254: =SUM(D254+(Fixed!$D$4*Fixed!$D$5)) -> 5401.336183 | G254: 376.1627037 | H254: =-PV(Fixed!$C$9,Fixed!$D$9,SUM(G254-((Fixed!$D$4*Fixed!$D$5)*(Fixed!$D$7)))) -> 2027.249672 | I254: =SUM(H254+(Fixed!$D$4*Fixed!$D$5)) -> 4237.249672
B255: 25 | C255: 617.1627037 | D255: =-PV(Fixed!$C$9,Fixed!$D$9,SUM(C255-((Fixed!$D$4*Fixed!$D$5)*(Fixed!$D$7)))) -> 3326.068418 | E255: =SUM(D255+(Fixed!$D$4*Fixed!$D$5)) -> 5536.068418 | G255: 401.1627037 | H255: =-PV(Fixed!$C$9,Fixed!$D$9,SUM(G255-((Fixed!$D$4*Fixed!$D$5)*(Fixed!$D$7)))) -> 2161.981907 | I255: =SUM(H255+(Fixed!$D$4*Fixed!$D$5)) -> 4371.981907
B256: 0 | C256: 642.1627037 | D256: =-PV(Fixed!$C$9,Fixed!$D$9,SUM(C256-((Fixed!$D$4*Fixed!$D$5)*(Fixed!$D$7)))) -> 3460.800653 | E256: =SUM(D256+(Fixed!$D$4*Fixed!$D$5)) -> 5670.800653 | G256: 426.1627037 | H256: =-PV(Fixed!$C$9,Fixed!$D$9,SUM(G256-((Fixed!$D$4*Fixed!$D$5)*(Fixed!$D$7)))) -> 2296.714142 | I256: =SUM(H256+(Fixed!$D$4*Fixed!$D$5)) -> 4506.714142 | J256: =Summary!F46 -> 1997.363125 | K256: =Summary!F29 -> 1117.185875 | M256: =Summary!F35 -> 64.40300255 | N256: =Summary!F34 -> 138.5418918 | O256: =Summary!F33 -> 35.06965218 | R256: =Summary!F38 -> 216
B257: -25 | C257: 667.1627037 | D257: =-PV(Fixed!$C$9,Fixed!$D$9,SUM(C257-((Fixed!$D$4*Fixed!$D$5)*(Fixed!$D$7)))) -> 3595.532888 | E257: =SUM(D257+(Fixed!$D$4*Fixed!$D$5)) -> 5805.532888 | G257: 451.1627037 | H257: =-PV(Fixed!$C$9,Fixed!$D$9,SUM(G257-((Fixed!$D$4*Fixed!$D$5)*(Fixed!$D$7)))) -> 2431.446378 | I257: =SUM(H257+(Fixed!$D$4*Fixed!$D$5)) -> 4641.446378
B258: -50 | C258: 692.1627037 | D258: =-PV(Fixed!$C$9,Fixed!$D$9,SUM(C258-((Fixed!$D$4*Fixed!$D$5)*(Fixed!$D$7)))) -> 3730.265123 | E258: =SUM(D258+(Fixed!$D$4*Fixed!$D$5)) -> 5940.265123 | G258: 476.1627037 | H258: =-PV(Fixed!$C$9,Fixed!$D$9,SUM(G258-((Fixed!$D$4*Fixed!$D$5)*(Fixed!$D$7)))) -> 2566.178613 | I258: =SUM(H258+(Fixed!$D$4*Fixed!$D$5)) -> 4776.178613
B259: -75 | C259: 717.1627037 | D259: =-PV(Fixed!$C$9,Fixed!$D$9,SUM(C259-((Fixed!$D$4*Fixed!$D$5)*(Fixed!$D$7)))) -> 3864.997358 | E259: =SUM(D259+(Fixed!$D$4*Fixed!$D$5)) -> 6074.997358 | G259: 501.1627037 | H259: =-PV(Fixed!$C$9,Fixed!$D$9,SUM(G259-((Fixed!$D$4*Fixed!$D$5)*(Fixed!$D$7)))) -> 2700.910848 | I259: =SUM(H259+(Fixed!$D$4*Fixed!$D$5)) -> 4910.910848
B282: gross | C282: op cost | E282: Pasture | F282: Machinery & Equipment | G282: Buildings & Facilities | J282: Labour-Owner Living
B283: =Summary!$F$46 -> 1997.363125 | C283: =Summary!$F$29 -> 1117.185875 | E283: =Summary!$F$35 -> 64.40300255 | F283: =Summary!$F$34 -> 138.5418918 | G283: =Summary!$F$33 -> 35.06965218 | J283: =Summary!$F$38 -> 216
B286: ="What Can you Profitably Pay for Cows? (over Total Costs)" -> What Can you Profitably Pay for Cows? (over Total Costs)
C287: Equity | D287: Financed | F287: Equity | G287: Financed | I287: Equity | J287: Financed | L287: Equity | M287: Financed
C288: 0 | D288: =1-C288 -> 1 | E288: =D288*100&"% Financed" -> 100% Financed | F288: 0.25 | G288: =1-F288 -> 0.75 | H288: =G288*100&"% Financed" -> 75% Financed | I288: 0.5 | J288: =1-I288 -> 0.5 | K288: =J288*100&"% Financed" -> 50% Financed | L288: 0.75 | M288: =1-L288 -> 0.25 | N288: =M288*100&"% Financed" -> 25% Financed
C289: Purchase Price (over Total Costs) | F289: Purchase Price (over Total Costs) | I289: Purchase Price (over Total Costs) | L289: Purchase Price (over Total Costs)
B290: Target Profit/Cow | C290: Cow PMT | D290: Loan Value | E290: Cow | F290: Cow PMT | G290: Loan Value | H290: Cow | I290: Cow PMT | J290: Loan Value | K290: Cow | L290: Cow PMT | M290: Loan Value | N290: Cow
B291: 300 | C291: =SUM($B$283-$B$291-$C$283-$E$283-$F$283-$G$283-$J$283) -> 126.1627037 | D291: =-PV(Fixed!$C$9,Fixed!$D$9,SUM(C291-((Fixed!$D$4*C288)*(Fixed!$D$7)))) -> 679.927322 | E291: =SUM(D291+(Fixed!$D$4*C288)) -> 679.927322 | F291: =SUM($B$283-$B$291-$C$283-$E$283-$F$283-$G$283-$J$283) -> 126.1627037 | G291: =-PV(Fixed!$C$9,Fixed!$D$9,SUM(F291-((Fixed!$D$4*F288)*(Fixed!$D$7)))) -> 679.927322 | H291: =SUM(G291+(Fixed!$D$4*F288)) -> 1329.927322 | I291: =SUM($B$283-$B$291-$C$283-$E$283-$F$283-$G$283-$J$283) -> 126.1627037 | J291: =-PV(Fixed!$C$9,Fixed!$D$9,SUM(I291-((Fixed!$D$4*I288)*(Fixed!$D$7)))) -> 679.927322 | K291: =SUM(J291+(Fixed!$D$4*I288)) -> 1979.927322 | L291: =SUM($B$283-$B$291-$C$283-$E$283-$F$283-$G$283-$J$283) -> 126.1627037 | M291: =-PV(Fixed!$C$9,Fixed!$D$9,SUM(L291-((Fixed!$D$4*L288)*(Fixed!$D$7)))) -> 679.927322 | N291: =SUM(M291+(Fixed!$D$4*L288)) -> 2629.927322
B292: 250 | C292: =SUM($B$283-$B$292-$C$283-$E$283-$F$283-$G$283-$J$283) -> 176.1627037 | D292: =-PV(Fixed!$C$9,Fixed!$D$9,SUM(C292-((Fixed!$D$4*C288)*(Fixed!$D$7)))) -> 949.3917921 | E292: =SUM(D292+(Fixed!$D$4*C288)) -> 949.3917921 | F292: =SUM($B$283-$B$292-$C$283-$E$283-$F$283-$G$283-$J$283) -> 176.1627037 | G292: =-PV(Fixed!$C$9,Fixed!$D$9,SUM(F292-((Fixed!$D$4*F288)*(Fixed!$D$7)))) -> 949.3917921 | H292: =SUM(G292+(Fixed!$D$4*F288)) -> 1599.391792 | I292: =SUM($B$283-$B$292-$C$283-$E$283-$F$283-$G$283-$J$283) -> 176.1627037 | J292: =-PV(Fixed!$C$9,Fixed!$D$9,SUM(I292-((Fixed!$D$4*I288)*(Fixed!$D$7)))) -> 949.3917921 | K292: =SUM(J292+(Fixed!$D$4*I288)) -> 2249.391792 | L292: =SUM($B$283-$B$292-$C$283-$E$283-$F$283-$G$283-$J$283) -> 176.1627037 | M292: =-PV(Fixed!$C$9,Fixed!$D$9,SUM(L292-((Fixed!$D$4*L288)*(Fixed!$D$7)))) -> 949.3917921 | N292: =SUM(M292+(Fixed!$D$4*L288)) -> 2899.391792
B293: 200 | C293: =SUM($B$283-$B$293-$C$283-$E$283-$F$283-$G$283-$J$283) -> 226.1627037 | D293: =-PV(Fixed!$C$9,Fixed!$D$9,SUM(C293-((Fixed!$D$4*C288)*(Fixed!$D$7)))) -> 1218.856262 | E293: =SUM(D293+(Fixed!$D$4*C288)) -> 1218.856262 | F293: =SUM($B$283-$B$293-$C$283-$E$283-$F$283-$G$283-$J$283) -> 226.1627037 | G293: =-PV(Fixed!$C$9,Fixed!$D$9,SUM(F293-((Fixed!$D$4*F288)*(Fixed!$D$7)))) -> 1218.856262 | H293: =SUM(G293+(Fixed!$D$4*F288)) -> 1868.856262 | I293: =SUM($B$283-$B$293-$C$283-$E$283-$F$283-$G$283-$J$283) -> 226.1627037 | J293: =-PV(Fixed!$C$9,Fixed!$D$9,SUM(I293-((Fixed!$D$4*I288)*(Fixed!$D$7)))) -> 1218.856262 | K293: =SUM(J293+(Fixed!$D$4*I288)) -> 2518.856262 | L293: =SUM($B$283-$B$293-$C$283-$E$283-$F$283-$G$283-$J$283) -> 226.1627037 | M293: =-PV(Fixed!$C$9,Fixed!$D$9,SUM(L293-((Fixed!$D$4*L288)*(Fixed!$D$7)))) -> 1218.856262 | N293: =SUM(M293+(Fixed!$D$4*L288)) -> 3168.856262
B294: 150 | C294: =SUM($B$283-$B$294-$C$283-$E$283-$F$283-$G$283-$J$283) -> 276.1627037 | D294: =-PV(Fixed!$C$9,Fixed!$D$9,SUM(C294-((Fixed!$D$4*C288)*(Fixed!$D$7)))) -> 1488.320732 | E294: =SUM(D294+(Fixed!$D$4*C288)) -> 1488.320732 | F294: =SUM($B$283-$B$294-$C$283-$E$283-$F$283-$G$283-$J$283) -> 276.1627037 | G294: =-PV(Fixed!$C$9,Fixed!$D$9,SUM(F294-((Fixed!$D$4*F288)*(Fixed!$D$7)))) -> 1488.320732 | H294: =SUM(G294+(Fixed!$D$4*F288)) -> 2138.320732 | I294: =SUM($B$283-$B$294-$C$283-$E$283-$F$283-$G$283-$J$283) -> 276.1627037 | J294: =-PV(Fixed!$C$9,Fixed!$D$9,SUM(I294-((Fixed!$D$4*I288)*(Fixed!$D$7)))) -> 1488.320732 | K294: =SUM(J294+(Fixed!$D$4*I288)) -> 2788.320732 | L294: =SUM($B$283-$B$294-$C$283-$E$283-$F$283-$G$283-$J$283) -> 276.1627037 | M294: =-PV(Fixed!$C$9,Fixed!$D$9,SUM(L294-((Fixed!$D$4*L288)*(Fixed!$D$7)))) -> 1488.320732 | N294: =SUM(M294+(Fixed!$D$4*L288)) -> 3438.320732
B295: 100 | C295: =SUM($B$283-$B$295-$C$283-$E$283-$F$283-$G$283-$J$283) -> 326.1627037 | D295: =-PV(Fixed!$C$9,Fixed!$D$9,SUM(C295-((Fixed!$D$4*C288)*(Fixed!$D$7)))) -> 1757.785202 | E295: =SUM(D295+(Fixed!$D$4*C288)) -> 1757.785202 | F295: =SUM($B$283-$B$295-$C$283-$E$283-$F$283-$G$283-$J$283) -> 326.1627037 | G295: =-PV(Fixed!$C$9,Fixed!$D$9,SUM(F295-((Fixed!$D$4*F288)*(Fixed!$D$7)))) -> 1757.785202 | H295: =SUM(G295+(Fixed!$D$4*F288)) -> 2407.785202 | I295: =SUM($B$283-$B$295-$C$283-$E$283-$F$283-$G$283-$J$283) -> 326.1627037 | J295: =-PV(Fixed!$C$9,Fixed!$D$9,SUM(I295-((Fixed!$D$4*I288)*(Fixed!$D$7)))) -> 1757.785202 | K295: =SUM(J295+(Fixed!$D$4*I288)) -> 3057.785202 | L295: =SUM($B$283-$B$295-$C$283-$E$283-$F$283-$G$283-$J$283) -> 326.1627037 | M295: =-PV(Fixed!$C$9,Fixed!$D$9,SUM(L295-((Fixed!$D$4*L288)*(Fixed!$D$7)))) -> 1757.785202 | N295: =SUM(M295+(Fixed!$D$4*L288)) -> 3707.785202
B296: 50 | C296: =SUM($B$283-$B$296-$C$283-$E$283-$F$283-$G$283-$J$283) -> 376.1627037 | D296: =-PV(Fixed!$C$9,Fixed!$D$9,SUM(C296-((Fixed!$D$4*C288)*(Fixed!$D$7)))) -> 2027.249672 | E296: =SUM(D296+(Fixed!$D$4*C288)) -> 2027.249672 | F296: =SUM($B$283-$B$296-$C$283-$E$283-$F$283-$G$283-$J$283) -> 376.1627037 | G296: =-PV(Fixed!$C$9,Fixed!$D$9,SUM(F296-((Fixed!$D$4*F288)*(Fixed!$D$7)))) -> 2027.249672 | H296: =SUM(G296+(Fixed!$D$4*F288)) -> 2677.249672 | I296: =SUM($B$283-$B$296-$C$283-$E$283-$F$283-$G$283-$J$283) -> 376.1627037 | J296: =-PV(Fixed!$C$9,Fixed!$D$9,SUM(I296-((Fixed!$D$4*I288)*(Fixed!$D$7)))) -> 2027.249672 | K296: =SUM(J296+(Fixed!$D$4*I288)) -> 3327.249672 | L296: =SUM($B$283-$B$296-$C$283-$E$283-$F$283-$G$283-$J$283) -> 376.1627037 | M296: =-PV(Fixed!$C$9,Fixed!$D$9,SUM(L296-((Fixed!$D$4*L288)*(Fixed!$D$7)))) -> 2027.249672 | N296: =SUM(M296+(Fixed!$D$4*L288)) -> 3977.249672
B297: 0 | C297: =SUM($B$283-$B$297-$C$283-$E$283-$F$283-$G$283-$J$283) -> 426.1627037 | D297: =-PV(Fixed!$C$9,Fixed!$D$9,SUM(C297-((Fixed!$D$4*C288)*(Fixed!$D$7)))) -> 2296.714142 | E297: =SUM(D297+(Fixed!$D$4*C288)) -> 2296.714142 | F297: =SUM($B$283-$B$297-$C$283-$E$283-$F$283-$G$283-$J$283) -> 426.1627037 | G297: =-PV(Fixed!$C$9,Fixed!$D$9,SUM(F297-((Fixed!$D$4*F288)*(Fixed!$D$7)))) -> 2296.714142 | H297: =SUM(G297+(Fixed!$D$4*F288)) -> 2946.714142 | I297: =SUM($B$283-$B$297-$C$283-$E$283-$F$283-$G$283-$J$283) -> 426.1627037 | J297: =-PV(Fixed!$C$9,Fixed!$D$9,SUM(I297-((Fixed!$D$4*I288)*(Fixed!$D$7)))) -> 2296.714142 | K297: =SUM(J297+(Fixed!$D$4*I288)) -> 3596.714142 | L297: =SUM($B$283-$B$297-$C$283-$E$283-$F$283-$G$283-$J$283) -> 426.1627037 | M297: =-PV(Fixed!$C$9,Fixed!$D$9,SUM(L297-((Fixed!$D$4*L288)*(Fixed!$D$7)))) -> 2296.714142 | N297: =SUM(M297+(Fixed!$D$4*L288)) -> 4246.714142
B299: ****NOT COMPLETED*** | P299: ="Based on "&Input!$E$18&" lb steers @ $"&Input!$E$19&"/cwt & "&Input!$E$20&" lb heifers @ $"&Input!$E$21&"/cwt = $"&ROUND(Summary!$F$54,0)&" net profit" -> Based on 600 lb steers @ $380/cwt & 550 lb heifers @ $350/cwt = $354 net profit
B300: ="What Can you Pay for Marginal Pasture? (@ "&Fixed!D18*100&"% equity, "&Fixed!D19*100&"% financed)" -> What Can you Pay for Marginal Pasture? (@ 75% equity, 25% financed)
C301: B/E Over op. & fixed costs | G301: B/E Over total costs
B302: Target Profit/Cow | C302: Cow PMT | D302: Loan Value | E302: Cow | G302: Cow PMT | H302: Loan Value | I302: Cow | J302: gross | K302: op cost | M302: Livestock | N302: Machinery & Equipment | O302: Buildings & Facilities | R302: Labour-Owner Living
B303: 75 | C303: =SUM($J$306-B303-$K$306-$M$306-$N$306-$O$306) -> 559.1999506 | D303: =-PV(Fixed!$C$22,Fixed!$D$22,SUM(C303-((Fixed!$D$16*Fixed!$D$18)*(Fixed!$D$20)))) -> 6821.052062 | E303: =SUM(D303+(Fixed!$D$16*Fixed!$D$18)) -> 7421.052062 | G303: =SUM($J$306-B303-$K$306-$M$306-$N$306-$O$306-$R$306) -> 343.1999506 | H303: =-PV(Fixed!$C$22,Fixed!$D$22,SUM(G303-((Fixed!$D$16*Fixed!$D$18)*(Fixed!$D$20)))) -> 4186.310689 | I303: =SUM(H303+(Fixed!$D$16*Fixed!$D$18)) -> 4786.310689
B304: 50 | C304: 584.1999506 | D304: =-PV(Fixed!$C$22,Fixed!$D$22,SUM(C304-((Fixed!$D$16*Fixed!$D$18)*(Fixed!$D$20)))) -> 7125.99898 | E304: =SUM(D304+(Fixed!$D$16*Fixed!$D$18)) -> 7725.99898 | G304: 368.1999506 | H304: =-PV(Fixed!$C$22,Fixed!$D$22,SUM(G304-((Fixed!$D$16*Fixed!$D$18)*(Fixed!$D$20)))) -> 4491.257608 | I304: =SUM(H304+(Fixed!$D$16*Fixed!$D$18)) -> 5091.257608
B305: 25 | C305: 609.1999506 | D305: =-PV(Fixed!$C$22,Fixed!$D$22,SUM(C305-((Fixed!$D$16*Fixed!$D$18)*(Fixed!$D$20)))) -> 7430.945898 | E305: =SUM(D305+(Fixed!$D$16*Fixed!$D$18)) -> 8030.945898 | G305: 393.1999506 | H305: =-PV(Fixed!$C$22,Fixed!$D$22,SUM(G305-((Fixed!$D$16*Fixed!$D$18)*(Fixed!$D$20)))) -> 4796.204526 | I305: =SUM(H305+(Fixed!$D$16*Fixed!$D$18)) -> 5396.204526
B306: 0 | C306: 634.1999506 | D306: =-PV(Fixed!$C$22,Fixed!$D$22,SUM(C306-((Fixed!$D$16*Fixed!$D$18)*(Fixed!$D$20)))) -> 7735.892816 | E306: =SUM(D306+(Fixed!$D$16*Fixed!$D$18)) -> 8335.892816 | G306: 418.1999506 | H306: =-PV(Fixed!$C$22,Fixed!$D$22,SUM(G306-((Fixed!$D$16*Fixed!$D$18)*(Fixed!$D$20)))) -> 5101.151444 | I306: =SUM(H306+(Fixed!$D$16*Fixed!$D$18)) -> 5701.151444 | J306: =Summary!F46 -> 1997.363125 | K306: =Summary!F29 -> 1117.185875 | M306: =Summary!F32 -> 72.36575566 | N306: =Summary!F34 -> 138.5418918 | O306: =Summary!F33 -> 35.06965218 | R306: =Summary!F38 -> 216
B307: -25 | C307: 659.1999506 | D307: =-PV(Fixed!$C$22,Fixed!$D$22,SUM(C307-((Fixed!$D$16*Fixed!$D$18)*(Fixed!$D$20)))) -> 8040.839735 | E307: =SUM(D307+(Fixed!$D$16*Fixed!$D$18)) -> 8640.839735 | G307: 443.1999506 | H307: =-PV(Fixed!$C$22,Fixed!$D$22,SUM(G307-((Fixed!$D$16*Fixed!$D$18)*(Fixed!$D$20)))) -> 5406.098362 | I307: =SUM(H307+(Fixed!$D$16*Fixed!$D$18)) -> 6006.098362
B308: -50 | C308: 684.1999506 | D308: =-PV(Fixed!$C$22,Fixed!$D$22,SUM(C308-((Fixed!$D$16*Fixed!$D$18)*(Fixed!$D$20)))) -> 8345.786653 | E308: =SUM(D308+(Fixed!$D$16*Fixed!$D$18)) -> 8945.786653 | G308: 468.1999506 | H308: =-PV(Fixed!$C$22,Fixed!$D$22,SUM(G308-((Fixed!$D$16*Fixed!$D$18)*(Fixed!$D$20)))) -> 5711.04528 | I308: =SUM(H308+(Fixed!$D$16*Fixed!$D$18)) -> 6311.04528
B309: -75 | C309: 709.1999506 | D309: =-PV(Fixed!$C$22,Fixed!$D$22,SUM(C309-((Fixed!$D$16*Fixed!$D$18)*(Fixed!$D$20)))) -> 8650.733571 | E309: =SUM(D309+(Fixed!$D$16*Fixed!$D$18)) -> 9250.733571 | G309: 493.1999506 | H309: =-PV(Fixed!$C$22,Fixed!$D$22,SUM(G309-((Fixed!$D$16*Fixed!$D$18)*(Fixed!$D$20)))) -> 6015.992198 | I309: =SUM(H309+(Fixed!$D$16*Fixed!$D$18)) -> 6615.992198

Sheet Cow Lease (hidden)
B2: ="Cow Share Lease Calculation Worksheet "&Introduction!I10&"" -> Cow Share Lease Calculation Worksheet September, 2024
E3: ****HIDE in FINAL VERSION*****
A4: A. Operating Costs | F4: Owner | H4: Leasee | J4: Total Cost | O4: Owner
B5: 1. Feed Costs | O5: Leasee
B6: 1.01 Grain and Concentrates | E6: Leasee | F6: =IF(E6="Owner",Summary!F6,0) -> 0 | H6: =IF(E6="Leasee",Summary!F6,0) -> 27.12053571 | J6: =SUM(H6+F6) -> 27.12053571
B7: 1.02 Forages | E7: Leasee | F7: =IF(E7="Owner",Summary!F7,0) -> 0 | H7: =IF(E7="Leasee",Summary!F7,0) -> 408.3629464 | J7: =SUM(H7+F7) -> 408.3629464
B8: 1.03 Salt & Minerals | E8: Leasee | F8: =IF(E8="Owner",Summary!F8,0) -> 0 | H8: =IF(E8="Leasee",Summary!F8,0) -> 47.08668831 | J8: =SUM(H8+F8) -> 47.08668831
B9: 1.04 Extended Grazing Forages | E9: Leasee | F9: =IF(E9="Owner",Summary!F9,0) -> 0 | H9: =IF(E9="Leasee",IF('Extended Grazing'!G53="ERROR","ERROR",Summary!F9),0) -> 41.65468833 | J9: =SUM(H9+F9) -> 41.65468833
B10: Total Feed Cost | F10: =IF('Winter Feed Rations'!H54=Pasture!G5,F6+F7+F8+F9,"ERROR") -> 0 | H10: =IF('Winter Feed Rations'!H54=Pasture!G5,H6+H7+H8+H9,"ERROR") -> 524.2248588 | J10: =SUM(H10+F10) -> 524.2248588
B12: 2. Other Operating Costs
B13: 2.01 Straw | E13: Leasee | F13: =IF(E13="Owner",Summary!F13,0) -> 0 | H13: =IF(E13="Leasee",Summary!F13,0) -> 70 | J13: =SUM(H13+F13) -> 70
B14: 2.02 Veterinary Medicine & Supplies | E14: Leasee | F14: =IF(E14="Owner",Summary!F14,0) -> 0 | H14: =IF(E14="Leasee",Summary!F14,0) -> 30.67666667 | J14: 30.67666667
B15: 2.03 Bull Operating Costs | E15: Leasee | F15: =IF(E15="Owner",Input!G54+Input!G59+Input!G64+Input!G81,0) -> 0 | H15: =IF(E15="Leasee",Input!G54+Input!G59+Input!G64+Input!G81,0) -> 28.25 | J15: 28.25
B16: 2.04 Fuel, Maintenance & Repairs | H16: ='Operating '!G48 -> 42.7173 | J16: 42.7173
B17: 2.05 Utilities | H17: =Summary!F17 -> 11.688774 | J17: 11.688774
B18: 2.06 Marketing & Transportation | H18: ='Operating '!G93 -> 39.59833333 | J18: 39.59833333
B19: 2.07 Death Loss | F19: ='Operating '!G97 -> 32.5 | J19: 32.5
B20: 2.08 Manure Removal | H20: ='Operating '!G108 -> 10.83963562 | J20: 10.83963562
B21: 2.09 Insurance | F21: ='Operating '!G113 -> 11.7 | H21: ='Operating '!G118+'Operating '!G121 -> 7.13 | J21: 18.83
B22: 2.10 Herd Replacement - Cows | F22: =Input!E38 -> 148.5 | J22: 148.5
B23: 2.11 Herd Replacement - Bulls | E23: Owner | F23: =IF(E23="Owner",Input!G70+Input!G77,0) -> 18.1667 | H23: =IF(E23="Leasee",Input!G70+Input!G77,0) -> 0 | J23: =SUM(H23+F23) -> 18.1667
B24: 2.12 Pasture Rental | H24: =Summary!F23 -> 59.375 | J24: 59.375
B25: 2.13 Pasture Operating | H25: =Summary!F24 -> 34.76510638 | J25: =SUM(H25+F25) -> 34.76510638
B26: 2.13 Miscellaneous | H26: ='Operating '!G126 -> 6.67 | J26: 6.67
B27: Subtotal Operating Costs | F27: =SUM(F10:F26) -> 210.8667 | H27: =SUM(H10:H26) -> 865.9356748 | J27: 1076.802375
B28: 2.13 Operating Interest | F28: =SUM(F27/2)*'Operating '!$E$131/100 -> 7.90750125 | H28: =SUM(H27/2)*'Operating '!$E$131/100 -> 32.4725878 | J28: 40.38008905
B29: Total Operating Costs | F29: =F27+F28 -> 218.7742012 | H29: =SUM(H27:H28) -> 898.4082626 | J29: =SUM(J27:J28) -> 1117.182464
A31: B. Fixed Costs
B32: 3.01 Livestock | F32: =Summary!F32 -> 72.36575566 | J32: =SUM(H32+F32) -> 72.36575566
B33: 3.02 Buildings | H33: =Summary!F33 -> 35.06965218 | J33: 35.06965218
B34: 3.03 Machinery & Equipment | H34: =Summary!F34 -> 138.5418918 | J34: 138.5418918
B35: 3.04 Pasture Land & Fencing | H35: =Summary!F35 -> 64.40300255 | J35: 64.40300255
B36: Total Fixed Costs | F36: =SUM(F32:F35) -> 72.36575566 | H36: =SUM(H32:H35) -> 238.0145465 | J36: 310.3803021
B37: Total Operating and Fixed Costs | F37: =F29+F36 -> 291.1399569 | H37: =H29+H36 -> 1136.422809 | J37: 1427.562766
A39: C. Labour | H39: ='Operating '!G136+'Operating '!G137 -> 216 | J39: =SUM(H39+F39) -> 216
A40: Total Contributions | F40: =F37+F39 -> 291.1399569 | H40: =H37+J39 -> 1352.422809 | J40: =SUM(H40+F40) -> 1643.562766
A42: Total Contributions | F42: =ROUND(F40/J40,3) -> 0.177 | H42: =ROUND(H40/J40,3) -> 0.823
D44: Estimated Farmgate Revenue
A45: Estimated Farmgate | J45: Per Cow
B46: Price ($ per cwt) | J46: =Input!E24 -> 365.65
B47: Calf weight (lbs) | J47: =Input!E23 -> 575
B48: Gross Revenue / cow | J48: =SUM((Input!E24/100)*Input!E23)*(Input!E17/100) -> 1997.363125
D50: Lease Calculation #1 - Share Split Method
F51: Owner | H51: Leasee
A52: Share Split | F52: =F42 -> 0.177 | H52: =H42 -> 0.823
A53: Share of Revenue | F53: =SUM(F42*J48) -> 353.5332731 | H53: =SUM(H42*J48) -> 1643.829852
A55: Net Return Per Cow | F55: =SUM(F53-F40) -> 62.39331622 | H55: =SUM(H53-H40) -> 291.4070428
A56: Cash Rental Per Cow | F56: =F40 -> 291.1399569
A57: Return to Assets (ROA) | F57: =IF($E$23="Owner",SUM(($F$32+F55)/(Input!$E$28+(Input!$E$66*(Input!$E$15/Input!$E$13)))),SUM(($F$32+F55)/(Input!$E$28))) -> 0.04870809827
D59: Lease Calculation #2 - Flexible Share Calculation Method
F60: Owner | H60: Leasee | J60: Total
A61: Contribution Share | F61: =F40 -> 291.1399569 | H61: =H40 -> 1352.422809 | J61: =SUM(H61+F61) -> 1643.562766
A62: Remaining Revenue | J62: =SUM(J48-J61) -> 353.800359
A63: Distribution of Surplus Revenue | F63: 0.5 | H63: =SUM(1-F63) -> 0.5
A64: Share of Surplus Revenue | F64: =SUM(J62*F63) -> 176.9001795 | H64: =SUM(J62*H63) -> 176.9001795
A65: Total Revenue Earned | F65: =SUM(F61+F64) -> 468.0401364 | H65: =SUM(H61+H64) -> 1529.322989 | J65: =SUM(H65+F65) -> 1997.363125
A67: Percent Share of Revenue (Total) | F67: =SUM(F65/J65) -> 0.2343290164 | H67: =SUM(H65/J65) -> 0.7656709836
A69: Net Return Per Cow | F69: =SUM(F65-F61) -> 176.9001795 | H69: =SUM(H65-H61) -> 176.9001795
A70: Cash Rental Per Cow | F70: =F40 -> 291.1399569
A71: Return to Assets (ROA) | F71: =IF($E$23="Owner",SUM(($F$32+F69)/(Input!$E$28+(Input!$E$66*(Input!$E$15/Input!$E$13)))),SUM(($F$32+F69)/(Input!$E$28))) -> 0.09009612114
B73: Note: This budget is only a guide and is not intended to be an in-depth study of the cost of production of this industry. Interpretation and utilization of this information is the responsibility of the user. No liability for decisions based on this publication is assumed.

Sheet Cow Overwinter (hidden)
C1: ****HIDE in FINAL VERSION*****
A2: . . . . . . . . . . . . . . . . . . . . . . . . . . . . . . . . . . . . . . . . . . . . . . . . . . .
A3: Beef Cow Overwinter Cost Calculator | J3: Printed: | K3: =TODAY() -> 2025-04-14
C4: *** Enter changes to BLUE values only ***
A5: Input Data:
B6: Number of cows to be wintered | C6: =Input!E13 -> 150 | E6: Operating Interest | G6: ='Operating '!E131/100 -> 0.075
B7: Average weight of cows | C7: =Input!E14 -> 1350 | F7: Daily Feed Intake @ | G7: 0.026 | H7: ="of body weight = "&C7*G7&" lbs. " -> of body weight = 35.1 lbs.
B8: Number of bulls to be wintered | C8: =Input!E15 -> 5
B9: Number of days in winter feeding period | C9: =Pasture!G5 -> 195
B10: Number of days in extended grazing | C10: =Pasture!G4 -> 35
A12: For more information on production costs,
A14: A. Operating Costs:
A15: 1. Feed Costs Per Cow:
B16: Item | C16: $/unit | E16: lbs/day | F16: Days | G16: Feed Required | J16: Total Cost | L16: $/cow/day
B17: Ground Barley | C17: ='Winter Feed Rations'!B19 -> 4.5 | D17: /bus | E17: 5 | F17: 60 | G17: =E17/48*F17*C6 -> 937.5 | H17: bus | J17: =ROUND(G17*C17,0) -> 4219 | L17: =SUM(J17/$C$6)/$C$9 -> 0.1442393162
B18: 32% Feedlot Supplement | C18: ='Winter Feed Rations'!B20 -> 550 | D18: /ton | E18: 0.5 | F18: 60 | G18: =E18*C6*C9/2000 -> 7.3125 | H18: tons | J18: =ROUND(G18*C18,0) -> 4022 | L18: =SUM(J18/$C$6)/$C$9 -> 0.1375042735
B19: Good quality hay | C19: ='Winter Feed Rations'!B13 -> 115 | D19: /ton* | E19: 0 | F19: =$C$9 -> 195 | G19: =E19*C6*C9/2000 -> 0 | H19: tons | J19: 0 | L19: =SUM(J19/$C$6)/$C$9 -> 0
B20: Low quality hay | C20: ='Winter Feed Rations'!B14 -> 95 | D20: /ton * | E20: 0 | F20: 195 | G20: =E20*C6*C9/2000 -> 0 | H20: tons | J20: 0 | L20: 0
B21: Salt (winter only) | C21: ='Winter Feed Rations'!D26 -> 0.1818181818 | D21: /lb | E21: 0.07 | F21: 195 | G21: =E21*C6*C9 -> 2047.5 | H21: lbs | J21: 372 | L21: 0.01271794872
B22: Mineral (winter only) | C22: ='Winter Feed Rations'!D23 -> 0.9090909091 | D22: /lb | E22: 0.156 | F22: 195 | G22: =E22*C6*C9 -> 4563 | H22: lbs | J22: 4148 | L22: 0.1418119658
B23: Barley Silage | C23: ='Winter Feed Rations'!B18 -> 50 | D23: /ton | E23: 47 | F23: 195 | G23: =(E23*F23*C6)/2000 -> 687.375 | H23: tons | J23: 34369 | L23: 1.175008547
B24: Feed Straw | C24: ='Winter Feed Rations'!B15 -> 70 | D24: /ton | E24: 19 | F24: 195 | G24: =E24*C6*C9/2000 -> 277.875 | H24: tons | J24: 19451 | L24: 0.664991453
B25: Total Feed per Cow | E25: =SUM(E17:E24) -> 71.726 | J25: =SUM(J17:J24) -> 66581 | L25: 2.276273504
B26: Bedding (straw) | C26: ='Operating '!D25 -> 70 | D26: /ton* | G26: =C6 -> 150 | H26: tons | J26: =ROUND(G26*C26,0) -> 10500 | L26: 0.358974359
B27: ="Total Feed Cost & Bedding (for Cows) - based on "&C9&" days" -> Total Feed Cost & Bedding (for Cows) - based on 195 days | J27: =SUM(J25:J26) -> 77081 | L27: 2.635247863
A29: 2. Feed Costs For Breeding Bulls:
B30: Item | C30: $/unit | E30: lbs/hd/day | F30: Days | G30: Feed Required | J30: Total Cost | L30: $/cow/day
B31: Ground Barley | C31: =C17 -> 4.5 | D31: /bus | E31: 7 | F31: 120 | G31: =(E31/48)*F31*C8 -> 87.5 | H31: bus | J31: =ROUND(G31*C31,0) -> 394 | L31: =SUM(J31/$C$6)/$C$9 -> 0.01347008547
B32: Good quality hay | C32: =C19 -> 115 | D32: /ton* | E32: 42 | F32: =$C$9 -> 195 | G32: =ROUND((E32/2000)*C9*C8,0) -> 20 | H32: tons* | J32: =ROUND(G32*C32,0) -> 2300 | L32: 0.07863247863
B33: Total Feed per Bull | E33: =SUM(E31:E32) -> 49 | J33: =SUM(J31:J32) -> 2694 | L33: 0.0921025641
B34: Bedding (straw) | C34: =C26 -> 70 | D34: /ton* | G34: =C8 -> 5 | H34: tons* | J34: =ROUND(G34*C34,0) -> 350 | L34: 0.01196581197
B35: ="Total Feed & Bedding (for Breeding Bulls) per cow per day based on "&C9&" days" -> Total Feed & Bedding (for Breeding Bulls) per cow per day based on 195 days | J35: =SUM(J33:J34) -> 3044 | L35: 0.1040683761
B37: Total All Feed & Bedding for Cows and Bulls | J37: =J27+J35 -> 80125 | L37: 2.739316239
A39: 3. Extended Grazing Costs: | C39: $/cow/yr | F39: Days | J39: Total Cost | L39: $/cow/day
B40: Extended grazing | C40: ='Extended Grazing'!G53 -> 41.65468833 | F40: =C10 -> 35 | J40: =IF(F40<1,0,ROUND(C40*C6,0)) -> 6248 | L40: =IF(F40<1,0,SUM(C40/F40)) -> 1.190133952
A42: 4. Other Operating Costs: | C42: $/cow/yr | J42: Total Cost | L42: $/cow/day
B43: Veterinary Medicine & Supplies: | C43: 0 | J43: =ROUND(C43*C6,0) -> 0 | L43: =SUM(J43/$C$6)/($C$9+$C$10) -> 0
B44: Specialized Vet Services | J44: 0 | L44: =SUM(J44/$C$6)/($C$9+$C$10) -> 0
B45: Utilities | J45: =Summary!H17 -> 1753 | L45: 0.0508115942
B46: Equipment fuel & repairs | J46: ='Operating '!E36+'Operating '!E41 -> 4702.32 | L46: 0.1362991304
B47: Building and fences repair | J47: ='Operating '!E46 -> 1705.275 | L47: 0.04942826087
B48: Building and equipment insurance | J48: ='Operating '!G118*'Operating '!E118 -> 1020 | L48: 0.02956521739
B49: Manure Removal | J49: =Summary!H20 -> 1626 | L49: 0.04713043478
B50: Miscellaneous | J50: =SUM(Summary!H26*((Pasture!G5+Pasture!G4)/365)) -> 630.7671233 | L50: 0.01828310502
B51: Total Other Operating Costs | J51: =ROUND(SUM(J43:J50),0) -> 11437 | L51: 0.3315072464
A53: Subtotal Operating Costs | J53: =ROUND(J27+J35+J51+J40,0) -> 97810 | L53: 2.835072464
B54: Operating Interest | J54: =ROUND((J53/2)*G6,0) -> 3668 | L54: 0.1063188406
A55: Total Operating Costs for Winter Period | J55: =ROUND(J53+J54,0) -> 101478 | L55: 2.941391304
A57: B. Fixed Costs:
B58: Livestock | J58: =Summary!H32 -> 10855
B59: Buildings | J59: =Summary!H33 -> 5260
B60: Machinery & Equipment | J60: =Summary!H34 -> 20781
B61: Pasture Land & Fencing | J61: =Summary!H35 -> 9660 | L61: $/cow/day
A62: Total Fixed Costs | J62: =ROUND(SUM(J58:J61),0) -> 46556 | L62: =SUM(J62/$C$6)/($C$9+$C$10) -> 1.349449275
A64: C. Labour: | J64: Total Cost | L64: $/cow/day
B65: Feeding, bedding | C65: =SUM(('Operating '!E136+'Operating '!E137)*0.625) -> 5 | D65: hr/cow | E65: ='Operating '!E135 -> 27 | F65: /hr | G65: ="("&TEXT(((C65*C6)/((C9+C10)/7)),"#.#")&" hrs per week)" -> (22.8 hrs per week) | J65: =SUM(C65*E65*C6) -> 20250 | L65: =SUM(J65/$C$6)/($C$9+$C$10) -> 0.5869565217
B66: Optional Calving Management Fee | E66: 0 | F66: /cow | J66: =SUM(E66*C6) -> 0 | L66: =SUM(J66/$C$6)/($C$9+$C$10) -> 0
B67: Calf Crop Bonus | C67: 1 | D67: /rate | E67: 0 | F67: /calf | J67: =SUM(C67*E67*C6) -> 0 | L67: =SUM(J67/$C$6)/($C$9+$C$10) -> 0
A68: Total Labour Costs for Winter Period | J68: =ROUND(J66+J67+J65,0) -> 20250 | L68: =SUM(J68/$C$6)/($C$9+$C$10) -> 0.5869565217
J70: Total Cost | L70: $/cow/day
A71: Total Cost of Production (Winter Feed, Extended Grazing, Operating, Fixed & Labour) | J71: =SUM(J68+J62+J55) -> 168284 | L71: =SUM(J71/$C$6)/($C$9+$C$10) -> 4.877797101
A73: Cost Summary
E74: Cost/cow/day
B75: ="Extended grazing (based on "&C10&" days)" -> Extended grazing (based on 35 days) | E75: =L40 -> 1.190133952
B76: ="Winter Feed (based on "&C9&" days)" -> Winter Feed (based on 195 days) | E76: =ROUND((J25+J33)/C9/C6,3) -> 2.368
B77: ="Yardage (not including labour, based on "&C9+C10&" days)" -> Yardage (not including labour, based on 230 days) | E77: =ROUND((((J26+J34+J51+J54+J62)/C6)/(C9+C10)),3) -> 2.102
B78: ="Labour (based on "&C9+C10&" days)" -> Labour (based on 230 days) | E78: =ROUND((J68)/(C9+C10)/C6,3) -> 0.587
B79: ="Total Overwinter Costs (based on "&C9+C10&" days)" -> Total Overwinter Costs (based on 230 days) | E79: =SUM(((J40+(E76*C9*C6)+((E77*(C9+C10)*C6)+J65))/C6)/(C9+C10)) -> 4.877710145
A81: Note: This budget is only a guide and is not intended to be an in-depth study of the cost of production of this industry. Interpretation and utilization of this information is the responsibility of the user.
A84: Created and maintained by | L84: September, 2015
A85: For more information, contact your local
A86: Benjamin Hamm | C86: Bob Gwyer | G86: Roy Arnott
A87: Farm Management Specialist | C87: Farm Management Specialist | G87: Farm Management Specialist

Sheet Cow Value (hidden)
A1: ="Cow Replacement Value Calculation Worksheet - "&Introduction!I10&"" -> Cow Replacement Value Calculation Worksheet - September, 2024
A3: Average Cow Weight | C3: =Input!E14 -> 1350 | D3: lbs | F3: Operating Interest Rate | I3: ='Operating '!E131 -> 7.5 | J3: %
A4: Cull Cow Market Price (current) | C4: =Input!E30 -> 175 | D4: /cwt | F4: Investment Rate | I4: =Input!E75 -> 4 | J4: %
A5: Cull Cow Market Value | C5: =SUM(C3/100)*C4 -> 2362.5
A7: Calf Crop | C7: =Input!E17 -> 95 | D7: % | F7: ****HIDE in FINAL VERSION*****
A8: Steer Calf Weight | C8: =Input!E18 -> 600 | D8: lbs
A9: Steer Calf Market Price (current) | C9: =Input!E19 -> 380 | D9: /cwt
A10: Heifer Calf Weight | C10: =Input!E20 -> 550 | D10: lbs
A11: Heifer Calf Market Price (current) | C11: =Input!E21 -> 350 | D11: /cwt
A12: Average Calf Weight | C12: =AVERAGE(C8,C10) -> 575 | D12: lbs
A13: Weighted Average Calf Market Price | C13: =SUM(((C9*(C8/100))+(C11*(C10/100)))/2)/(C12/100) -> 365.6521739 | D13: /cwt
B15: Estimated Production Costs and Income
C16: 1 Year | D16: 2 Years | E16: 3 Years | F16: 4 Years | G16: 5 Years | H16: 6 Years | I16: 7 Years | J16: 8 Years
A17: Operating Expense (per Cow)
B18: Feed Cost | C18: =Summary!F10 -> 524.2248588 | D18: 355 | E18: 359.88125 | F18: 364.8296172 | G18: 369.8460244 | H18: 374.9314073 | I18: 380.0867141 | J18: 385.3129064
B19: Other Operating Cost2 | C19: =SUM(Summary!F27-Summary!F10-Summary!F22) -> 404.080816 | D19: =SUM(C19*(1+($I$4/100/2))) -> 412.1624323 | E19: 420.405681 | F19: 428.8137946 | G19: 437.3900705 | H19: 446.1378719 | I19: 455.0606293 | J19: 464.1618419
B20: Operating Interest | C20: =SUM((C18+C19)/2)*I3/100 -> 34.8114628 | D20: =SUM((D18+D19)/2)*$I$3/100 -> 28.76859121 | E20: 29.26075991 | F20: 29.76162794 | G20: 30.27135356 | H20: 30.79009797 | I20: 31.31802538 | J20: 31.85530306
A21: Total Operating Cost | C21: =SUM(C18:C20) -> 963.1171376 | D21: =SUM(D18:D20) -> 795.9310235 | E21: 809.5476909 | F21: 823.4050397 | G21: 837.5074485 | H21: 851.8593771 | I21: 866.4653688 | J21: 881.3300514
A22: Total Fixed Cost2 | C22: =Summary!F36 -> 310.3803021 | D22: =SUM(C22*(1+($I$4/100/2))) -> 316.5879082 | E22: 322.9196664 | F22: 329.3780597 | G22: 335.9656209 | H22: 342.6849333 | I22: 349.538632 | J22: 356.5294046
A23: Total Operating and Fixed Cost | C23: =SUM(C21:C22) -> 1273.49744 | D23: =SUM(D21:D22) -> 1112.518932 | E23: =SUM(E21:E22) -> 1132.467357 | F23: 1152.783099 | G23: 1173.473069 | H23: 1194.54431 | I23: 1216.004001 | J23: 1237.859456
A24: Total Labour (Living) Cost2 | C24: =Summary!F38 -> 216 | D24: =SUM(C24*(1+($I$4/100/2))) -> 220.32 | E24: 224.7264 | F24: 229.220928 | G24: 233.8053466 | H24: 238.4814535 | I24: 243.2510826 | J24: 248.1161042
A25: Total Cost Per Cow | C25: =SUM(C24+C23) -> 1489.49744 | D25: =SUM(D24+D23) -> 1332.838932 | E25: 1357.193757 | F25: 1382.004027 | G25: 1407.278416 | H25: 1433.025764 | I25: 1459.255083 | J25: 1485.97556
A27: Income (per Cow)
B28: Calf Market Price ($/cwt) | C28: =C13 -> 365.6521739 | D28: 190 | E28: 190 | F28: 195 | G28: 203 | H28: 210 | I28: 222 | J28: 230
B29: Calf Revenue | C29: =SUM((C28/100)*$C$12)*($C$7/100) -> 1997.375 | D29: 1037.875 | E29: 1037.875 | F29: 1065.1875 | G29: 1108.8875 | H29: 1147.125 | I29: 1212.675 | J29: 1256.375
B31: Calf Marginal Returns
B32: Over Operating Costs | C32: =SUM(C29-C21) -> 1034.257862 | D32: =SUM(D29-D21) -> 241.9439765 | E32: 228.3273091 | F32: 241.7824603 | G32: 271.3800515 | H32: 295.2656229 | I32: 346.2096312 | J32: 375.0449486
B33: Over Operating & Labour Costs | C33: =SUM(C29-C21-C24) -> 818.2578624 | D33: =SUM(D29-D21-D24) -> 21.62397646 | E33: 3.600909114 | F33: 12.56153228 | G33: 37.57470497 | H33: 56.78416939 | I33: 102.9585486 | J33: 126.9288444
B34: Over Operating & Fixed Costs | C34: =SUM(C29-C21-C22) -> 723.8775602 | D34: =SUM(D29-D21-D22) -> -74.64393173 | E34: -94.59235724 | F34: -87.59559941 | G34: -64.58556935 | H34: -47.41931042 | I34: -3.329000783 | J34: 18.51554399
B35: Over Total Costs (Net Profit) | C35: =SUM(C29-C25) -> 507.8775602 | D35: =SUM(D29-D25) -> -294.9639317 | E35: -319.3187572 | F35: -316.8165274 | G35: -298.3909159 | H35: -285.9007639 | I35: -246.5800833 | J35: -229.6005602
B37: Cull Cow Market Price ($/cwt) | C37: =C4 -> 175 | D37: 90 | E37: 90 | F37: 95 | G37: 103 | H37: 110 | I37: 122 | J37: 130
B38: Cull Cow Revenue | C38: =SUM($C$3/100)*C37 -> 2362.5 | D38: 1215 | E38: 1215 | F38: 1282.5 | G38: 1390.5 | H38: 1485 | I38: 1647 | J38: 1755
A40: Estimated Breakeven Replacement Purchase Values1 - Number of Years Before Culling
C41: 1 Year | D41: 2 Years | E41: 3 Years | F41: 4 Years | G41: 5 Years | H41: 6 Years | I41: 7 Years | J41: 8 Years
B43: Over Operating Costs | C43: =NPV(I4/100,(C29-C21)+C38) -> 3266.113329 | D43: =NPV(I4/100,C29-C21,D29-D21+$D$38) -> 2341.505319 | E43: =NPV(I4/100,C29-C21,D29-D21,E29-E21+$E$38) -> 2501.282243 | F43: =NPV(I4/100,C29-C21,D29-D21,E29-E21,F29-F21+$F$38) -> 2724.114702 | G43: =NPV(I4/100,C29-C21,D29-D21,E29-E21,F29-F21,G29-G21+$G$38) -> 2993.77259 | H43: =NPV(I4/100,C29-C21,D29-D21,E29-E21,F29-F21,G29-G21,H29-H21+$H$38) -> 3257.852729 | I43: =NPV(I4/100,C29-C21,D29-D21,E29-E21,F29-F21,G29-G21,H29-H21,I29-I21+$I$38) -> 3598.911163 | J43: =NPV(I4/100,C29-C21,D29-D21,E29-E21,F29-F21,G29-G21,H29-H21,I29-I21,J29-J21+$J$38) -> 3903.729505
B44: Over Operating & Labour Costs | C44: =NPV(I4/100,(C29-C21-C24)+C38) -> 3058.421022 | D44: =NPV(I4/100,C29-C21-C24,D29-D21-D24+$D$38) -> 1930.114787 | E44: =NPV(I4/100,C29-C21-C24,D29-D21-D24,E29-E21-E24+$E$38) -> 1890.110759 | F44: =NPV(I4/100,C29-C21-C24,D29-D21-D24,E29-E21-E24,F29-F21-F24+$F$38) -> 1917.004208 | G44: =NPV(I4/100,C29-C21-C24,D29-D21-D24,E29-E21-E24,F29-F21-F24,G29-G21-G24+$G$38) -> 1994.491144 | H44: =NPV(I4/100,C29-C21-C24,D29-D21-D24,E29-E21-E24,F29-F21-F24,G29-G21-G24,H29-H21-H24+$H$38) -> 2070.095927 | I44: =NPV(I4/100,C29-C21-C24,D29-D21-D24,E29-E21-E24,F29-F21-F24,G29-G21-G24,H29-H21-H24,I29-I21-I24+$I$38) -> 2226.303529 | J44: =NPV(I4/100,C29-C21-C24,D29-D21-D24,E29-E21-E24,F29-F21-F24,G29-G21-G24,H29-H21-H24,I29-I21-I24,J29-J21-J24+$J$38) -> 2349.825864
B45: Over Operating & Fixed Costs | C45: =NPV(I4/100,C29-C21-C22+C38) -> 2967.670731 | D45: =NPV(I4/100,C29-C21-C22,D29-D21-D22+$D$38) -> 1750.359404 | E45: =NPV(I4/100,C29-C21-C22,D29-D21-D22,E29-E21-E22+$E$38) -> 1623.061919 | F45: =NPV(I4/100,C29-C21-C22,D29-D21-D22,E29-E21-E22,F29-F21-F22+$F$38) -> 1564.340633 | G45: =NPV(I4/100,C29-C21-C22,D29-D21-D22,E29-E21-E22,F29-F21-F22,G29-G21-G22+$G$38) -> 1557.85927 | H45: =NPV(I4/100,C29-C21-C22,D29-D21-D22,E29-E21-E22,F29-F21-F22,G29-G21-G22,H29-H21-H22+$H$38) -> 1551.110529 | I45: =NPV(I4/100,C29-C21-C22,D29-D21-D22,E29-E21-E22,F29-F21-F22,G29-G21-G22,H29-H21-H22,I29-I21-I22+$I$38) -> 1626.54833 | J45: =NPV(I4/100,C29-C21-C22,D29-D21-D22,E29-E21-E22,F29-F21-F22,G29-G21-G22,H29-H21-H22,I29-I21-I22,J29-J21-J22+$J$38) -> 1670.854128
B46: Over Total Costs (Net Profit) | C46: =NPV(I4/100,(C29-C25)+C38) -> 2759.978423 | D46: =NPV(I4/100,C29-C25,D29-D25+$D$38) -> 1338.968871 | E46: =NPV(I4/100,C29-C25,D29-D25,E29-E25+$E$38) -> 1011.890436 | F46: =NPV(I4/100,C29-C25,D29-D25,E29-E25,F29-F25+$F$38) -> 757.2301394 | G46: =NPV(I4/100,C29-C25,D29-D25,E29-E25,F29-F25,G29-G25+$G$38) -> 558.5778241 | H46: =NPV(I4/100,C29-C25,D29-D25,E29-E25,F29-F25,G29-G25,H29-H25+$H$38) -> 363.3537263 | I46: =NPV(I4/100,C29-C25,D29-D25,E29-E25,F29-F25,G29-G25,H29-H25,I29-I25+$I$38) -> 253.9406962 | J46: =NPV(I4/100,C29-C25,D29-D25,E29-E25,F29-F25,G29-G25,H29-H25,I29-I25,J29-J25+$J$38) -> 116.9504872
A48: 1 | B48: ="Yearly replacement value is calculated by adding the marginal returns from the current and each of the previous years and cull cow revenue in the current year at net present value (based on "&I4&"% annual investment cost)" -> Yearly replacement value is calculated by adding the marginal returns from the current and each of the previous years and cull cow revenue in the current year at net present value (based on 4% annual investment cost)
A50: 2 | B50: ="Costs estimates are increased annually by "&I4/2&"% inflation rate" -> Costs estimates are increased annually by 2% inflation rate
A52: Note: This budget is only a guide and is not intended as an in-depth study of the cost of production of this industry. Interpretation and use of this information is the responsibility of the user. If you need help with a budget, contact your local Manitoba Agriculture, Food and Rural Development (MAFRD) GO Office.
